{"text_format":"1","workbook":"xlsx","n_sheets":18,"sheets":["Import","Datasheet","Optimize","Graphs","Sample1","Sample2","Sample3","Sample4","Sample5","Sample6","Sample7","Sample8","Sample9","Sample10","Sample11","Sample12","Sample13","Testset"],"not_rendered":{"charts":40,"images":39,"macros":1,"external_links":0,"defined_names":375,"comments":0,"pivot_tables":0},"unopened":[],"bounds":{"document_bytes":16777216,"sheet_cells":100000,"rows_first":2000,"rows_last":500,"rows_between":2000,"halvings":0,"cell_chars":16384,"cell_head_chars":4096},"cells_cut":0,"cells_raw":0,"read":"whole","date_system":"1900"}

{"sheet":"Import","index":0,"n_rows":0,"n_cols":0,"rows_kept":0,"cut":false,"hidden":false,"merged":[]}

{"sheet":"Datasheet","index":1,"n_rows":69,"n_cols":25,"rows_kept":69,"cut":false,"hidden":false,"merged":[[35,16,35,21],[36,15,36,17],[36,18,36,21],[37,15,37,17],[37,18,37,21],[32,16,32,19],[33,16,33,19],[20,16,20,19],[26,16,26,19],[27,16,27,19],[28,16,28,19],[29,16,29,19],[30,16,30,19],[31,16,31,19],[21,16,21,19],[22,16,22,19],[23,16,23,19],[24,16,24,19],[25,16,25,19]]}
["Put here the Absorbances (B6 - M13)",null,null,null,null,null,"PLA tredecim V01Sep2018"]
["If the data are in ASCII then: File, open, select in 'files of type' \"text files\" and import the data. Select the proper delimiter to get every absorbtion in a separate cell."]
["Then select the data, press copy and return to this sheet. Put the cursor in cell B6 and press paste."]
["Absorbance matrix",null,null,null,null,null,null,null,null,null,null,null,null,null,null,null,"If your data are in 8x12 format, paste them here and press Transpose"]
[null,1,2,3,4,5,6,7,8,9,10,11,12,null,null,null,"A","B","C","D","E","F","G","H"]
["A",null,null,null,null,null,null,null,null,null,null,null,null,null,null,1]
["B",null,null,null,null,null,null,null,null,null,null,null,null,null,null,2]
["C",null,null,null,null,null,null,null,null,null,null,null,null,null,null,3]
["D",null,null,null,null,null,null,null,null,null,null,null,null,null,null,4]
["E",null,null,null,null,null,null,null,null,null,null,null,null,null,null,5]
["F",null,null,null,null,null,null,null,null,null,null,null,null,null,null,6]
["G",null,null,null,null,null,null,null,null,null,null,null,null,null,null,7]
["H",null,null,null,null,null,null,null,null,null,null,null,null,null,null,8]
[null,null,null,null,null,null,null,null,null,null,null,null,null,null,null,9]
[null,null,null,null,null,null,null,null,null,null,null,null,null,null,null,10]
[null,null,null,null,null,null,null,null,null,null,null,null,null,null,null,11]
["Enter here the positions of samples. Use S01 to S13 for maximal 13 samples and SS for the position of the standard.",null,null,null,null,null,null,null,null,null,null,null,null,null,null,12]
["Sample position matrix",null,null,null,"Use the abbreviations as entered in column P21 - P 34"]
[]
[null,"SS = standard",null,null,"S01 - S13 for samples",null,null,null,null,null,null,null,null,null,null,"ID",null,null,"Name / number",null,"Potency","Unit"]
[null,1,2,3,4,5,6,7,8,9,10,11,12,null,null,"SS",null,null,null,null,null,null,null,null,"This name and potency will appear on all sheets"]
["A",null,null,null,null,null,null,null,null,null,null,null,null,null,null,"S01"]
["B",null,null,null,null,null,null,null,null,null,null,null,null,null,null,"S02"]
["C",null,null,null,null,null,null,null,null,null,null,null,null,null,null,"S03"]
["D",null,null,null,null,null,null,null,null,null,null,null,null,null,null,"S04"]
["E",null,null,null,null,null,null,null,null,null,null,null,null,null,null,"S05"]
["F",null,null,null,null,null,null,null,null,null,null,null,null,null,null,"S06"]
["G",null,null,null,null,null,null,null,null,null,null,null,null,null,null,"S07"]
["H",null,null,null,null,null,null,null,null,null,null,null,null,null,null,"S08"]
[null,null,null,null,null,null,null,null,null,null,null,null,null,null,null,"S09"]
[null,null,null,null,null,null,null,null,null,null,null,null,null,null,null,"S10"]
[null,null,null,null,null,null,null,null,null,null,null,null,null,null,null,"S11"]
["Enter here the dilutions of the samples (B36 - M43).     Enter a dilution of 1/20 as =1/20 or 0.05",null,null,null,null,null,null,null,null,null,null,null,null,null,null,"S12"]
["Dilution matrix",null,null,null,null,null,null,null,null,null,null,null,null,null,null,"S13"]
[null,1,2,3,4,5,6,7,8,9,10,11,12]
["A",null,null,null,null,null,null,null,null,null,null,null,null,null,null,"Date:",{"$f":"TODAY()","v":"2018-12-14"},null,null,null,null,null,null,null,"This date and the text below will appear on all sheets "]
["B",null,null,null,null,null,null,null,null,null,null,null,null,null,null,"Lot number: ",null,null,"  -",null,null,null,null,null,"This tekst will appear in the Cell D24 and E24"]
["C",null,null,null,null,null,null,null,null,null,null,null,null,null,null,"Name technician: ",null,null,"  -",null,null,null,null,null,"This tekst will appear in the Cell D25 and E25"]
["D"]
["E"]
["F"]
["G"]
["H"]
[]
[]
["Original absorbances"]
[null,1,2,3,4,5,6,7,8,9,10,11,12]
["A"]
["B"]
["C"]
["D"]
["E"]
["F"]
["G"]
["H"]
[]
[]
[null,"."]
[]
[]
[null,1,2,3,4,5,6,7,8,9,10,11,12]
["A"]
["B",null,null,"l","l","l",null,"l","l"]
["C",null,null,"l",null,null,null,"l",null,"l"]
["D",null,null,"l","l",null,null,"l",null,"l"]
["E",null,null,"l","l",null,null,"l",null,"l"]
["F",null,null,"l",null,null,null,"l",null,"l"]
["G",null,null,"l","l","l",null,"l","l"]
["H"]

{"sheet":"Optimize","index":2,"n_rows":18,"n_cols":9,"rows_kept":18,"cut":false,"hidden":false,"merged":[]}
[]
[null,{"$f":"Sample1!M4","v":"Standard"},{"$f":"Sample1!N4","v":"l"},{"$f":"Sample1!O4","v":"l"},{"$f":"Sample1!P4","v":"l"},{"$f":"Sample1!Q4","v":"l"},{"$f":"Sample1!R4","v":"l"},{"$f":"Sample1!S4","v":"l"}]
[]
[null,{"$f":"Sample1!M6","v":"Dose"},{"$f":"Sample1!N6","v":"Respons"}]
[null,null,{"$f":"Sample1!N7","v":1},{"$f":"Sample1!O7","v":2},{"$f":"Sample1!P7","v":3},{"$f":"Sample1!Q7","v":4},{"$f":"Sample1!R7","v":5},{"$f":"Sample1!S7","v":6},"Average"]
[]
[]
[]
[]
[]
[]
[]
[]
[null,"Log Dose","Logit response"]
[null,null,null,null,null,"Correlation"]
[null,null,null,null,null,"Loopcount"]
[null,null,null,null,null,"Bmax"]
[null,null,null,null,null,"Minimum"]

{"sheet":"Graphs","index":3,"n_rows":0,"n_cols":0,"rows_kept":0,"cut":false,"hidden":false,"merged":[]}

{"sheet":"Sample1","index":4,"n_rows":55,"n_cols":49,"rows_kept":55,"cut":false,"hidden":false,"merged":[[22,4,22,9],[21,4,21,5]]}
[null,null,null,null,null,null,null,null,null,null,null,null,null,null,null,null,null,null,null,null,"V 1.0"]
[null,null,null,"PLA tredecim V01Sep2018"]
[null,null,null,null,null,null,null,null,null,null,null,null,null,null,null,null,null,null,null,null,null,null,null,null,null,null,null,null,"aantal doses standaard",{"$f":"COUNT(AW17:AW23)-COUNTIF(AW17:AW23,\"=0\")","v":0}]
[null,null,null,"Sample","l","l","l","l","l","l",null,null,"Standard","l","l","l","l","l","l",null,null,null,null,null,null,null,null,null,"aantal doses test",{"$f":"COUNT(AW26:AW32)-COUNTIF(AW26:AW32,\"=0\")","v":0}]
[null,null,null,null,null,null,null,null,null,null,null,null,null,null,null,null,null,null,null,null,null,null,null,null,null,null,null,null,"aantal responses standaard",{"$f":"COUNTIF(AP17:AU23,\">0\")","v":0}]
[null,null,null,"Dose","Response",null,null,null,null,null,null,null,"Dose","Respons",null,null,null,null,null,null,null,null,null,null,null,null,null,null,"aantal responses test",{"$f":"COUNTIF(AP26:AU32,\">0\")","v":0}]
[null,null,null,null,1,2,3,4,5,6,null,null,null,1,2,3,4,5,6,null,null,null,null,null,null,null,null,null,"som responses standaard",{"$f":"SUM(AP17:AU23)","v":0}]
[null,null,1,null,null,null,null,null,null,null,null,1,null,null,null,null,null,null,null,null,null,null,null,null,null,null,null,null,"som responses test",{"$f":"SUM(AP26:AU32)","v":0}]
[null,null,2,null,null,null,null,null,null,null,null,2,null,null,null,null,null,null,null,null,null,null,null,null,null,null,null,null,"som Xsi",{"$f":"SUM(AH17:AH23)","v":0}]
[null,null,3,null,null,null,null,null,null,null,null,3,null,null,null,null,null,null,null,null,null,null,null,null,null,null,null,null,"som Xti",{"$f":"SUM(AH26:AH32)","v":0}]
[null,null,4,null,null,null,null,null,null,null,null,4,null,null,null,null,null,null,null,null,null,null,null,null,null,null,null,null,"XSm",{"$f":"AD9/AD5","v":{"$error":"#DIV/0!"}}]
[null,null,5,null,null,null,null,null,null,null,null,5,null,null,null,null,null,null,null,null,null,null,null,null,null,null,null,null,"XTm",{"$f":"AD10/AD6","v":{"$error":"#DIV/0!"}}]
[null,null,6,null,null,null,null,null,null,null,null,6,null,null,null,null,null,null,null,null,null,null,null,null,null,null,null,null,"Ysm",{"$f":"AD7/AD5","v":{"$error":"#DIV/0!"}}]
[null,null,7,null,null,null,null,null,null,null,null,7,null,null,null,null,null,null,null,null,null,null,null,null,null,null,null,null,"Ytm",{"$f":"AD8/AD6","v":{"$error":"#DIV/0!"}}]
[null,null,null,null,null,null,null,null,null,null,null,null,null,null,null,null,null,null,null,null,null,null,null,null,null,null,null,null,"SxxS:",{"$f":"SUM(AI17:AI23)","v":{"$error":"#DIV/0!"}}]
[null,null,null,null,null,null,null,null,null,null,null,null,null,null,null,null,null,null,null,null,null,null,null,null,null,null,null,null,"SxxT:",{"$f":"SUM(AI26:AI32)","v":{"$error":"#DIV/0!"}},null,"ni","ysi","Xsi","SxxSi","SyySi","SxySi","yi^2",null,null,"Dose","Responses",null,null,null,null,null,"Regression","Dose(log)"]
[null,null,null,null,null,null,null,null,null,null,null,null,null,null,null,null,null,null,null,null,null,null,null,null,null,null,null,null,"SxyS:",{"$f":"SUM(AK17:AK23)","v":0},null,{"$f":"COUNTIF(AP17:AU17,\">0\")","v":0},{"$f":"SUM(AP17:AU17)","v":0},{"$f":"AF17*AW17","v":0},{"$f":"AF17*(AW17-$AD$11)^2","v":{"$error":"#DIV/0!"}},{"$f":"IF(AF17=0,0,+AF17*(AG17/AF17-$AD$13)^2)","v":0},{"$f":"IF(AF17=0,0,+AF17*(AG17/AF17-$AD$13)*(AW17-$AD$11))","v":0},{"$f":"AP17^2+AQ17^2+AR17^2+AS17^2+AT17^2+AU17^2","v":0},null,"Standard",null,null,null,null,null,null,null,{"$f":"IF(AO17>0,AW17*$AD$45+$AD$46,\"\")","v":""},{"$f":"IF(AO17>0,LOG(AO17),\"\")","v":""}]
[null,null,null,"Sample: ",null,null,null,null,null,null,null,null,"Standard name:",null,null,null,null,null,null,null,null,null,null,null,null,null,null,null,"SxyT:",{"$f":"SUM(AK26:AK32)","v":0},null,{"$f":"COUNTIF(AP18:AU18,\">0\")","v":0},{"$f":"SUM(AP18:AU18)","v":0},0,{"$error":"#DIV/0!"},0,0,{"$f":"AP18^2+AQ18^2+AR18^2+AS18^2+AT18^2+AU18^2","v":0},null,null,null,null,null,null,null,null,null,"",""]
[null,null,null,"Potency: ",{"$f":"AC53*N19","v":{"$error":"#DIV/0!"}},{"$f":"O19","v":0},null,null,null,null,null,null,"Potency:",null,null,null,null,null,null,null,null,null,null,null,null,null,null,null,"SyyS:",{"$f":"SUM(AJ17:AJ23)","v":0},null,0,0,0,{"$error":"#DIV/0!"},0,0,0,null,null,null,null,null,null,null,null,null,"",""]
[null,null,null,"CI: ",{"$f":"\"(\"&TEXT(MIN(AD54:AE54),\"0.#0\")&\" - \"&TEXT(MAX(AD54:AE54),\"0.#0) \")&\"= +/-\"","v":{"$error":"#VALUE!"}},null,{"$f":"ABS((AD54-AE54)/(2*E19))","v":{"$error":"#DIV/0!"}},null,null,null,null,null,null,null,null,null,null,null,null,null,null,null,null,null,null,null,null,null,"SyyT:",{"$f":"SUM(AJ26:AJ32)","v":0},null,0,0,0,{"$error":"#DIV/0!"},0,0,0,null,null,null,null,null,null,null,null,null,"",""]
[null,null,null,null,null,null,null,null,null,null,null,null,null,"F-Ratio","Limits",null,null,null,null,null,null,null,null,null,null,null,null,null,"B:",{"$f":"(AD17+AD18)/(AD15+AD16)","v":{"$error":"#DIV/0!"}},null,0,0,0,{"$error":"#DIV/0!"},0,0,0,null,null,null,null,null,null,null,null,null,"",""]
[null,null,null,"Date: ",null,null,null,null,null,null,null,"Non-parallelism",null,{"$f":"AG37","v":{"$error":"#DIV/0!"}},{"$f":"AH37","v":{"$error":"#NUM!"}},null,null,null,null,null,null,null,null,null,null,null,null,null,"t",{"$f":"TINV(0.05,AE41)","v":{"$error":"#NUM!"}},null,0,0,0,{"$error":"#DIV/0!"},0,0,0,null,null,null,null,null,null,null,null,null,"",""]
[null,null,null,"Sample name: ",null,null,null,null,null,null,null,"Non linearity (St)",null,{"$f":"AG38","v":{"$error":"#DIV/0!"}},{"$error":"#NUM!"},null,null,null,null,null,null,null,null,null,null,null,null,null,"s",{"$f":"SQRT(AF41)","v":{"$error":"#DIV/0!"}},null,0,0,0,{"$error":"#DIV/0!"},0,0,0,null,null,null,null,null,null,null,null,null,"",""]
[null,null,null,null,null,null,null,null,null,null,null,"Non linearity (Sa)",null,{"$error":"#DIV/0!"},{"$error":"#NUM!"},null,null,null,null,null,null,null,null,null,null,null,null,null,"g",{"$f":"AD22^2*AD23^2/(AD21^2*(AD15+AD16))","v":{"$error":"#NUM!"}}]
[null,null,null,null,null,null,null,null,null,null,null,"Relative Slope",null,{"$f":"AD48/AD45","v":{"$error":"#DIV/0!"}}," 0.90-1.10",null,null,null,null,null,null,null,null,null,null,null,null,null,null,null,null,"mi","yti","Xti","SxxTi","SyyTi","SxyTi","yi^2",null,null,null,null,null,null,null,null,null,"Regression","Dose(log)"]
[null,null,null,null,null,null,null,null,null,null,null,null,null,null,null,null,null,null,null,null,null,null,null,null,null,null,null,null,"var(P)",{"$f":"(AD23^2/AD21^2)*((1/AD5+1/AD6)+(AD28-AD11+AD12)^2/(AD15+AD16))","v":{"$error":"#DIV/0!"}},null,{"$f":"COUNTIF(AP26:AU26,\">0\")","v":0},{"$f":"SUM(AP26:AU26)","v":0},{"$f":"AF26*AW26","v":0},{"$f":"AF26*(AW26-$AD$12)^2","v":{"$error":"#DIV/0!"}},{"$f":"IF(AF26=0,0,+AF26*(AG26/AF26-$AD$14)^2)","v":0},{"$f":"IF(AF26=0,0,+AF26*(AG26/AF26-$AD$14)*(AW26-$AD$12))","v":0},{"$f":"AP26^2+AQ26^2+AR26^2+AS26^2+AT26^2+AU26^2","v":0},null,"Test sample",null,null,null,null,null,null,null,{"$f":"IF(AO26>0,AW26*$AD$48+$AD$49,\"\")","v":""},{"$f":"IF(AO26>0,LOG(AO26),\"\")","v":""}]
[null,null,null,"Italic or Bold  = Delete point. Press button Recalculate",null,null,null,null,null,null,null,null,null,null,null,null,null,null,null,null,null,null,null,null,null,null,null,null,"limit",{"$f":"(AD23*AD22/AD21)*SQRT((1-AD24)*(1/AD6+1/AD5)+(AD28-AD11+AD12)^2/(AD15+AD16))","v":{"$error":"#DIV/0!"}},null,{"$f":"COUNTIF(AP27:AU27,\">0\")","v":0},0,0,{"$error":"#DIV/0!"},0,0,0,null,null,null,null,null,null,null,null,null,"",""]
[null,null,null,null,null,null,null,null,null,null,null,null,null,null,null,null,null,null,null,null,null,null,null,null,null,null,null,null,"M",{"$f":"$AD$11-$AD$12-(AD13-AD14)/AD21","v":{"$error":"#DIV/0!"}},null,0,0,0,{"$error":"#DIV/0!"},0,0,0,null,null,null,null,null,null,null,null,null,"",""]
[null,null,null,null,null,null,null,null,null,null,null,null,null,null,null,null,null,null,null,null,null,null,null,null,null,null,null,null,"Ml",{"$f":"$AD$11-$AD$12+($AD$28-$AD$11+$AD$12+$AD$27)/(1-$AD$24)","v":{"$error":"#DIV/0!"}},null,0,0,0,{"$error":"#DIV/0!"},0,0,0,null,null,null,null,null,null,null,null,null,"",""]
[null,null,null,null,null,null,null,null,null,null,null,null,null,null,null,null,null,null,null,null,null,null,null,null,null,null,null,null,"Mu",{"$f":"$AD$11-$AD$12+($AD$28-$AD$11+$AD$12-$AD$27)/(1-$AD$24)","v":{"$error":"#DIV/0!"}},null,0,0,0,{"$error":"#DIV/0!"},0,0,0,null,null,null,null,null,null,null,null,null,"",""]
[null,null,null,null,null,null,null,null,null,null,null,null,null,null,null,null,null,null,null,null,null,null,null,null,null,null,null,null,null,null,null,0,0,0,{"$error":"#DIV/0!"},0,0,0,null,null,null,null,null,null,null,null,null,"",""]
[null,null,null,null,null,null,null,null,null,null,null,null,null,null,null,null,null,null,null,null,null,null,null,null,null,null,null,null,null,null,null,0,0,0,{"$error":"#DIV/0!"},0,0,0,null,null,null,null,null,null,null,null,null,"",""]
[]
[null,null,null,null,null,null,null,null,null,null,null,null,null,null,null,null,null,null,null,null,null,null,null,null,null,null,null,null,"Source of variation","S.S.","DF","M.S.","F RATIO","F 0.95"]
[null,null,null,null,null,null,null,null,null,null,null,null,null,null,null,null,null,null,null,null,null,null,null,null,null,null,null,null,"Preparations",{"$f":"AD7^2/AD5+AD8^2/AD6-(AD7+AD8)^2/(AD5+AD6)","v":{"$error":"#DIV/0!"}},1,{"$f":"AD35","v":{"$error":"#DIV/0!"}},{"$f":"AF35/$AF$41","v":{"$error":"#DIV/0!"}}]
[null,null,null,null,null,null,null,null,null,null,null,null,null,null,null,null,null,null,null,null,null,null,null,null,null,null,null,null,"Regression",{"$f":"(AD17+AD18)^2/(AD15+AD16)","v":{"$error":"#DIV/0!"}},1,{"$f":"AD36","v":{"$error":"#DIV/0!"}},{"$f":"AF36/$AF$41","v":{"$error":"#DIV/0!"}}]
[null,null,null,null,null,null,null,null,null,null,null,null,null,null,null,null,null,null,null,null,null,null,null,null,null,null,null,null,"Non-parallelism",{"$f":"(AD17)^2/AD15+AD18^2/AD16-(AD17+AD18)^2/(AD15+AD16)","v":{"$error":"#DIV/0!"}},1,{"$f":"AD37","v":{"$error":"#DIV/0!"}},{"$f":"AF37/$AF$41","v":{"$error":"#DIV/0!"}},{"$f":"FINV(0.05,AE37,AE$41)","v":{"$error":"#NUM!"}}]
[null,null,null,null,null,null,null,null,null,null,null,null,null,null,null,null,null,null,null,null,null,null,null,null,null,null,null,null,"Non-linearity (s)",{"$f":"AD19-AD17^2/AD15","v":{"$error":"#DIV/0!"}},{"$f":"AD3-2","v":-2},{"$f":"AD38/AE38","v":{"$error":"#DIV/0!"}},{"$f":"AF38/$AF$41","v":{"$error":"#DIV/0!"}},{"$f":"FINV(0.05,AE38,AE$41)","v":{"$error":"#NUM!"}}]
[null,null,null,null,null,null,null,null,null,null,null,null,null,null,null,null,null,null,null,null,null,null,null,null,null,null,null,null,"Non-linearity (t)",{"$f":"AD20-AD18^2/AD16","v":{"$error":"#DIV/0!"}},{"$f":"AD4-2","v":-2},{"$f":"AD39/AE39","v":{"$error":"#DIV/0!"}},{"$f":"AF39/$AF$41","v":{"$error":"#DIV/0!"}},{"$f":"FINV(0.05,AE39,AE$41)","v":{"$error":"#NUM!"}}]
[]
[null,null,null,null,null,null,null,null,null,null,5,null,null,null,null,null,null,null,null,null,null,null,null,null,null,null,null,null,"Residual Error",{"$f":"AD43-AD35-AD36-AD37-AD38-AD39","v":{"$error":"#DIV/0!"}},{"$f":"AE43-AE35-AE36-AE37-AE38-AE39","v":0},{"$f":"AD41/AE41","v":{"$error":"#DIV/0!"}}]
[]
[null,null,null,null,null,null,null,null,null,null,null,null,null,null,null,null,null,null,null,null,null,null,null,null,null,null,null,null,"Total",{"$f":"SUM(AL17:AL32)-(AD7+AD8)^2/(AD5+AD6)","v":{"$error":"#DIV/0!"}},{"$f":"(AD6+AD5)-1","v":-1}]
[]
[null,null,null,null,null,null,null,null,null,null,null,null,null,null,null,null,null,null,null,null,null,null,null,null,null,null,null,null,"Slope standard",{"$f":"AD17/AD15","v":{"$error":"#DIV/0!"}}]
[null,null,null,null,null,null,null,null,null,null,null,null,null,null,null,null,null,null,null,null,null,null,null,null,null,null,null,null,"Intercept standard",{"$f":"AD13-AD45*AD11","v":{"$error":"#DIV/0!"}}]
[]
[null,null,null,null,null,null,null,null,null,null,null,null,null,null,null,null,null,null,null,null,null,null,null,null,null,null,null,null,"Slope test",{"$f":"AD18/AD16","v":{"$error":"#DIV/0!"}}]
[null,null,null,null,null,null,null,null,null,null,null,null,null,null,null,null,null,null,null,null,null,null,null,null,null,null,null,null,"Intercept test",{"$f":"AD14-AD48*AD12","v":{"$error":"#DIV/0!"}}]
[]
[null,null,null,null,null,null,null,null,null,null,null,null,null,null,null,null,null,null,null,null,null,null,null,null,null,null,null,null,null,"Limits"]
[null,null,null,null,null,null,null,null,null,null,null,null,null,null,null,null,null,null,null,null,null,null,null,null,null,null,null,null,"Relative potency","Upper","Lower"]
[null,null,null,null,null,null,null,null,null,null,null,null,null,null,null,null,null,null,null,null,null,null,null,null,null,null,null,null,{"$f":"10^AD28","v":{"$error":"#DIV/0!"}},{"$f":"10^AD30","v":{"$error":"#DIV/0!"}},{"$f":"10^AD29","v":{"$error":"#DIV/0!"}}]
[null,null,null,null,null,null,null,null,null,null,null,null,null,null,null,null,null,null,null,null,null,null,null,null,null,null,null,null,"Potency",{"$f":"$AD$53*$N$19","v":{"$error":"#DIV/0!"}},{"$f":"$AE$53*$N$19","v":{"$error":"#DIV/0!"}}]
[null,null,null,null,null,null,null,null,null,null,null,null,null,null,null,null,null,null,null,null,null,null,null,null,null,null,null,null,"Deviation",{"$f":"(AD53-AC53)/AC53","v":{"$error":"#DIV/0!"}},{"$f":"(AE53-AC53)/AC53","v":{"$error":"#DIV/0!"}}]

{"sheet":"Sample2","index":5,"n_rows":55,"n_cols":49,"rows_kept":55,"cut":false,"hidden":false,"merged":[[21,4,21,5],[22,4,22,9]]}
[null,null,null,null,null,null,null,null,null,null,null,null,null,null,null,null,null,null,null,null,"V 1.0"]
[null,null,null,"PLA tredecim V01Sep2018"]
[null,null,null,null,null,null,null,null,null,null,null,null,null,null,null,null,null,null,null,null,null,null,null,null,null,null,null,null,"aantal doses standaard",{"$f":"COUNT(AW17:AW23)-COUNTIF(AW17:AW23,\"=0\")","v":0}]
[null,null,null,"Sample","l","l","l","l","l","l",null,null,"Standard","l","l","l","l","l","l",null,null,null,null,null,null,null,null,null,"aantal doses test",{"$f":"COUNT(AW26:AW32)-COUNTIF(AW26:AW32,\"=0\")","v":0}]
[null,null,null,null,null,null,null,null,null,null,null,null,null,null,null,null,null,null,null,null,null,null,null,null,null,null,null,null,"aantal responses standaard",{"$f":"COUNTIF(AP17:AU23,\">0\")","v":0}]
[null,null,null,"Dose","Response",null,null,null,null,null,null,null,"Dose","Respons",null,null,null,null,null,null,null,null,null,null,null,null,null,null,"aantal responses test",{"$f":"COUNTIF(AP26:AU32,\">0\")","v":0}]
[null,null,null,null,1,2,3,4,5,6,null,null,null,1,2,3,4,5,6,null,null,null,null,null,null,null,null,null,"som responses standaard",{"$f":"SUM(AP17:AU23)","v":0}]
[null,null,1,null,null,null,null,null,null,null,null,1,null,null,null,null,null,null,null,null,null,null,null,null,null,null,null,null,"som responses test",{"$f":"SUM(AP26:AU32)","v":0}]
[null,null,2,null,null,null,null,null,null,null,null,2,null,null,null,null,null,null,null,null,null,null,null,null,null,null,null,null,"som Xsi",{"$f":"SUM(AH17:AH23)","v":0}]
[null,null,3,null,null,null,null,null,null,null,null,3,null,null,null,null,null,null,null,null,null,null,null,null,null,null,null,null,"som Xti",{"$f":"SUM(AH26:AH32)","v":0}]
[null,null,4,null,null,null,null,null,null,null,null,4,null,null,null,null,null,null,null,null,null,null,null,null,null,null,null,null,"XSm",{"$f":"AD9/AD5","v":{"$error":"#DIV/0!"}}]
[null,null,5,null,null,null,null,null,null,null,null,5,null,null,null,null,null,null,null,null,null,null,null,null,null,null,null,null,"XTm",{"$f":"AD10/AD6","v":{"$error":"#DIV/0!"}}]
[null,null,6,null,null,null,null,null,null,null,null,6,null,null,null,null,null,null,null,null,null,null,null,null,null,null,null,null,"Ysm",{"$f":"AD7/AD5","v":{"$error":"#DIV/0!"}}]
[null,null,7,null,null,null,null,null,null,null,null,7,null,null,null,null,null,null,null,null,null,null,null,null,null,null,null,null,"Ytm",{"$f":"AD8/AD6","v":{"$error":"#DIV/0!"}}]
[null,null,null,null,null,null,null,null,null,null,null,null,null,null,null,null,null,null,null,null,null,null,null,null,null,null,null,null,"SxxS:",{"$f":"SUM(AI17:AI23)","v":{"$error":"#DIV/0!"}}]
[null,null,null,null,null,null,null,null,null,null,null,null,null,null,null,null,null,null,null,null,null,null,null,null,null,null,null,null,"SxxT:",{"$f":"SUM(AI26:AI32)","v":{"$error":"#DIV/0!"}},null,"ni","ysi","Xsi","SxxSi","SyySi","SxySi","yi^2",null,null,"Dose","Responses",null,null,null,null,null,"Regression","Dose(log)"]
[null,null,null,null,null,null,null,null,null,null,null,null,null,null,null,null,null,null,null,null,null,null,null,null,null,null,null,null,"SxyS:",{"$f":"SUM(AK17:AK23)","v":0},null,{"$f":"COUNTIF(AP17:AU17,\">0\")","v":0},{"$f":"SUM(AP17:AU17)","v":0},{"$f":"AF17*AW17","v":0},{"$f":"AF17*(AW17-$AD$11)^2","v":{"$error":"#DIV/0!"}},{"$f":"IF(AF17=0,0,+AF17*(AG17/AF17-$AD$13)^2)","v":0},{"$f":"IF(AF17=0,0,+AF17*(AG17/AF17-$AD$13)*(AW17-$AD$11))","v":0},{"$f":"AP17^2+AQ17^2+AR17^2+AS17^2+AT17^2+AU17^2","v":0},null,"Standard",null,null,null,null,null,null,null,{"$f":"IF(AO17>0,AW17*$AD$45+$AD$46,\"\")","v":""},{"$f":"IF(AO17>0,LOG(AO17),\"\")","v":""}]
[null,null,null,"Sample: ",null,null,null,null,null,null,null,null,"Standard name:",null,null,null,null,null,null,null,null,null,null,null,null,null,null,null,"SxyT:",{"$f":"SUM(AK26:AK32)","v":0},null,{"$f":"COUNTIF(AP18:AU18,\">0\")","v":0},{"$f":"SUM(AP18:AU18)","v":0},0,{"$error":"#DIV/0!"},0,0,{"$f":"AP18^2+AQ18^2+AR18^2+AS18^2+AT18^2+AU18^2","v":0},null,null,null,null,null,null,null,null,null,"",""]
[null,null,null,"Potency: ",{"$f":"AC53*N19","v":{"$error":"#DIV/0!"}},{"$f":"O19","v":0},null,null,null,null,null,null,"Potency:",null,null,null,null,null,null,null,null,null,null,null,null,null,null,null,"SyyS:",{"$f":"SUM(AJ17:AJ23)","v":0},null,0,0,0,{"$error":"#DIV/0!"},0,0,0,null,null,null,null,null,null,null,null,null,"",""]
[null,null,null,"CI: ",{"$f":"\"(\"&TEXT(MIN(AD54:AE54),\"0.#0\")&\" - \"&TEXT(MAX(AD54:AE54),\"0.#0) \")&\"= +/-\"","v":{"$error":"#VALUE!"}},null,{"$f":"ABS((AD54-AE54)/(2*E19))","v":{"$error":"#DIV/0!"}},null,null,null,null,null,null,null,null,null,null,null,null,null,null,null,null,null,null,null,null,null,"SyyT:",{"$f":"SUM(AJ26:AJ32)","v":0},null,0,0,0,{"$error":"#DIV/0!"},0,0,0,null,null,null,null,null,null,null,null,null,"",""]
[null,null,null,null,null,null,null,null,null,null,null,null,null,"F-Ratio","Limits",null,null,null,null,null,null,null,null,null,null,null,null,null,"B:",{"$f":"(AD17+AD18)/(AD15+AD16)","v":{"$error":"#DIV/0!"}},null,0,0,0,{"$error":"#DIV/0!"},0,0,0,null,null,null,null,null,null,null,null,null,"",""]
[null,null,null,"Date: ",null,null,null,null,null,null,null,"Non-parallelism",null,{"$f":"AG37","v":{"$error":"#DIV/0!"}},{"$f":"AH37","v":{"$error":"#NUM!"}},null,null,null,null,null,null,null,null,null,null,null,null,null,"t",{"$f":"TINV(0.05,AE41)","v":{"$error":"#NUM!"}},null,0,0,0,{"$error":"#DIV/0!"},0,0,0,null,null,null,null,null,null,null,null,null,"",""]
[null,null,null,"Sample name: ",null,null,null,null,null,null,null,"Non linearity (St)",null,{"$f":"AG38","v":{"$error":"#DIV/0!"}},{"$error":"#NUM!"},null,null,null,null,null,null,null,null,null,null,null,null,null,"s",{"$f":"SQRT(AF41)","v":{"$error":"#DIV/0!"}},null,0,0,0,{"$error":"#DIV/0!"},0,0,0,null,null,null,null,null,null,null,null,null,"",""]
[null,null,null,null,null,null,null,null,null,null,null,"Non linearity (Sa)",null,{"$error":"#DIV/0!"},{"$error":"#NUM!"},null,null,null,null,null,null,null,null,null,null,null,null,null,"g",{"$f":"AD22^2*AD23^2/(AD21^2*(AD15+AD16))","v":{"$error":"#NUM!"}}]
[null,null,null,null,null,null,null,null,null,null,null,"Relative Slope",null,{"$f":"AD48/AD45","v":{"$error":"#DIV/0!"}}," 0.90-1.10",null,null,null,null,null,null,null,null,null,null,null,null,null,null,null,null,"mi","yti","Xti","SxxTi","SyyTi","SxyTi","yi^2",null,null,null,null,null,null,null,null,null,"Regression","Dose(log)"]
[null,null,null,null,null,null,null,null,null,null,null,null,null,null,null,null,null,null,null,null,null,null,null,null,null,null,null,null,"var(P)",{"$f":"(AD23^2/AD21^2)*((1/AD5+1/AD6)+(AD28-AD11+AD12)^2/(AD15+AD16))","v":{"$error":"#DIV/0!"}},null,{"$f":"COUNTIF(AP26:AU26,\">0\")","v":0},{"$f":"SUM(AP26:AU26)","v":0},{"$f":"AF26*AW26","v":0},{"$f":"AF26*(AW26-$AD$12)^2","v":{"$error":"#DIV/0!"}},{"$f":"IF(AF26=0,0,+AF26*(AG26/AF26-$AD$14)^2)","v":0},{"$f":"IF(AF26=0,0,+AF26*(AG26/AF26-$AD$14)*(AW26-$AD$12))","v":0},{"$f":"AP26^2+AQ26^2+AR26^2+AS26^2+AT26^2+AU26^2","v":0},null,"Test sample",null,null,null,null,null,null,null,{"$f":"IF(AO26>0,AW26*$AD$48+$AD$49,\"\")","v":""},{"$f":"IF(AO26>0,LOG(AO26),\"\")","v":""}]
[null,null,null,"Italic or Bold  = Delete point. Press button Recalculate",null,null,null,null,null,null,null,null,null,null,null,null,null,null,null,null,null,null,null,null,null,null,null,null,"limit",{"$f":"(AD23*AD22/AD21)*SQRT((1-AD24)*(1/AD6+1/AD5)+(AD28-AD11+AD12)^2/(AD15+AD16))","v":{"$error":"#DIV/0!"}},null,{"$f":"COUNTIF(AP27:AU27,\">0\")","v":0},0,0,{"$error":"#DIV/0!"},0,0,0,null,null,null,null,null,null,null,null,null,"",""]
[null,null,null,null,null,null,null,null,null,null,null,null,null,null,null,null,null,null,null,null,null,null,null,null,null,null,null,null,"M",{"$f":"$AD$11-$AD$12-(AD13-AD14)/AD21","v":{"$error":"#DIV/0!"}},null,0,0,0,{"$error":"#DIV/0!"},0,0,0,null,null,null,null,null,null,null,null,null,"",""]
[null,null,null,null,null,null,null,null,null,null,null,null,null,null,null,null,null,null,null,null,null,null,null,null,null,null,null,null,"Ml",{"$f":"$AD$11-$AD$12+($AD$28-$AD$11+$AD$12+$AD$27)/(1-$AD$24)","v":{"$error":"#DIV/0!"}},null,0,0,0,{"$error":"#DIV/0!"},0,0,0,null,null,null,null,null,null,null,null,null,"",""]
[null,null,null,null,null,null,null,null,null,null,null,null,null,null,null,null,null,null,null,null,null,null,null,null,null,null,null,null,"Mu",{"$f":"$AD$11-$AD$12+($AD$28-$AD$11+$AD$12-$AD$27)/(1-$AD$24)","v":{"$error":"#DIV/0!"}},null,0,0,0,{"$error":"#DIV/0!"},0,0,0,null,null,null,null,null,null,null,null,null,"",""]
[null,null,null,null,null,null,null,null,null,null,null,null,null,null,null,null,null,null,null,null,null,null,null,null,null,null,null,null,null,null,null,0,0,0,{"$error":"#DIV/0!"},0,0,0,null,null,null,null,null,null,null,null,null,"",""]
[null,null,null,null,null,null,null,null,null,null,null,null,null,null,null,null,null,null,null,null,null,null,null,null,null,null,null,null,null,null,null,0,0,0,{"$error":"#DIV/0!"},0,0,0,null,null,null,null,null,null,null,null,null,"",""]
[]
[null,null,null,null,null,null,null,null,null,null,null,null,null,null,null,null,null,null,null,null,null,null,null,null,null,null,null,null,"Source of variation","S.S.","DF","M.S.","F RATIO","F 0.95"]
[null,null,null,null,null,null,null,null,null,null,null,null,null,null,null,null,null,null,null,null,null,null,null,null,null,null,null,null,"Preparations",{"$f":"AD7^2/AD5+AD8^2/AD6-(AD7+AD8)^2/(AD5+AD6)","v":{"$error":"#DIV/0!"}},1,{"$f":"AD35","v":{"$error":"#DIV/0!"}},{"$f":"AF35/$AF$41","v":{"$error":"#DIV/0!"}}]
[null,null,null,null,null,null,null,null,null,null,null,null,null,null,null,null,null,null,null,null,null,null,null,null,null,null,null,null,"Regression",{"$f":"(AD17+AD18)^2/(AD15+AD16)","v":{"$error":"#DIV/0!"}},1,{"$f":"AD36","v":{"$error":"#DIV/0!"}},{"$f":"AF36/$AF$41","v":{"$error":"#DIV/0!"}}]
[null,null,null,null,null,null,null,null,null,null,null,null,null,null,null,null,null,null,null,null,null,null,null,null,null,null,null,null,"Non-parallelism",{"$f":"(AD17)^2/AD15+AD18^2/AD16-(AD17+AD18)^2/(AD15+AD16)","v":{"$error":"#DIV/0!"}},1,{"$f":"AD37","v":{"$error":"#DIV/0!"}},{"$f":"AF37/$AF$41","v":{"$error":"#DIV/0!"}},{"$f":"FINV(0.05,AE37,AE$41)","v":{"$error":"#NUM!"}}]
[null,null,null,null,null,null,null,null,null,null,null,null,null,null,null,null,null,null,null,null,null,null,null,null,null,null,null,null,"Non-linearity (s)",{"$f":"AD19-AD17^2/AD15","v":{"$error":"#DIV/0!"}},{"$f":"AD3-2","v":-2},{"$f":"AD38/AE38","v":{"$error":"#DIV/0!"}},{"$f":"AF38/$AF$41","v":{"$error":"#DIV/0!"}},{"$f":"FINV(0.05,AE38,AE$41)","v":{"$error":"#NUM!"}}]
[null,null,null,null,null,null,null,null,null,null,null,null,null,null,null,null,null,null,null,null,null,null,null,null,null,null,null,null,"Non-linearity (t)",{"$f":"AD20-AD18^2/AD16","v":{"$error":"#DIV/0!"}},{"$f":"AD4-2","v":-2},{"$f":"AD39/AE39","v":{"$error":"#DIV/0!"}},{"$f":"AF39/$AF$41","v":{"$error":"#DIV/0!"}},{"$f":"FINV(0.05,AE39,AE$41)","v":{"$error":"#NUM!"}}]
[]
[null,null,null,null,null,null,null,null,null,null,5,null,null,null,null,null,null,null,null,null,null,null,null,null,null,null,null,null,"Residual Error",{"$f":"AD43-AD35-AD36-AD37-AD38-AD39","v":{"$error":"#DIV/0!"}},{"$f":"AE43-AE35-AE36-AE37-AE38-AE39","v":0},{"$f":"AD41/AE41","v":{"$error":"#DIV/0!"}}]
[]
[null,null,null,null,null,null,null,null,null,null,null,null,null,null,null,null,null,null,null,null,null,null,null,null,null,null,null,null,"Total",{"$f":"SUM(AL17:AL32)-(AD7+AD8)^2/(AD5+AD6)","v":{"$error":"#DIV/0!"}},{"$f":"(AD6+AD5)-1","v":-1}]
[]
[null,null,null,null,null,null,null,null,null,null,null,null,null,null,null,null,null,null,null,null,null,null,null,null,null,null,null,null,"Slope standard",{"$f":"AD17/AD15","v":{"$error":"#DIV/0!"}}]
[null,null,null,null,null,null,null,null,null,null,null,null,null,null,null,null,null,null,null,null,null,null,null,null,null,null,null,null,"Intercept standard",{"$f":"AD13-AD45*AD11","v":{"$error":"#DIV/0!"}}]
[]
[null,null,null,null,null,null,null,null,null,null,null,null,null,null,null,null,null,null,null,null,null,null,null,null,null,null,null,null,"Slope test",{"$f":"AD18/AD16","v":{"$error":"#DIV/0!"}}]
[null,null,null,null,null,null,null,null,null,null,null,null,null,null,null,null,null,null,null,null,null,null,null,null,null,null,null,null,"Intercept test",{"$f":"AD14-AD48*AD12","v":{"$error":"#DIV/0!"}}]
[]
[null,null,null,null,null,null,null,null,null,null,null,null,null,null,null,null,null,null,null,null,null,null,null,null,null,null,null,null,null,"Limits"]
[null,null,null,null,null,null,null,null,null,null,null,null,null,null,null,null,null,null,null,null,null,null,null,null,null,null,null,null,"Relative potency","Upper","Lower"]
[null,null,null,null,null,null,null,null,null,null,null,null,null,null,null,null,null,null,null,null,null,null,null,null,null,null,null,null,{"$f":"10^AD28","v":{"$error":"#DIV/0!"}},{"$f":"10^AD30","v":{"$error":"#DIV/0!"}},{"$f":"10^AD29","v":{"$error":"#DIV/0!"}}]
[null,null,null,null,null,null,null,null,null,null,null,null,null,null,null,null,null,null,null,null,null,null,null,null,null,null,null,null,"Potency",{"$f":"$AD$53*$N$19","v":{"$error":"#DIV/0!"}},{"$f":"$AE$53*$N$19","v":{"$error":"#DIV/0!"}}]
[null,null,null,null,null,null,null,null,null,null,null,null,null,null,null,null,null,null,null,null,null,null,null,null,null,null,null,null,"Deviation",{"$f":"(AD53-AC53)/AC53","v":{"$error":"#DIV/0!"}},{"$f":"(AE53-AC53)/AC53","v":{"$error":"#DIV/0!"}}]

{"sheet":"Sample3","index":6,"n_rows":55,"n_cols":49,"rows_kept":55,"cut":false,"hidden":false,"merged":[[21,4,21,5],[22,4,22,9]]}
[null,null,null,null,null,null,null,null,null,null,null,null,null,null,null,null,null,null,null,null,"V 1.0"]
[null,null,null,"PLA tredecim V01Sep2018",null,null,null,null,null,"y"]
[null,null,null,null,null,null,null,null,null,null,null,null,null,null,null,null,null,null,null,null,null,null,null,null,null,null,null,null,"aantal doses standaard",{"$f":"COUNT(AW17:AW23)-COUNTIF(AW17:AW23,\"=0\")","v":0}]
[null,null,null,"Sample","l","l","l","l","l","l",null,null,"Standard","l","l","l","l","l","l",null,null,null,null,null,null,null,null,null,"aantal doses test",{"$f":"COUNT(AW26:AW32)-COUNTIF(AW26:AW32,\"=0\")","v":0}]
[null,null,null,null,null,null,null,null,null,null,null,null,null,null,null,null,null,null,null,null,null,null,null,null,null,null,null,null,"aantal responses standaard",{"$f":"COUNTIF(AP17:AU23,\">0\")","v":0}]
[null,null,null,"Dose","Response",null,null,null,null,null,null,null,"Dose","Respons",null,null,null,null,null,null,null,null,null,null,null,null,null,null,"aantal responses test",{"$f":"COUNTIF(AP26:AU32,\">0\")","v":0}]
[null,null,null,null,1,2,3,4,5,6,null,null,null,1,2,3,4,5,6,null,null,null,null,null,null,null,null,null,"som responses standaard",{"$f":"SUM(AP17:AU23)","v":0}]
[null,null,1,null,null,null,null,null,null,null,null,1,null,null,null,null,null,null,null,null,null,null,null,null,null,null,null,null,"som responses test",{"$f":"SUM(AP26:AU32)","v":0}]
[null,null,2,null,null,null,null,null,null,null,null,2,null,null,null,null,null,null,null,null,null,null,null,null,null,null,null,null,"som Xsi",{"$f":"SUM(AH17:AH23)","v":0}]
[null,null,3,null,null,null,null,null,null,null,null,3,null,null,null,null,null,null,null,null,null,null,null,null,null,null,null,null,"som Xti",{"$f":"SUM(AH26:AH32)","v":0}]
[null,null,4,null,null,null,null,null,null,null,null,4,null,null,null,null,null,null,null,null,null,null,null,null,null,null,null,null,"XSm",{"$f":"AD9/AD5","v":{"$error":"#DIV/0!"}}]
[null,null,5,null,null,null,null,null,null,null,null,5,null,null,null,null,null,null,null,null,null,null,null,null,null,null,null,null,"XTm",{"$f":"AD10/AD6","v":{"$error":"#DIV/0!"}}]
[null,null,6,null,null,null,null,null,null,null,null,6,null,null,null,null,null,null,null,null,null,null,null,null,null,null,null,null,"Ysm",{"$f":"AD7/AD5","v":{"$error":"#DIV/0!"}}]
[null,null,7,null,null,null,null,null,null,null,null,7,null,null,null,null,null,null,null,null,null,null,null,null,null,null,null,null,"Ytm",{"$f":"AD8/AD6","v":{"$error":"#DIV/0!"}}]
[null,null,null,null,null,null,null,null,null,null,null,null,null,null,null,null,null,null,null,null,null,null,null,null,null,null,null,null,"SxxS:",{"$f":"SUM(AI17:AI23)","v":{"$error":"#DIV/0!"}}]
[null,null,null,null,null,null,null,null,null,null,null,null,null,null,null,null,null,null,null,null,null,null,null,null,null,null,null,null,"SxxT:",{"$f":"SUM(AI26:AI32)","v":{"$error":"#DIV/0!"}},null,"ni","ysi","Xsi","SxxSi","SyySi","SxySi","yi^2",null,null,"Dose","Responses",null,null,null,null,null,"Regression","Dose(log)"]
[null,null,null,null,null,null,null,null,null,null,null,null,null,null,null,null,null,null,null,null,null,null,null,null,null,null,null,null,"SxyS:",{"$f":"SUM(AK17:AK23)","v":0},null,{"$f":"COUNTIF(AP17:AU17,\">0\")","v":0},{"$f":"SUM(AP17:AU17)","v":0},{"$f":"AF17*AW17","v":0},{"$f":"AF17*(AW17-$AD$11)^2","v":{"$error":"#DIV/0!"}},{"$f":"IF(AF17=0,0,+AF17*(AG17/AF17-$AD$13)^2)","v":0},{"$f":"IF(AF17=0,0,+AF17*(AG17/AF17-$AD$13)*(AW17-$AD$11))","v":0},{"$f":"AP17^2+AQ17^2+AR17^2+AS17^2+AT17^2+AU17^2","v":0},null,"Standard",null,null,null,null,null,null,null,{"$f":"IF(AO17>0,AW17*$AD$45+$AD$46,\"\")","v":""},{"$f":"IF(AO17>0,LOG(AO17),\"\")","v":""}]
[null,null,null,"Sample: ",null,null,null,null,null,null,null,null,"Standard name:",null,null,null,null,null,null,null,null,null,null,null,null,null,null,null,"SxyT:",{"$f":"SUM(AK26:AK32)","v":0},null,{"$f":"COUNTIF(AP18:AU18,\">0\")","v":0},{"$f":"SUM(AP18:AU18)","v":0},0,{"$error":"#DIV/0!"},0,0,{"$f":"AP18^2+AQ18^2+AR18^2+AS18^2+AT18^2+AU18^2","v":0},null,null,null,null,null,null,null,null,null,"",""]
[null,null,null,"Potency: ",{"$f":"AC53*N19","v":{"$error":"#DIV/0!"}},{"$f":"O19","v":0},null,null,null,null,null,null,"Potency:",null,null,null,null,null,null,null,null,null,null,null,null,null,null,null,"SyyS:",{"$f":"SUM(AJ17:AJ23)","v":0},null,0,0,0,{"$error":"#DIV/0!"},0,0,0,null,null,null,null,null,null,null,null,null,"",""]
[null,null,null,"CI: ",{"$f":"\"(\"&TEXT(MIN(AD54:AE54),\"0.#0\")&\" - \"&TEXT(MAX(AD54:AE54),\"0.#0) \")&\"= +/-\"","v":{"$error":"#VALUE!"}},null,{"$f":"ABS((AD54-AE54)/(2*E19))","v":{"$error":"#DIV/0!"}},null,null,null,null,null,null,null,null,null,null,null,null,null,null,null,null,null,null,null,null,null,"SyyT:",{"$f":"SUM(AJ26:AJ32)","v":0},null,0,0,0,{"$error":"#DIV/0!"},0,0,0,null,null,null,null,null,null,null,null,null,"",""]
[null,null,null,null,null,null,null,null,null,null,null,null,null,"F-Ratio","Limits",null,null,null,null,null,null,null,null,null,null,null,null,null,"B:",{"$f":"(AD17+AD18)/(AD15+AD16)","v":{"$error":"#DIV/0!"}},null,0,0,0,{"$error":"#DIV/0!"},0,0,0,null,null,null,null,null,null,null,null,null,"",""]
[null,null,null,"Date: ",null,null,null,null,null,null,null,"Non-parallelism",null,{"$f":"AG37","v":{"$error":"#DIV/0!"}},{"$f":"AH37","v":{"$error":"#NUM!"}},null,null,null,null,null,null,null,null,null,null,null,null,null,"t",{"$f":"TINV(0.05,AE41)","v":{"$error":"#NUM!"}},null,0,0,0,{"$error":"#DIV/0!"},0,0,0,null,null,null,null,null,null,null,null,null,"",""]
[null,null,null,"Sample name: ",null,null,null,null,null,null,null,"Non linearity (St)",null,{"$f":"AG38","v":{"$error":"#DIV/0!"}},{"$error":"#NUM!"},null,null,null,null,null,null,null,null,null,null,null,null,null,"s",{"$f":"SQRT(AF41)","v":{"$error":"#DIV/0!"}},null,0,0,0,{"$error":"#DIV/0!"},0,0,0,null,null,null,null,null,null,null,null,null,"",""]
[null,null,null,null,null,null,null,null,null,null,null,"Non linearity (Sa)",null,{"$error":"#DIV/0!"},{"$error":"#NUM!"},null,null,null,null,null,null,null,null,null,null,null,null,null,"g",{"$f":"AD22^2*AD23^2/(AD21^2*(AD15+AD16))","v":{"$error":"#NUM!"}}]
[null,null,null,null,null,null,null,null,null,null,null,"Relative Slope",null,{"$f":"AD48/AD45","v":{"$error":"#DIV/0!"}}," 0.90-1.10",null,null,null,null,null,null,null,null,null,null,null,null,null,null,null,null,"mi","yti","Xti","SxxTi","SyyTi","SxyTi","yi^2",null,null,null,null,null,null,null,null,null,"Regression","Dose(log)"]
[null,null,null,null,null,null,null,null,null,null,null,null,null,null,null,null,null,null,null,null,null,null,null,null,null,null,null,null,"var(P)",{"$f":"(AD23^2/AD21^2)*((1/AD5+1/AD6)+(AD28-AD11+AD12)^2/(AD15+AD16))","v":{"$error":"#DIV/0!"}},null,{"$f":"COUNTIF(AP26:AU26,\">0\")","v":0},{"$f":"SUM(AP26:AU26)","v":0},{"$f":"AF26*AW26","v":0},{"$f":"AF26*(AW26-$AD$12)^2","v":{"$error":"#DIV/0!"}},{"$f":"IF(AF26=0,0,+AF26*(AG26/AF26-$AD$14)^2)","v":0},{"$f":"IF(AF26=0,0,+AF26*(AG26/AF26-$AD$14)*(AW26-$AD$12))","v":0},{"$f":"AP26^2+AQ26^2+AR26^2+AS26^2+AT26^2+AU26^2","v":0},null,"Test sample",null,null,null,null,null,null,null,{"$f":"IF(AO26>0,AW26*$AD$48+$AD$49,\"\")","v":""},{"$f":"IF(AO26>0,LOG(AO26),\"\")","v":""}]
[null,null,null,"Italic or Bold  = Delete point. Press button Recalculate",null,null,null,null,null,null,null,null,null,null,null,null,null,null,null,null,null,null,null,null,null,null,null,null,"limit",{"$f":"(AD23*AD22/AD21)*SQRT((1-AD24)*(1/AD6+1/AD5)+(AD28-AD11+AD12)^2/(AD15+AD16))","v":{"$error":"#DIV/0!"}},null,{"$f":"COUNTIF(AP27:AU27,\">0\")","v":0},0,0,{"$error":"#DIV/0!"},0,0,0,null,null,null,null,null,null,null,null,null,"",""]
[null,null,null,null,null,null,null,null,null,null,null,null,null,null,null,null,null,null,null,null,null,null,null,null,null,null,null,null,"M",{"$f":"$AD$11-$AD$12-(AD13-AD14)/AD21","v":{"$error":"#DIV/0!"}},null,0,0,0,{"$error":"#DIV/0!"},0,0,0,null,null,null,null,null,null,null,null,null,"",""]
[null,null,null,null,null,null,null,null,null,null,null,null,null,null,null,null,null,null,null,null,null,null,null,null,null,null,null,null,"Ml",{"$f":"$AD$11-$AD$12+($AD$28-$AD$11+$AD$12+$AD$27)/(1-$AD$24)","v":{"$error":"#DIV/0!"}},null,0,0,0,{"$error":"#DIV/0!"},0,0,0,null,null,null,null,null,null,null,null,null,"",""]
[null,null,null,null,null,null,null,null,null,null,null,null,null,null,null,null,null,null,null,null,null,null,null,null,null,null,null,null,"Mu",{"$f":"$AD$11-$AD$12+($AD$28-$AD$11+$AD$12-$AD$27)/(1-$AD$24)","v":{"$error":"#DIV/0!"}},null,0,0,0,{"$error":"#DIV/0!"},0,0,0,null,null,null,null,null,null,null,null,null,"",""]
[null,null,null,null,null,null,null,null,null,null,null,null,null,null,null,null,null,null,null,null,null,null,null,null,null,null,null,null,null,null,null,0,0,0,{"$error":"#DIV/0!"},0,0,0,null,null,null,null,null,null,null,null,null,"",""]
[null,null,null,null,null,null,null,null,null,null,null,null,null,null,null,null,null,null,null,null,null,null,null,null,null,null,null,null,null,null,null,0,0,0,{"$error":"#DIV/0!"},0,0,0,null,null,null,null,null,null,null,null,null,"",""]
[]
[null,null,null,null,null,null,null,null,null,null,null,null,null,null,null,null,null,null,null,null,null,null,null,null,null,null,null,null,"Source of variation","S.S.","DF","M.S.","F RATIO","F 0.95"]
[null,null,null,null,null,null,null,null,null,null,null,null,null,null,null,null,null,null,null,null,null,null,null,null,null,null,null,null,"Preparations",{"$f":"AD7^2/AD5+AD8^2/AD6-(AD7+AD8)^2/(AD5+AD6)","v":{"$error":"#DIV/0!"}},1,{"$f":"AD35","v":{"$error":"#DIV/0!"}},{"$f":"AF35/$AF$41","v":{"$error":"#DIV/0!"}}]
[null,null,null,null,null,null,null,null,null,null,null,null,null,null,null,null,null,null,null,null,null,null,null,null,null,null,null,null,"Regression",{"$f":"(AD17+AD18)^2/(AD15+AD16)","v":{"$error":"#DIV/0!"}},1,{"$f":"AD36","v":{"$error":"#DIV/0!"}},{"$f":"AF36/$AF$41","v":{"$error":"#DIV/0!"}}]
[null,null,null,null,null,null,null,null,null,null,null,null,null,null,null,null,null,null,null,null,null,null,null,null,null,null,null,null,"Non-parallelism",{"$f":"(AD17)^2/AD15+AD18^2/AD16-(AD17+AD18)^2/(AD15+AD16)","v":{"$error":"#DIV/0!"}},1,{"$f":"AD37","v":{"$error":"#DIV/0!"}},{"$f":"AF37/$AF$41","v":{"$error":"#DIV/0!"}},{"$f":"FINV(0.05,AE37,AE$41)","v":{"$error":"#NUM!"}}]
[null,null,null,null,null,null,null,null,null,null,null,null,null,null,null,null,null,null,null,null,null,null,null,null,null,null,null,null,"Non-linearity (s)",{"$f":"AD19-AD17^2/AD15","v":{"$error":"#DIV/0!"}},{"$f":"AD3-2","v":-2},{"$f":"AD38/AE38","v":{"$error":"#DIV/0!"}},{"$f":"AF38/$AF$41","v":{"$error":"#DIV/0!"}},{"$f":"FINV(0.05,AE38,AE$41)","v":{"$error":"#NUM!"}}]
[null,null,null,null,null,null,null,null,null,null,null,null,null,null,null,null,null,null,null,null,null,null,null,null,null,null,null,null,"Non-linearity (t)",{"$f":"AD20-AD18^2/AD16","v":{"$error":"#DIV/0!"}},{"$f":"AD4-2","v":-2},{"$f":"AD39/AE39","v":{"$error":"#DIV/0!"}},{"$f":"AF39/$AF$41","v":{"$error":"#DIV/0!"}},{"$f":"FINV(0.05,AE39,AE$41)","v":{"$error":"#NUM!"}}]
[]
[null,null,null,null,null,null,null,null,null,null,5,null,null,null,null,null,null,null,null,null,null,null,null,null,null,null,null,null,"Residual Error",{"$f":"AD43-AD35-AD36-AD37-AD38-AD39","v":{"$error":"#DIV/0!"}},{"$f":"AE43-AE35-AE36-AE37-AE38-AE39","v":0},{"$f":"AD41/AE41","v":{"$error":"#DIV/0!"}}]
[]
[null,null,null,null,null,null,null,null,null,null,null,null,null,null,null,null,null,null,null,null,null,null,null,null,null,null,null,null,"Total",{"$f":"SUM(AL17:AL32)-(AD7+AD8)^2/(AD5+AD6)","v":{"$error":"#DIV/0!"}},{"$f":"(AD6+AD5)-1","v":-1}]
[]
[null,null,null,null,null,null,null,null,null,null,null,null,null,null,null,null,null,null,null,null,null,null,null,null,null,null,null,null,"Slope standard",{"$f":"AD17/AD15","v":{"$error":"#DIV/0!"}}]
[null,null,null,null,null,null,null,null,null,null,null,null,null,null,null,null,null,null,null,null,null,null,null,null,null,null,null,null,"Intercept standard",{"$f":"AD13-AD45*AD11","v":{"$error":"#DIV/0!"}}]
[]
[null,null,null,null,null,null,null,null,null,null,null,null,null,null,null,null,null,null,null,null,null,null,null,null,null,null,null,null,"Slope test",{"$f":"AD18/AD16","v":{"$error":"#DIV/0!"}}]
[null,null,null,null,null,null,null,null,null,null,null,null,null,null,null,null,null,null,null,null,null,null,null,null,null,null,null,null,"Intercept test",{"$f":"AD14-AD48*AD12","v":{"$error":"#DIV/0!"}}]
[]
[null,null,null,null,null,null,null,null,null,null,null,null,null,null,null,null,null,null,null,null,null,null,null,null,null,null,null,null,null,"Limits"]
[null,null,null,null,null,null,null,null,null,null,null,null,null,null,null,null,null,null,null,null,null,null,null,null,null,null,null,null,"Relative potency","Upper","Lower"]
[null,null,null,null,null,null,null,null,null,null,null,null,null,null,null,null,null,null,null,null,null,null,null,null,null,null,null,null,{"$f":"10^AD28","v":{"$error":"#DIV/0!"}},{"$f":"10^AD30","v":{"$error":"#DIV/0!"}},{"$f":"10^AD29","v":{"$error":"#DIV/0!"}}]
[null,null,null,null,null,null,null,null,null,null,null,null,null,null,null,null,null,null,null,null,null,null,null,null,null,null,null,null,"Potency",{"$f":"$AD$53*$N$19","v":{"$error":"#DIV/0!"}},{"$f":"$AE$53*$N$19","v":{"$error":"#DIV/0!"}}]
[null,null,null,null,null,null,null,null,null,null,null,null,null,null,null,null,null,null,null,null,null,null,null,null,null,null,null,null,"Deviation",{"$f":"(AD53-AC53)/AC53","v":{"$error":"#DIV/0!"}},{"$f":"(AE53-AC53)/AC53","v":{"$error":"#DIV/0!"}}]

{"sheet":"Sample4","index":7,"n_rows":55,"n_cols":49,"rows_kept":55,"cut":false,"hidden":false,"merged":[[21,4,21,5],[22,4,22,9]]}
[null,null,null,null,null,null,null,null,null,null,null,null,null,null,null,null,null,null,null,null,"V 1.0"]
[null,null,null,"PLA tredecim V01Sep2018"]
[null,null,null,null,null,null,null,null,null,null,null,null,null,null,null,null,null,null,null,null,null,null,null,null,null,null,null,null,"aantal doses standaard",{"$f":"COUNT(AW17:AW23)-COUNTIF(AW17:AW23,\"=0\")","v":0}]
[null,null,null,"Sample","l","l","l","l","l","l",null,null,"Standard","l","l","l","l","l","l",null,null,null,null,null,null,null,null,null,"aantal doses test",{"$f":"COUNT(AW26:AW32)-COUNTIF(AW26:AW32,\"=0\")","v":0}]
[null,null,null,null,null,null,null,null,null,null,null,null,null,null,null,null,null,null,null,null,null,null,null,null,null,null,null,null,"aantal responses standaard",{"$f":"COUNTIF(AP17:AU23,\">0\")","v":0}]
[null,null,null,"Dose","Response",null,null,null,null,null,null,null,"Dose","Respons",null,null,null,null,null,null,null,null,null,null,null,null,null,null,"aantal responses test",{"$f":"COUNTIF(AP26:AU32,\">0\")","v":0}]
[null,null,null,null,1,2,3,4,5,6,null,null,null,1,2,3,4,5,6,null,null,null,null,null,null,null,null,null,"som responses standaard",{"$f":"SUM(AP17:AU23)","v":0}]
[null,null,1,null,null,null,null,null,null,null,null,1,null,null,null,null,null,null,null,null,null,null,null,null,null,null,null,null,"som responses test",{"$f":"SUM(AP26:AU32)","v":0}]
[null,null,2,null,null,null,null,null,null,null,null,2,null,null,null,null,null,null,null,null,null,null,null,null,null,null,null,null,"som Xsi",{"$f":"SUM(AH17:AH23)","v":0}]
[null,null,3,null,null,null,null,null,null,null,null,3,null,null,null,null,null,null,null,null,null,null,null,null,null,null,null,null,"som Xti",{"$f":"SUM(AH26:AH32)","v":0}]
[null,null,4,null,null,null,null,null,null,null,null,4,null,null,null,null,null,null,null,null,null,null,null,null,null,null,null,null,"XSm",{"$f":"AD9/AD5","v":{"$error":"#DIV/0!"}}]
[null,null,5,null,null,null,null,null,null,null,null,5,null,null,null,null,null,null,null,null,null,null,null,null,null,null,null,null,"XTm",{"$f":"AD10/AD6","v":{"$error":"#DIV/0!"}}]
[null,null,6,null,null,null,null,null,null,null,null,6,null,null,null,null,null,null,null,null,null,null,null,null,null,null,null,null,"Ysm",{"$f":"AD7/AD5","v":{"$error":"#DIV/0!"}}]
[null,null,7,null,null,null,null,null,null,null,null,7,null,null,null,null,null,null,null,null,null,null,null,null,null,null,null,null,"Ytm",{"$f":"AD8/AD6","v":{"$error":"#DIV/0!"}}]
[null,null,null,null,null,null,null,null,null,null,null,null,null,null,null,null,null,null,null,null,null,null,null,null,null,null,null,null,"SxxS:",{"$f":"SUM(AI17:AI23)","v":{"$error":"#DIV/0!"}}]
[null,null,null,null,null,null,null,null,null,null,null,null,null,null,null,null,null,null,null,null,null,null,null,null,null,null,null,null,"SxxT:",{"$f":"SUM(AI26:AI32)","v":{"$error":"#DIV/0!"}},null,"ni","ysi","Xsi","SxxSi","SyySi","SxySi","yi^2",null,null,"Dose","Responses",null,null,null,null,null,"Regression","Dose(log)"]
[null,null,null,null,null,null,null,null,null,null,null,null,null,null,null,null,null,null,null,null,null,null,null,null,null,null,null,null,"SxyS:",{"$f":"SUM(AK17:AK23)","v":0},null,{"$f":"COUNTIF(AP17:AU17,\">0\")","v":0},{"$f":"SUM(AP17:AU17)","v":0},{"$f":"AF17*AW17","v":0},{"$f":"AF17*(AW17-$AD$11)^2","v":{"$error":"#DIV/0!"}},{"$f":"IF(AF17=0,0,+AF17*(AG17/AF17-$AD$13)^2)","v":0},{"$f":"IF(AF17=0,0,+AF17*(AG17/AF17-$AD$13)*(AW17-$AD$11))","v":0},{"$f":"AP17^2+AQ17^2+AR17^2+AS17^2+AT17^2+AU17^2","v":0},null,"Standard",null,null,null,null,null,null,null,{"$f":"IF(AO17>0,AW17*$AD$45+$AD$46,\"\")","v":""},{"$f":"IF(AO17>0,LOG(AO17),\"\")","v":""}]
[null,null,null,"Sample: ",null,null,null,null,null,null,null,null,"Standard name:",null,null,null,null,null,null,null,null,null,null,null,null,null,null,null,"SxyT:",{"$f":"SUM(AK26:AK32)","v":0},null,{"$f":"COUNTIF(AP18:AU18,\">0\")","v":0},{"$f":"SUM(AP18:AU18)","v":0},0,{"$error":"#DIV/0!"},0,0,{"$f":"AP18^2+AQ18^2+AR18^2+AS18^2+AT18^2+AU18^2","v":0},null,null,null,null,null,null,null,null,null,"",""]
[null,null,null,"Potency: ",{"$f":"AC53*N19","v":{"$error":"#DIV/0!"}},{"$f":"O19","v":0},null,null,null,null,null,null,"Potency:",null,null,null,null,null,null,null,null,null,null,null,null,null,null,null,"SyyS:",{"$f":"SUM(AJ17:AJ23)","v":0},null,0,0,0,{"$error":"#DIV/0!"},0,0,0,null,null,null,null,null,null,null,null,null,"",""]
[null,null,null,"CI: ",{"$f":"\"(\"&TEXT(MIN(AD54:AE54),\"0.#0\")&\" - \"&TEXT(MAX(AD54:AE54),\"0.#0) \")&\"= +/-\"","v":{"$error":"#VALUE!"}},null,{"$f":"ABS((AD54-AE54)/(2*E19))","v":{"$error":"#DIV/0!"}},null,null,null,null,null,null,null,null,null,null,null,null,null,null,null,null,null,null,null,null,null,"SyyT:",{"$f":"SUM(AJ26:AJ32)","v":0},null,0,0,0,{"$error":"#DIV/0!"},0,0,0,null,null,null,null,null,null,null,null,null,"",""]
[null,null,null,null,null,null,null,null,null,null,null,null,null,"F-Ratio","Limits",null,null,null,null,null,null,null,null,null,null,null,null,null,"B:",{"$f":"(AD17+AD18)/(AD15+AD16)","v":{"$error":"#DIV/0!"}},null,0,0,0,{"$error":"#DIV/0!"},0,0,0,null,null,null,null,null,null,null,null,null,"",""]
[null,null,null,"Date: ",null,null,null,null,null,null,null,"Non-parallelism",null,{"$f":"AG37","v":{"$error":"#DIV/0!"}},{"$f":"AH37","v":{"$error":"#NUM!"}},null,null,null,null,null,null,null,null,null,null,null,null,null,"t",{"$f":"TINV(0.05,AE41)","v":{"$error":"#NUM!"}},null,0,0,0,{"$error":"#DIV/0!"},0,0,0,null,null,null,null,null,null,null,null,null,"",""]
[null,null,null,"Sample name: ",null,null,null,null,null,null,null,"Non linearity (St)",null,{"$f":"AG38","v":{"$error":"#DIV/0!"}},{"$error":"#NUM!"},null,null,null,null,null,null,null,null,null,null,null,null,null,"s",{"$f":"SQRT(AF41)","v":{"$error":"#DIV/0!"}},null,0,0,0,{"$error":"#DIV/0!"},0,0,0,null,null,null,null,null,null,null,null,null,"",""]
[null,null,null,null,null,null,null,null,null,null,null,"Non linearity (Sa)",null,{"$error":"#DIV/0!"},{"$error":"#NUM!"},null,null,null,null,null,null,null,null,null,null,null,null,null,"g",{"$f":"AD22^2*AD23^2/(AD21^2*(AD15+AD16))","v":{"$error":"#NUM!"}}]
[null,null,null,null,null,null,null,null,null,null,null,"Relative Slope",null,{"$f":"AD48/AD45","v":{"$error":"#DIV/0!"}}," 0.90-1.10",null,null,null,null,null,null,null,null,null,null,null,null,null,null,null,null,"mi","yti","Xti","SxxTi","SyyTi","SxyTi","yi^2",null,null,null,null,null,null,null,null,null,"Regression","Dose(log)"]
[null,null,null,null,null,null,null,null,null,null,null,null,null,null,null,null,null,null,null,null,null,null,null,null,null,null,null,null,"var(P)",{"$f":"(AD23^2/AD21^2)*((1/AD5+1/AD6)+(AD28-AD11+AD12)^2/(AD15+AD16))","v":{"$error":"#DIV/0!"}},null,{"$f":"COUNTIF(AP26:AU26,\">0\")","v":0},{"$f":"SUM(AP26:AU26)","v":0},{"$f":"AF26*AW26","v":0},{"$f":"AF26*(AW26-$AD$12)^2","v":{"$error":"#DIV/0!"}},{"$f":"IF(AF26=0,0,+AF26*(AG26/AF26-$AD$14)^2)","v":0},{"$f":"IF(AF26=0,0,+AF26*(AG26/AF26-$AD$14)*(AW26-$AD$12))","v":0},{"$f":"AP26^2+AQ26^2+AR26^2+AS26^2+AT26^2+AU26^2","v":0},null,"Test sample",null,null,null,null,null,null,null,{"$f":"IF(AO26>0,AW26*$AD$48+$AD$49,\"\")","v":""},{"$f":"IF(AO26>0,LOG(AO26),\"\")","v":""}]
[null,null,null,"Italic or Bold  = Delete point. Press button Recalculate",null,null,null,null,null,null,null,null,null,null,null,null,null,null,null,null,null,null,null,null,null,null,null,null,"limit",{"$f":"(AD23*AD22/AD21)*SQRT((1-AD24)*(1/AD6+1/AD5)+(AD28-AD11+AD12)^2/(AD15+AD16))","v":{"$error":"#DIV/0!"}},null,{"$f":"COUNTIF(AP27:AU27,\">0\")","v":0},0,0,{"$error":"#DIV/0!"},0,0,0,null,null,null,null,null,null,null,null,null,"",""]
[null,null,null,null,null,null,null,null,null,null,null,null,null,null,null,null,null,null,null,null,null,null,null,null,null,null,null,null,"M",{"$f":"$AD$11-$AD$12-(AD13-AD14)/AD21","v":{"$error":"#DIV/0!"}},null,0,0,0,{"$error":"#DIV/0!"},0,0,0,null,null,null,null,null,null,null,null,null,"",""]
[null,null,null,null,null,null,null,null,null,null,null,null,null,null,null,null,null,null,null,null,null,null,null,null,null,null,null,null,"Ml",{"$f":"$AD$11-$AD$12+($AD$28-$AD$11+$AD$12+$AD$27)/(1-$AD$24)","v":{"$error":"#DIV/0!"}},null,0,0,0,{"$error":"#DIV/0!"},0,0,0,null,null,null,null,null,null,null,null,null,"",""]
[null,null,null,null,null,null,null,null,null,null,null,null,null,null,null,null,null,null,null,null,null,null,null,null,null,null,null,null,"Mu",{"$f":"$AD$11-$AD$12+($AD$28-$AD$11+$AD$12-$AD$27)/(1-$AD$24)","v":{"$error":"#DIV/0!"}},null,0,0,0,{"$error":"#DIV/0!"},0,0,0,null,null,null,null,null,null,null,null,null,"",""]
[null,null,null,null,null,null,null,null,null,null,null,null,null,null,null,null,null,null,null,null,null,null,null,null,null,null,null,null,null,null,null,0,0,0,{"$error":"#DIV/0!"},0,0,0,null,null,null,null,null,null,null,null,null,"",""]
[null,null,null,null,null,null,null,null,null,null,null,null,null,null,null,null,null,null,null,null,null,null,null,null,null,null,null,null,null,null,null,0,0,0,{"$error":"#DIV/0!"},0,0,0,null,null,null,null,null,null,null,null,null,"",""]
[]
[null,null,null,null,null,null,null,null,null,null,null,null,null,null,null,null,null,null,null,null,null,null,null,null,null,null,null,null,"Source of variation","S.S.","DF","M.S.","F RATIO","F 0.95"]
[null,null,null,null,null,null,null,null,null,null,null,null,null,null,null,null,null,null,null,null,null,null,null,null,null,null,null,null,"Preparations",{"$f":"AD7^2/AD5+AD8^2/AD6-(AD7+AD8)^2/(AD5+AD6)","v":{"$error":"#DIV/0!"}},1,{"$f":"AD35","v":{"$error":"#DIV/0!"}},{"$f":"AF35/$AF$41","v":{"$error":"#DIV/0!"}}]
[null,null,null,null,null,null,null,null,null,null,null,null,null,null,null,null,null,null,null,null,null,null,null,null,null,null,null,null,"Regression",{"$f":"(AD17+AD18)^2/(AD15+AD16)","v":{"$error":"#DIV/0!"}},1,{"$f":"AD36","v":{"$error":"#DIV/0!"}},{"$f":"AF36/$AF$41","v":{"$error":"#DIV/0!"}}]
[null,null,null,null,null,null,null,null,null,null,null,null,null,null,null,null,null,null,null,null,null,null,null,null,null,null,null,null,"Non-parallelism",{"$f":"(AD17)^2/AD15+AD18^2/AD16-(AD17+AD18)^2/(AD15+AD16)","v":{"$error":"#DIV/0!"}},1,{"$f":"AD37","v":{"$error":"#DIV/0!"}},{"$f":"AF37/$AF$41","v":{"$error":"#DIV/0!"}},{"$f":"FINV(0.05,AE37,AE$41)","v":{"$error":"#NUM!"}}]
[null,null,null,null,null,null,null,null,null,null,null,null,null,null,null,null,null,null,null,null,null,null,null,null,null,null,null,null,"Non-linearity (s)",{"$f":"AD19-AD17^2/AD15","v":{"$error":"#DIV/0!"}},{"$f":"AD3-2","v":-2},{"$f":"AD38/AE38","v":{"$error":"#DIV/0!"}},{"$f":"AF38/$AF$41","v":{"$error":"#DIV/0!"}},{"$f":"FINV(0.05,AE38,AE$41)","v":{"$error":"#NUM!"}}]
[null,null,null,null,null,null,null,null,null,null,null,null,null,null,null,null,null,null,null,null,null,null,null,null,null,null,null,null,"Non-linearity (t)",{"$f":"AD20-AD18^2/AD16","v":{"$error":"#DIV/0!"}},{"$f":"AD4-2","v":-2},{"$f":"AD39/AE39","v":{"$error":"#DIV/0!"}},{"$f":"AF39/$AF$41","v":{"$error":"#DIV/0!"}},{"$f":"FINV(0.05,AE39,AE$41)","v":{"$error":"#NUM!"}}]
[]
[null,null,null,null,null,null,null,null,null,null,5,null,null,null,null,null,null,null,null,null,null,null,null,null,null,null,null,null,"Residual Error",{"$f":"AD43-AD35-AD36-AD37-AD38-AD39","v":{"$error":"#DIV/0!"}},{"$f":"AE43-AE35-AE36-AE37-AE38-AE39","v":0},{"$f":"AD41/AE41","v":{"$error":"#DIV/0!"}}]
[]
[null,null,null,null,null,null,null,null,null,null,null,null,null,null,null,null,null,null,null,null,null,null,null,null,null,null,null,null,"Total",{"$f":"SUM(AL17:AL32)-(AD7+AD8)^2/(AD5+AD6)","v":{"$error":"#DIV/0!"}},{"$f":"(AD6+AD5)-1","v":-1}]
[]
[null,null,null,null,null,null,null,null,null,null,null,null,null,null,null,null,null,null,null,null,null,null,null,null,null,null,null,null,"Slope standard",{"$f":"AD17/AD15","v":{"$error":"#DIV/0!"}}]
[null,null,null,null,null,null,null,null,null,null,null,null,null,null,null,null,null,null,null,null,null,null,null,null,null,null,null,null,"Intercept standard",{"$f":"AD13-AD45*AD11","v":{"$error":"#DIV/0!"}}]
[]
[null,null,null,null,null,null,null,null,null,null,null,null,null,null,null,null,null,null,null,null,null,null,null,null,null,null,null,null,"Slope test",{"$f":"AD18/AD16","v":{"$error":"#DIV/0!"}}]
[null,null,null,null,null,null,null,null,null,null,null,null,null,null,null,null,null,null,null,null,null,null,null,null,null,null,null,null,"Intercept test",{"$f":"AD14-AD48*AD12","v":{"$error":"#DIV/0!"}}]
[]
[null,null,null,null,null,null,null,null,null,null,null,null,null,null,null,null,null,null,null,null,null,null,null,null,null,null,null,null,null,"Limits"]
[null,null,null,null,null,null,null,null,null,null,null,null,null,null,null,null,null,null,null,null,null,null,null,null,null,null,null,null,"Relative potency","Upper","Lower"]
[null,null,null,null,null,null,null,null,null,null,null,null,null,null,null,null,null,null,null,null,null,null,null,null,null,null,null,null,{"$f":"10^AD28","v":{"$error":"#DIV/0!"}},{"$f":"10^AD30","v":{"$error":"#DIV/0!"}},{"$f":"10^AD29","v":{"$error":"#DIV/0!"}}]
[null,null,null,null,null,null,null,null,null,null,null,null,null,null,null,null,null,null,null,null,null,null,null,null,null,null,null,null,"Potency",{"$f":"$AD$53*$N$19","v":{"$error":"#DIV/0!"}},{"$f":"$AE$53*$N$19","v":{"$error":"#DIV/0!"}}]
[null,null,null,null,null,null,null,null,null,null,null,null,null,null,null,null,null,null,null,null,null,null,null,null,null,null,null,null,"Deviation",{"$f":"(AD53-AC53)/AC53","v":{"$error":"#DIV/0!"}},{"$f":"(AE53-AC53)/AC53","v":{"$error":"#DIV/0!"}}]

{"sheet":"Sample5","index":8,"n_rows":55,"n_cols":49,"rows_kept":55,"cut":false,"hidden":false,"merged":[[21,4,21,5],[22,4,22,9]]}
[null,null,null,null,null,null,null,null,null,null,null,null,null,null,null,null,null,null,null,null,"V 1.0"]
[null,null,null,"PLA tredecim V01Sep2018"]
[null,null,null,null,null,null,null,null,null,null,null,null,null,null,null,null,null,null,null,null,null,null,null,null,null,null,null,null,"aantal doses standaard",{"$f":"COUNT(AW17:AW23)-COUNTIF(AW17:AW23,\"=0\")","v":0}]
[null,null,null,"Sample","l","l","l","l","l","l",null,null,"Standard","l","l","l","l","l","l",null,null,null,null,null,null,null,null,null,"aantal doses test",{"$f":"COUNT(AW26:AW32)-COUNTIF(AW26:AW32,\"=0\")","v":0}]
[null,null,null,null,null,null,null,null,null,null,null,null,null,null,null,null,null,null,null,null,null,null,null,null,null,null,null,null,"aantal responses standaard",{"$f":"COUNTIF(AP17:AU23,\">0\")","v":0}]
[null,null,null,"Dose","Response",null,null,null,null,null,null,null,"Dose","Respons",null,null,null,null,null,null,null,null,null,null,null,null,null,null,"aantal responses test",{"$f":"COUNTIF(AP26:AU32,\">0\")","v":0}]
[null,null,null,null,1,2,3,4,5,6,null,null,null,1,2,3,4,5,6,null,null,null,null,null,null,null,null,null,"som responses standaard",{"$f":"SUM(AP17:AU23)","v":0}]
[null,null,1,null,null,null,null,null,null,null,null,1,null,null,null,null,null,null,null,null,null,null,null,null,null,null,null,null,"som responses test",{"$f":"SUM(AP26:AU32)","v":0}]
[null,null,2,null,null,null,null,null,null,null,null,2,null,null,null,null,null,null,null,null,null,null,null,null,null,null,null,null,"som Xsi",{"$f":"SUM(AH17:AH23)","v":0}]
[null,null,3,null,null,null,null,null,null,null,null,3,null,null,null,null,null,null,null,null,null,null,null,null,null,null,null,null,"som Xti",{"$f":"SUM(AH26:AH32)","v":0}]
[null,null,4,null,null,null,null,null,null,null,null,4,null,null,null,null,null,null,null,null,null,null,null,null,null,null,null,null,"XSm",{"$f":"AD9/AD5","v":{"$error":"#DIV/0!"}}]
[null,null,5,null,null,null,null,null,null,null,null,5,null,null,null,null,null,null,null,null,null,null,null,null,null,null,null,null,"XTm",{"$f":"AD10/AD6","v":{"$error":"#DIV/0!"}}]
[null,null,6,null,null,null,null,null,null,null,null,6,null,null,null,null,null,null,null,null,null,null,null,null,null,null,null,null,"Ysm",{"$f":"AD7/AD5","v":{"$error":"#DIV/0!"}}]
[null,null,7,null,null,null,null,null,null,null,null,7,null,null,null,null,null,null,null,null,null,null,null,null,null,null,null,null,"Ytm",{"$f":"AD8/AD6","v":{"$error":"#DIV/0!"}}]
[null,null,null,null,null,null,null,null,null,null,null,null,null,null,null,null,null,null,null,null,null,null,null,null,null,null,null,null,"SxxS:",{"$f":"SUM(AI17:AI23)","v":{"$error":"#DIV/0!"}}]
[null,null,null,null,null,null,null,null,null,null,null,null,null,null,null,null,null,null,null,null,null,null,null,null,null,null,null,null,"SxxT:",{"$f":"SUM(AI26:AI32)","v":{"$error":"#DIV/0!"}},null,"ni","ysi","Xsi","SxxSi","SyySi","SxySi","yi^2",null,null,"Dose","Responses",null,null,null,null,null,"Regression","Dose(log)"]
[null,null,null,null,null,null,null,null,null,null,null,null,null,null,null,null,null,null,null,null,null,null,null,null,null,null,null,null,"SxyS:",{"$f":"SUM(AK17:AK23)","v":0},null,{"$f":"COUNTIF(AP17:AU17,\">0\")","v":0},{"$f":"SUM(AP17:AU17)","v":0},{"$f":"AF17*AW17","v":0},{"$f":"AF17*(AW17-$AD$11)^2","v":{"$error":"#DIV/0!"}},{"$f":"IF(AF17=0,0,+AF17*(AG17/AF17-$AD$13)^2)","v":0},{"$f":"IF(AF17=0,0,+AF17*(AG17/AF17-$AD$13)*(AW17-$AD$11))","v":0},{"$f":"AP17^2+AQ17^2+AR17^2+AS17^2+AT17^2+AU17^2","v":0},null,"Standard",null,null,null,null,null,null,null,{"$f":"IF(AO17>0,AW17*$AD$45+$AD$46,\"\")","v":""},{"$f":"IF(AO17>0,LOG(AO17),\"\")","v":""}]
[null,null,null,"Sample: ",null,null,null,null,null,null,null,null,"Standard name:",null,null,null,null,null,null,null,null,null,null,null,null,null,null,null,"SxyT:",{"$f":"SUM(AK26:AK32)","v":0},null,{"$f":"COUNTIF(AP18:AU18,\">0\")","v":0},{"$f":"SUM(AP18:AU18)","v":0},0,{"$error":"#DIV/0!"},0,0,{"$f":"AP18^2+AQ18^2+AR18^2+AS18^2+AT18^2+AU18^2","v":0},null,null,null,null,null,null,null,null,null,"",""]
[null,null,null,"Potency: ",{"$f":"AC53*N19","v":{"$error":"#DIV/0!"}},{"$f":"O19","v":0},null,null,null,null,null,null,"Potency:",null,null,null,null,null,null,null,null,null,null,null,null,null,null,null,"SyyS:",{"$f":"SUM(AJ17:AJ23)","v":0},null,0,0,0,{"$error":"#DIV/0!"},0,0,0,null,null,null,null,null,null,null,null,null,"",""]
[null,null,null,"CI: ",{"$f":"\"(\"&TEXT(MIN(AD54:AE54),\"0.#0\")&\" - \"&TEXT(MAX(AD54:AE54),\"0.#0) \")&\"= +/-\"","v":{"$error":"#VALUE!"}},null,{"$f":"ABS((AD54-AE54)/(2*E19))","v":{"$error":"#DIV/0!"}},null,null,null,null,null,null,null,null,null,null,null,null,null,null,null,null,null,null,null,null,null,"SyyT:",{"$f":"SUM(AJ26:AJ32)","v":0},null,0,0,0,{"$error":"#DIV/0!"},0,0,0,null,null,null,null,null,null,null,null,null,"",""]
[null,null,null,null,null,null,null,null,null,null,null,null,null,"F-Ratio","Limits",null,null,null,null,null,null,null,null,null,null,null,null,null,"B:",{"$f":"(AD17+AD18)/(AD15+AD16)","v":{"$error":"#DIV/0!"}},null,0,0,0,{"$error":"#DIV/0!"},0,0,0,null,null,null,null,null,null,null,null,null,"",""]
[null,null,null,"Date: ",null,null,null,null,null,null,null,"Non-parallelism",null,{"$f":"AG37","v":{"$error":"#DIV/0!"}},{"$f":"AH37","v":{"$error":"#NUM!"}},null,null,null,null,null,null,null,null,null,null,null,null,null,"t",{"$f":"TINV(0.05,AE41)","v":{"$error":"#NUM!"}},null,0,0,0,{"$error":"#DIV/0!"},0,0,0,null,null,null,null,null,null,null,null,null,"",""]
[null,null,null,"Sample name: ",null,null,null,null,null,null,null,"Non linearity (St)",null,{"$f":"AG38","v":{"$error":"#DIV/0!"}},{"$error":"#NUM!"},null,null,null,null,null,null,null,null,null,null,null,null,null,"s",{"$f":"SQRT(AF41)","v":{"$error":"#DIV/0!"}},null,0,0,0,{"$error":"#DIV/0!"},0,0,0,null,null,null,null,null,null,null,null,null,"",""]
[null,null,null,null,null,null,null,null,null,null,null,"Non linearity (Sa)",null,{"$error":"#DIV/0!"},{"$error":"#NUM!"},null,null,null,null,null,null,null,null,null,null,null,null,null,"g",{"$f":"AD22^2*AD23^2/(AD21^2*(AD15+AD16))","v":{"$error":"#NUM!"}}]
[null,null,null,null,null,null,null,null,null,null,null,"Relative Slope",null,{"$f":"AD48/AD45","v":{"$error":"#DIV/0!"}}," 0.90-1.10",null,null,null,null,null,null,null,null,null,null,null,null,null,null,null,null,"mi","yti","Xti","SxxTi","SyyTi","SxyTi","yi^2",null,null,null,null,null,null,null,null,null,"Regression","Dose(log)"]
[null,null,null,null,null,null,null,null,null,null,null,null,null,null,null,null,null,null,null,null,null,null,null,null,null,null,null,null,"var(P)",{"$f":"(AD23^2/AD21^2)*((1/AD5+1/AD6)+(AD28-AD11+AD12)^2/(AD15+AD16))","v":{"$error":"#DIV/0!"}},null,{"$f":"COUNTIF(AP26:AU26,\">0\")","v":0},{"$f":"SUM(AP26:AU26)","v":0},{"$f":"AF26*AW26","v":0},{"$f":"AF26*(AW26-$AD$12)^2","v":{"$error":"#DIV/0!"}},{"$f":"IF(AF26=0,0,+AF26*(AG26/AF26-$AD$14)^2)","v":0},{"$f":"IF(AF26=0,0,+AF26*(AG26/AF26-$AD$14)*(AW26-$AD$12))","v":0},{"$f":"AP26^2+AQ26^2+AR26^2+AS26^2+AT26^2+AU26^2","v":0},null,"Test sample",null,null,null,null,null,null,null,{"$f":"IF(AO26>0,AW26*$AD$48+$AD$49,\"\")","v":""},{"$f":"IF(AO26>0,LOG(AO26),\"\")","v":""}]
[null,null,null,"Italic or Bold  = Delete point. Press button Recalculate",null,null,null,null,null,null,null,null,null,null,null,null,null,null,null,null,null,null,null,null,null,null,null,null,"limit",{"$f":"(AD23*AD22/AD21)*SQRT((1-AD24)*(1/AD6+1/AD5)+(AD28-AD11+AD12)^2/(AD15+AD16))","v":{"$error":"#DIV/0!"}},null,{"$f":"COUNTIF(AP27:AU27,\">0\")","v":0},0,0,{"$error":"#DIV/0!"},0,0,0,null,null,null,null,null,null,null,null,null,"",""]
[null,null,null,null,null,null,null,null,null,null,null,null,null,null,null,null,null,null,null,null,null,null,null,null,null,null,null,null,"M",{"$f":"$AD$11-$AD$12-(AD13-AD14)/AD21","v":{"$error":"#DIV/0!"}},null,0,0,0,{"$error":"#DIV/0!"},0,0,0,null,null,null,null,null,null,null,null,null,"",""]
[null,null,null,null,null,null,null,null,null,null,null,null,null,null,null,null,null,null,null,null,null,null,null,null,null,null,null,null,"Ml",{"$f":"$AD$11-$AD$12+($AD$28-$AD$11+$AD$12+$AD$27)/(1-$AD$24)","v":{"$error":"#DIV/0!"}},null,0,0,0,{"$error":"#DIV/0!"},0,0,0,null,null,null,null,null,null,null,null,null,"",""]
[null,null,null,null,null,null,null,null,null,null,null,null,null,null,null,null,null,null,null,null,null,null,null,null,null,null,null,null,"Mu",{"$f":"$AD$11-$AD$12+($AD$28-$AD$11+$AD$12-$AD$27)/(1-$AD$24)","v":{"$error":"#DIV/0!"}},null,0,0,0,{"$error":"#DIV/0!"},0,0,0,null,null,null,null,null,null,null,null,null,"",""]
[null,null,null,null,null,null,null,null,null,null,null,null,null,null,null,null,null,null,null,null,null,null,null,null,null,null,null,null,null,null,null,0,0,0,{"$error":"#DIV/0!"},0,0,0,null,null,null,null,null,null,null,null,null,"",""]
[null,null,null,null,null,null,null,null,null,null,null,null,null,null,null,null,null,null,null,null,null,null,null,null,null,null,null,null,null,null,null,0,0,0,{"$error":"#DIV/0!"},0,0,0,null,null,null,null,null,null,null,null,null,"",""]
[]
[null,null,null,null,null,null,null,null,null,null,null,null,null,null,null,null,null,null,null,null,null,null,null,null,null,null,null,null,"Source of variation","S.S.","DF","M.S.","F RATIO","F 0.95"]
[null,null,null,null,null,null,null,null,null,null,null,null,null,null,null,null,null,null,null,null,null,null,null,null,null,null,null,null,"Preparations",{"$f":"AD7^2/AD5+AD8^2/AD6-(AD7+AD8)^2/(AD5+AD6)","v":{"$error":"#DIV/0!"}},1,{"$f":"AD35","v":{"$error":"#DIV/0!"}},{"$f":"AF35/$AF$41","v":{"$error":"#DIV/0!"}}]
[null,null,null,null,null,null,null,null,null,null,null,null,null,null,null,null,null,null,null,null,null,null,null,null,null,null,null,null,"Regression",{"$f":"(AD17+AD18)^2/(AD15+AD16)","v":{"$error":"#DIV/0!"}},1,{"$f":"AD36","v":{"$error":"#DIV/0!"}},{"$f":"AF36/$AF$41","v":{"$error":"#DIV/0!"}}]
[null,null,null,null,null,null,null,null,null,null,null,null,null,null,null,null,null,null,null,null,null,null,null,null,null,null,null,null,"Non-parallelism",{"$f":"(AD17)^2/AD15+AD18^2/AD16-(AD17+AD18)^2/(AD15+AD16)","v":{"$error":"#DIV/0!"}},1,{"$f":"AD37","v":{"$error":"#DIV/0!"}},{"$f":"AF37/$AF$41","v":{"$error":"#DIV/0!"}},{"$f":"FINV(0.05,AE37,AE$41)","v":{"$error":"#NUM!"}}]
[null,null,null,null,null,null,null,null,null,null,null,null,null,null,null,null,null,null,null,null,null,null,null,null,null,null,null,null,"Non-linearity (s)",{"$f":"AD19-AD17^2/AD15","v":{"$error":"#DIV/0!"}},{"$f":"AD3-2","v":-2},{"$f":"AD38/AE38","v":{"$error":"#DIV/0!"}},{"$f":"AF38/$AF$41","v":{"$error":"#DIV/0!"}},{"$f":"FINV(0.05,AE38,AE$41)","v":{"$error":"#NUM!"}}]
[null,null,null,null,null,null,null,null,null,null,null,null,null,null,null,null,null,null,null,null,null,null,null,null,null,null,null,null,"Non-linearity (t)",{"$f":"AD20-AD18^2/AD16","v":{"$error":"#DIV/0!"}},{"$f":"AD4-2","v":-2},{"$f":"AD39/AE39","v":{"$error":"#DIV/0!"}},{"$f":"AF39/$AF$41","v":{"$error":"#DIV/0!"}},{"$f":"FINV(0.05,AE39,AE$41)","v":{"$error":"#NUM!"}}]
[]
[null,null,null,null,null,null,null,null,null,null,5,null,null,null,null,null,null,null,null,null,null,null,null,null,null,null,null,null,"Residual Error",{"$f":"AD43-AD35-AD36-AD37-AD38-AD39","v":{"$error":"#DIV/0!"}},{"$f":"AE43-AE35-AE36-AE37-AE38-AE39","v":0},{"$f":"AD41/AE41","v":{"$error":"#DIV/0!"}}]
[]
[null,null,null,null,null,null,null,null,null,null,null,null,null,null,null,null,null,null,null,null,null,null,null,null,null,null,null,null,"Total",{"$f":"SUM(AL17:AL32)-(AD7+AD8)^2/(AD5+AD6)","v":{"$error":"#DIV/0!"}},{"$f":"(AD6+AD5)-1","v":-1}]
[]
[null,null,null,null,null,null,null,null,null,null,null,null,null,null,null,null,null,null,null,null,null,null,null,null,null,null,null,null,"Slope standard",{"$f":"AD17/AD15","v":{"$error":"#DIV/0!"}}]
[null,null,null,null,null,null,null,null,null,null,null,null,null,null,null,null,null,null,null,null,null,null,null,null,null,null,null,null,"Intercept standard",{"$f":"AD13-AD45*AD11","v":{"$error":"#DIV/0!"}}]
[]
[null,null,null,null,null,null,null,null,null,null,null,null,null,null,null,null,null,null,null,null,null,null,null,null,null,null,null,null,"Slope test",{"$f":"AD18/AD16","v":{"$error":"#DIV/0!"}}]
[null,null,null,null,null,null,null,null,null,null,null,null,null,null,null,null,null,null,null,null,null,null,null,null,null,null,null,null,"Intercept test",{"$f":"AD14-AD48*AD12","v":{"$error":"#DIV/0!"}}]
[]
[null,null,null,null,null,null,null,null,null,null,null,null,null,null,null,null,null,null,null,null,null,null,null,null,null,null,null,null,null,"Limits"]
[null,null,null,null,null,null,null,null,null,null,null,null,null,null,null,null,null,null,null,null,null,null,null,null,null,null,null,null,"Relative potency","Upper","Lower"]
[null,null,null,null,null,null,null,null,null,null,null,null,null,null,null,null,null,null,null,null,null,null,null,null,null,null,null,null,{"$f":"10^AD28","v":{"$error":"#DIV/0!"}},{"$f":"10^AD30","v":{"$error":"#DIV/0!"}},{"$f":"10^AD29","v":{"$error":"#DIV/0!"}}]
[null,null,null,null,null,null,null,null,null,null,null,null,null,null,null,null,null,null,null,null,null,null,null,null,null,null,null,null,"Potency",{"$f":"$AD$53*$N$19","v":{"$error":"#DIV/0!"}},{"$f":"$AE$53*$N$19","v":{"$error":"#DIV/0!"}}]
[null,null,null,null,null,null,null,null,null,null,null,null,null,null,null,null,null,null,null,null,null,null,null,null,null,null,null,null,"Deviation",{"$f":"(AD53-AC53)/AC53","v":{"$error":"#DIV/0!"}},{"$f":"(AE53-AC53)/AC53","v":{"$error":"#DIV/0!"}}]

{"sheet":"Sample6","index":9,"n_rows":55,"n_cols":49,"rows_kept":55,"cut":false,"hidden":false,"merged":[[21,4,21,5],[22,4,22,9]]}
[null,null,null,null,null,null,null,null,null,null,null,null,null,null,null,null,null,null,null,null,"V 1.0"]
[null,null,null,"PLA tredecim V01Sep2018"]
[null,null,null,null,null,null,null,null,null,null,null,null,null,null,null,null,null,null,null,null,null,null,null,null,null,null,null,null,"aantal doses standaard",{"$f":"COUNT(AW17:AW23)-COUNTIF(AW17:AW23,\"=0\")","v":0}]
[null,null,null,"Sample","l","l","l","l","l","l",null,null,"Standard","l","l","l","l","l","l",null,null,null,null,null,null,null,null,null,"aantal doses test",{"$f":"COUNT(AW26:AW32)-COUNTIF(AW26:AW32,\"=0\")","v":0}]
[null,null,null,null,null,null,null,null,null,null,null,null,null,null,null,null,null,null,null,null,null,null,null,null,null,null,null,null,"aantal responses standaard",{"$f":"COUNTIF(AP17:AU23,\">0\")","v":0}]
[null,null,null,"Dose","Response",null,null,null,null,null,null,null,"Dose","Respons",null,null,null,null,null,null,null,null,null,null,null,null,null,null,"aantal responses test",{"$f":"COUNTIF(AP26:AU32,\">0\")","v":0}]
[null,null,null,null,1,2,3,4,5,6,null,null,null,1,2,3,4,5,6,null,null,null,null,null,null,null,null,null,"som responses standaard",{"$f":"SUM(AP17:AU23)","v":0}]
[null,null,1,null,null,null,null,null,null,null,null,1,null,null,null,null,null,null,null,null,null,null,null,null,null,null,null,null,"som responses test",{"$f":"SUM(AP26:AU32)","v":0}]
[null,null,2,null,null,null,null,null,null,null,null,2,null,null,null,null,null,null,null,null,null,null,null,null,null,null,null,null,"som Xsi",{"$f":"SUM(AH17:AH23)","v":0}]
[null,null,3,null,null,null,null,null,null,null,null,3,null,null,null,null,null,null,null,null,null,null,null,null,null,null,null,null,"som Xti",{"$f":"SUM(AH26:AH32)","v":0}]
[null,null,4,null,null,null,null,null,null,null,null,4,null,null,null,null,null,null,null,null,null,null,null,null,null,null,null,null,"XSm",{"$f":"AD9/AD5","v":{"$error":"#DIV/0!"}}]
[null,null,5,null,null,null,null,null,null,null,null,5,null,null,null,null,null,null,null,null,null,null,null,null,null,null,null,null,"XTm",{"$f":"AD10/AD6","v":{"$error":"#DIV/0!"}}]
[null,null,6,null,null,null,null,null,null,null,null,6,null,null,null,null,null,null,null,null,null,null,null,null,null,null,null,null,"Ysm",{"$f":"AD7/AD5","v":{"$error":"#DIV/0!"}}]
[null,null,7,null,null,null,null,null,null,null,null,7,null,null,null,null,null,null,null,null,null,null,null,null,null,null,null,null,"Ytm",{"$f":"AD8/AD6","v":{"$error":"#DIV/0!"}}]
[null,null,null,null,null,null,null,null,null,null,null,null,null,null,null,null,null,null,null,null,null,null,null,null,null,null,null,null,"SxxS:",{"$f":"SUM(AI17:AI23)","v":{"$error":"#DIV/0!"}}]
[null,null,null,null,null,null,null,null,null,null,null,null,null,null,null,null,null,null,null,null,null,null,null,null,null,null,null,null,"SxxT:",{"$f":"SUM(AI26:AI32)","v":{"$error":"#DIV/0!"}},null,"ni","ysi","Xsi","SxxSi","SyySi","SxySi","yi^2",null,null,"Dose","Responses",null,null,null,null,null,"Regression","Dose(log)"]
[null,null,null,null,null,null,null,null,null,null,null,null,null,null,null,null,null,null,null,null,null,null,null,null,null,null,null,null,"SxyS:",{"$f":"SUM(AK17:AK23)","v":0},null,{"$f":"COUNTIF(AP17:AU17,\">0\")","v":0},{"$f":"SUM(AP17:AU17)","v":0},{"$f":"AF17*AW17","v":0},{"$f":"AF17*(AW17-$AD$11)^2","v":{"$error":"#DIV/0!"}},{"$f":"IF(AF17=0,0,+AF17*(AG17/AF17-$AD$13)^2)","v":0},{"$f":"IF(AF17=0,0,+AF17*(AG17/AF17-$AD$13)*(AW17-$AD$11))","v":0},{"$f":"AP17^2+AQ17^2+AR17^2+AS17^2+AT17^2+AU17^2","v":0},null,"Standard",null,null,null,null,null,null,null,{"$f":"IF(AO17>0,AW17*$AD$45+$AD$46,\"\")","v":""},{"$f":"IF(AO17>0,LOG(AO17),\"\")","v":""}]
[null,null,null,"Sample: ",null,null,null,null,null,null,null,null,"Standard name:",null,null,null,null,null,null,null,null,null,null,null,null,null,null,null,"SxyT:",{"$f":"SUM(AK26:AK32)","v":0},null,{"$f":"COUNTIF(AP18:AU18,\">0\")","v":0},{"$f":"SUM(AP18:AU18)","v":0},0,{"$error":"#DIV/0!"},0,0,{"$f":"AP18^2+AQ18^2+AR18^2+AS18^2+AT18^2+AU18^2","v":0},null,null,null,null,null,null,null,null,null,"",""]
[null,null,null,"Potency: ",{"$f":"AC53*N19","v":{"$error":"#DIV/0!"}},{"$f":"O19","v":0},null,null,null,null,null,null,"Potency:",null,null,null,null,null,null,null,null,null,null,null,null,null,null,null,"SyyS:",{"$f":"SUM(AJ17:AJ23)","v":0},null,0,0,0,{"$error":"#DIV/0!"},0,0,0,null,null,null,null,null,null,null,null,null,"",""]
[null,null,null,"CI: ",{"$f":"\"(\"&TEXT(MIN(AD54:AE54),\"0.#0\")&\" - \"&TEXT(MAX(AD54:AE54),\"0.#0) \")&\"= +/-\"","v":{"$error":"#VALUE!"}},null,{"$f":"ABS((AD54-AE54)/(2*E19))","v":{"$error":"#DIV/0!"}},null,null,null,null,null,null,null,null,null,null,null,null,null,null,null,null,null,null,null,null,null,"SyyT:",{"$f":"SUM(AJ26:AJ32)","v":0},null,0,0,0,{"$error":"#DIV/0!"},0,0,0,null,null,null,null,null,null,null,null,null,"",""]
[null,null,null,null,null,null,null,null,null,null,null,null,null,"F-Ratio","Limits",null,null,null,null,null,null,null,null,null,null,null,null,null,"B:",{"$f":"(AD17+AD18)/(AD15+AD16)","v":{"$error":"#DIV/0!"}},null,0,0,0,{"$error":"#DIV/0!"},0,0,0,null,null,null,null,null,null,null,null,null,"",""]
[null,null,null,"Date: ",null,null,null,null,null,null,null,"Non-parallelism",null,{"$f":"AG37","v":{"$error":"#DIV/0!"}},{"$f":"AH37","v":{"$error":"#NUM!"}},null,null,null,null,null,null,null,null,null,null,null,null,null,"t",{"$f":"TINV(0.05,AE41)","v":{"$error":"#NUM!"}},null,0,0,0,{"$error":"#DIV/0!"},0,0,0,null,null,null,null,null,null,null,null,null,"",""]
[null,null,null,"Sample name: ",null,null,null,null,null,null,null,"Non linearity (St)",null,{"$f":"AG38","v":{"$error":"#DIV/0!"}},{"$error":"#NUM!"},null,null,null,null,null,null,null,null,null,null,null,null,null,"s",{"$f":"SQRT(AF41)","v":{"$error":"#DIV/0!"}},null,0,0,0,{"$error":"#DIV/0!"},0,0,0,null,null,null,null,null,null,null,null,null,"",""]
[null,null,null,null,null,null,null,null,null,null,null,"Non linearity (Sa)",null,{"$error":"#DIV/0!"},{"$error":"#NUM!"},null,null,null,null,null,null,null,null,null,null,null,null,null,"g",{"$f":"AD22^2*AD23^2/(AD21^2*(AD15+AD16))","v":{"$error":"#NUM!"}}]
[null,null,null,null,null,null,null,null,null,null,null,"Relative Slope",null,{"$f":"AD48/AD45","v":{"$error":"#DIV/0!"}}," 0.90-1.10",null,null,null,null,null,null,null,null,null,null,null,null,null,null,null,null,"mi","yti","Xti","SxxTi","SyyTi","SxyTi","yi^2",null,null,null,null,null,null,null,null,null,"Regression","Dose(log)"]
[null,null,null,null,null,null,null,null,null,null,null,null,null,null,null,null,null,null,null,null,null,null,null,null,null,null,null,null,"var(P)",{"$f":"(AD23^2/AD21^2)*((1/AD5+1/AD6)+(AD28-AD11+AD12)^2/(AD15+AD16))","v":{"$error":"#DIV/0!"}},null,{"$f":"COUNTIF(AP26:AU26,\">0\")","v":0},{"$f":"SUM(AP26:AU26)","v":0},{"$f":"AF26*AW26","v":0},{"$f":"AF26*(AW26-$AD$12)^2","v":{"$error":"#DIV/0!"}},{"$f":"IF(AF26=0,0,+AF26*(AG26/AF26-$AD$14)^2)","v":0},{"$f":"IF(AF26=0,0,+AF26*(AG26/AF26-$AD$14)*(AW26-$AD$12))","v":0},{"$f":"AP26^2+AQ26^2+AR26^2+AS26^2+AT26^2+AU26^2","v":0},null,"Test sample",null,null,null,null,null,null,null,{"$f":"IF(AO26>0,AW26*$AD$48+$AD$49,\"\")","v":""},{"$f":"IF(AO26>0,LOG(AO26),\"\")","v":""}]
[null,null,null,"Italic or Bold  = Delete point. Press button Recalculate",null,null,null,null,null,null,null,null,null,null,null,null,null,null,null,null,null,null,null,null,null,null,null,null,"limit",{"$f":"(AD23*AD22/AD21)*SQRT((1-AD24)*(1/AD6+1/AD5)+(AD28-AD11+AD12)^2/(AD15+AD16))","v":{"$error":"#DIV/0!"}},null,{"$f":"COUNTIF(AP27:AU27,\">0\")","v":0},0,0,{"$error":"#DIV/0!"},0,0,0,null,null,null,null,null,null,null,null,null,"",""]
[null,null,null,null,null,null,null,null,null,null,null,null,null,null,null,null,null,null,null,null,null,null,null,null,null,null,null,null,"M",{"$f":"$AD$11-$AD$12-(AD13-AD14)/AD21","v":{"$error":"#DIV/0!"}},null,0,0,0,{"$error":"#DIV/0!"},0,0,0,null,null,null,null,null,null,null,null,null,"",""]
[null,null,null,null,null,null,null,null,null,null,null,null,null,null,null,null,null,null,null,null,null,null,null,null,null,null,null,null,"Ml",{"$f":"$AD$11-$AD$12+($AD$28-$AD$11+$AD$12+$AD$27)/(1-$AD$24)","v":{"$error":"#DIV/0!"}},null,0,0,0,{"$error":"#DIV/0!"},0,0,0,null,null,null,null,null,null,null,null,null,"",""]
[null,null,null,null,null,null,null,null,null,null,null,null,null,null,null,null,null,null,null,null,null,null,null,null,null,null,null,null,"Mu",{"$f":"$AD$11-$AD$12+($AD$28-$AD$11+$AD$12-$AD$27)/(1-$AD$24)","v":{"$error":"#DIV/0!"}},null,0,0,0,{"$error":"#DIV/0!"},0,0,0,null,null,null,null,null,null,null,null,null,"",""]
[null,null,null,null,null,null,null,null,null,null,null,null,null,null,null,null,null,null,null,null,null,null,null,null,null,null,null,null,null,null,null,0,0,0,{"$error":"#DIV/0!"},0,0,0,null,null,null,null,null,null,null,null,null,"",""]
[null,null,null,null,null,null,null,null,null,null,null,null,null,null,null,null,null,null,null,null,null,null,null,null,null,null,null,null,null,null,null,0,0,0,{"$error":"#DIV/0!"},0,0,0,null,null,null,null,null,null,null,null,null,"",""]
[]
[null,null,null,null,null,null,null,null,null,null,null,null,null,null,null,null,null,null,null,null,null,null,null,null,null,null,null,null,"Source of variation","S.S.","DF","M.S.","F RATIO","F 0.95"]
[null,null,null,null,null,null,null,null,null,null,null,null,null,null,null,null,null,null,null,null,null,null,null,null,null,null,null,null,"Preparations",{"$f":"AD7^2/AD5+AD8^2/AD6-(AD7+AD8)^2/(AD5+AD6)","v":{"$error":"#DIV/0!"}},1,{"$f":"AD35","v":{"$error":"#DIV/0!"}},{"$f":"AF35/$AF$41","v":{"$error":"#DIV/0!"}}]
[null,null,null,null,null,null,null,null,null,null,null,null,null,null,null,null,null,null,null,null,null,null,null,null,null,null,null,null,"Regression",{"$f":"(AD17+AD18)^2/(AD15+AD16)","v":{"$error":"#DIV/0!"}},1,{"$f":"AD36","v":{"$error":"#DIV/0!"}},{"$f":"AF36/$AF$41","v":{"$error":"#DIV/0!"}}]
[null,null,null,null,null,null,null,null,null,null,null,null,null,null,null,null,null,null,null,null,null,null,null,null,null,null,null,null,"Non-parallelism",{"$f":"(AD17)^2/AD15+AD18^2/AD16-(AD17+AD18)^2/(AD15+AD16)","v":{"$error":"#DIV/0!"}},1,{"$f":"AD37","v":{"$error":"#DIV/0!"}},{"$f":"AF37/$AF$41","v":{"$error":"#DIV/0!"}},{"$f":"FINV(0.05,AE37,AE$41)","v":{"$error":"#NUM!"}}]
[null,null,null,null,null,null,null,null,null,null,null,null,null,null,null,null,null,null,null,null,null,null,null,null,null,null,null,null,"Non-linearity (s)",{"$f":"AD19-AD17^2/AD15","v":{"$error":"#DIV/0!"}},{"$f":"AD3-2","v":-2},{"$f":"AD38/AE38","v":{"$error":"#DIV/0!"}},{"$f":"AF38/$AF$41","v":{"$error":"#DIV/0!"}},{"$f":"FINV(0.05,AE38,AE$41)","v":{"$error":"#NUM!"}}]
[null,null,null,null,null,null,null,null,null,null,null,null,null,null,null,null,null,null,null,null,null,null,null,null,null,null,null,null,"Non-linearity (t)",{"$f":"AD20-AD18^2/AD16","v":{"$error":"#DIV/0!"}},{"$f":"AD4-2","v":-2},{"$f":"AD39/AE39","v":{"$error":"#DIV/0!"}},{"$f":"AF39/$AF$41","v":{"$error":"#DIV/0!"}},{"$f":"FINV(0.05,AE39,AE$41)","v":{"$error":"#NUM!"}}]
[]
[null,null,null,null,null,null,null,null,null,null,5,null,null,null,null,null,null,null,null,null,null,null,null,null,null,null,null,null,"Residual Error",{"$f":"AD43-AD35-AD36-AD37-AD38-AD39","v":{"$error":"#DIV/0!"}},{"$f":"AE43-AE35-AE36-AE37-AE38-AE39","v":0},{"$f":"AD41/AE41","v":{"$error":"#DIV/0!"}}]
[]
[null,null,null,null,null,null,null,null,null,null,null,null,null,null,null,null,null,null,null,null,null,null,null,null,null,null,null,null,"Total",{"$f":"SUM(AL17:AL32)-(AD7+AD8)^2/(AD5+AD6)","v":{"$error":"#DIV/0!"}},{"$f":"(AD6+AD5)-1","v":-1}]
[]
[null,null,null,null,null,null,null,null,null,null,null,null,null,null,null,null,null,null,null,null,null,null,null,null,null,null,null,null,"Slope standard",{"$f":"AD17/AD15","v":{"$error":"#DIV/0!"}}]
[null,null,null,null,null,null,null,null,null,null,null,null,null,null,null,null,null,null,null,null,null,null,null,null,null,null,null,null,"Intercept standard",{"$f":"AD13-AD45*AD11","v":{"$error":"#DIV/0!"}}]
[]
[null,null,null,null,null,null,null,null,null,null,null,null,null,null,null,null,null,null,null,null,null,null,null,null,null,null,null,null,"Slope test",{"$f":"AD18/AD16","v":{"$error":"#DIV/0!"}}]
[null,null,null,null,null,null,null,null,null,null,null,null,null,null,null,null,null,null,null,null,null,null,null,null,null,null,null,null,"Intercept test",{"$f":"AD14-AD48*AD12","v":{"$error":"#DIV/0!"}}]
[]
[null,null,null,null,null,null,null,null,null,null,null,null,null,null,null,null,null,null,null,null,null,null,null,null,null,null,null,null,null,"Limits"]
[null,null,null,null,null,null,null,null,null,null,null,null,null,null,null,null,null,null,null,null,null,null,null,null,null,null,null,null,"Relative potency","Upper","Lower"]
[null,null,null,null,null,null,null,null,null,null,null,null,null,null,null,null,null,null,null,null,null,null,null,null,null,null,null,null,{"$f":"10^AD28","v":{"$error":"#DIV/0!"}},{"$f":"10^AD30","v":{"$error":"#DIV/0!"}},{"$f":"10^AD29","v":{"$error":"#DIV/0!"}}]
[null,null,null,null,null,null,null,null,null,null,null,null,null,null,null,null,null,null,null,null,null,null,null,null,null,null,null,null,"Potency",{"$f":"$AD$53*$N$19","v":{"$error":"#DIV/0!"}},{"$f":"$AE$53*$N$19","v":{"$error":"#DIV/0!"}}]
[null,null,null,null,null,null,null,null,null,null,null,null,null,null,null,null,null,null,null,null,null,null,null,null,null,null,null,null,"Deviation",{"$f":"(AD53-AC53)/AC53","v":{"$error":"#DIV/0!"}},{"$f":"(AE53-AC53)/AC53","v":{"$error":"#DIV/0!"}}]

{"sheet":"Sample7","index":10,"n_rows":55,"n_cols":49,"rows_kept":55,"cut":false,"hidden":false,"merged":[[21,4,21,5],[22,4,22,9]]}
[null,null,null,null,null,null,null,null,null,null,null,null,null,null,null,null,null,null,null,null,"V 1.0"]
[null,null,null,"PLA tredecim V01Sep2018"]
[null,null,null,null,null,null,null,null,null,null,null,null,null,null,null,null,null,null,null,null,null,null,null,null,null,null,null,null,"aantal doses standaard",{"$f":"COUNT(AW17:AW23)-COUNTIF(AW17:AW23,\"=0\")","v":0}]
[null,null,null,"Sample","l","l","l","l","l","l",null,null,"Standard","l","l","l","l","l","l",null,null,null,null,null,null,null,null,null,"aantal doses test",{"$f":"COUNT(AW26:AW32)-COUNTIF(AW26:AW32,\"=0\")","v":0}]
[null,null,null,null,null,null,null,null,null,null,null,null,null,null,null,null,null,null,null,null,null,null,null,null,null,null,null,null,"aantal responses standaard",{"$f":"COUNTIF(AP17:AU23,\">0\")","v":0}]
[null,null,null,"Dose","Response",null,null,null,null,null,null,null,"Dose","Respons",null,null,null,null,null,null,null,null,null,null,null,null,null,null,"aantal responses test",{"$f":"COUNTIF(AP26:AU32,\">0\")","v":0}]
[null,null,null,null,1,2,3,4,5,6,null,null,null,1,2,3,4,5,6,null,null,null,null,null,null,null,null,null,"som responses standaard",{"$f":"SUM(AP17:AU23)","v":0}]
[null,null,1,null,null,null,null,null,null,null,null,1,null,null,null,null,null,null,null,null,null,null,null,null,null,null,null,null,"som responses test",{"$f":"SUM(AP26:AU32)","v":0}]
[null,null,2,null,null,null,null,null,null,null,null,2,null,null,null,null,null,null,null,null,null,null,null,null,null,null,null,null,"som Xsi",{"$f":"SUM(AH17:AH23)","v":0}]
[null,null,3,null,null,null,null,null,null,null,null,3,null,null,null,null,null,null,null,null,null,null,null,null,null,null,null,null,"som Xti",{"$f":"SUM(AH26:AH32)","v":0}]
[null,null,4,null,null,null,null,null,null,null,null,4,null,null,null,null,null,null,null,null,null,null,null,null,null,null,null,null,"XSm",{"$f":"AD9/AD5","v":{"$error":"#DIV/0!"}}]
[null,null,5,null,null,null,null,null,null,null,null,5,null,null,null,null,null,null,null,null,null,null,null,null,null,null,null,null,"XTm",{"$f":"AD10/AD6","v":{"$error":"#DIV/0!"}}]
[null,null,6,null,null,null,null,null,null,null,null,6,null,null,null,null,null,null,null,null,null,null,null,null,null,null,null,null,"Ysm",{"$f":"AD7/AD5","v":{"$error":"#DIV/0!"}}]
[null,null,7,null,null,null,null,null,null,null,null,7,null,null,null,null,null,null,null,null,null,null,null,null,null,null,null,null,"Ytm",{"$f":"AD8/AD6","v":{"$error":"#DIV/0!"}}]
[null,null,null,null,null,null,null,null,null,null,null,null,null,null,null,null,null,null,null,null,null,null,null,null,null,null,null,null,"SxxS:",{"$f":"SUM(AI17:AI23)","v":{"$error":"#DIV/0!"}}]
[null,null,null,null,null,null,null,null,null,null,null,null,null,null,null,null,null,null,null,null,null,null,null,null,null,null,null,null,"SxxT:",{"$f":"SUM(AI26:AI32)","v":{"$error":"#DIV/0!"}},null,"ni","ysi","Xsi","SxxSi","SyySi","SxySi","yi^2",null,null,"Dose","Responses",null,null,null,null,null,"Regression","Dose(log)"]
[null,null,null,null,null,null,null,null,null,null,null,null,null,null,null,null,null,null,null,null,null,null,null,null,null,null,null,null,"SxyS:",{"$f":"SUM(AK17:AK23)","v":0},null,{"$f":"COUNTIF(AP17:AU17,\">0\")","v":0},{"$f":"SUM(AP17:AU17)","v":0},{"$f":"AF17*AW17","v":0},{"$f":"AF17*(AW17-$AD$11)^2","v":{"$error":"#DIV/0!"}},{"$f":"IF(AF17=0,0,+AF17*(AG17/AF17-$AD$13)^2)","v":0},{"$f":"IF(AF17=0,0,+AF17*(AG17/AF17-$AD$13)*(AW17-$AD$11))","v":0},{"$f":"AP17^2+AQ17^2+AR17^2+AS17^2+AT17^2+AU17^2","v":0},null,"Standard",null,null,null,null,null,null,null,{"$f":"IF(AO17>0,AW17*$AD$45+$AD$46,\"\")","v":""},{"$f":"IF(AO17>0,LOG(AO17),\"\")","v":""}]
[null,null,null,"Sample: ",null,null,null,null,null,null,null,null,"Standard name:",null,null,null,null,null,null,null,null,null,null,null,null,null,null,null,"SxyT:",{"$f":"SUM(AK26:AK32)","v":0},null,{"$f":"COUNTIF(AP18:AU18,\">0\")","v":0},{"$f":"SUM(AP18:AU18)","v":0},0,{"$error":"#DIV/0!"},0,0,{"$f":"AP18^2+AQ18^2+AR18^2+AS18^2+AT18^2+AU18^2","v":0},null,null,null,null,null,null,null,null,null,"",""]
[null,null,null,"Potency: ",{"$f":"AC53*N19","v":{"$error":"#DIV/0!"}},{"$f":"O19","v":0},null,null,null,null,null,null,"Potency:",null,null,null,null,null,null,null,null,null,null,null,null,null,null,null,"SyyS:",{"$f":"SUM(AJ17:AJ23)","v":0},null,0,0,0,{"$error":"#DIV/0!"},0,0,0,null,null,null,null,null,null,null,null,null,"",""]
[null,null,null,"CI: ",{"$f":"\"(\"&TEXT(MIN(AD54:AE54),\"0.#0\")&\" - \"&TEXT(MAX(AD54:AE54),\"0.#0) \")&\"= +/-\"","v":{"$error":"#VALUE!"}},null,{"$f":"ABS((AD54-AE54)/(2*E19))","v":{"$error":"#DIV/0!"}},null,null,null,null,null,null,null,null,null,null,null,null,null,null,null,null,null,null,null,null,null,"SyyT:",{"$f":"SUM(AJ26:AJ32)","v":0},null,0,0,0,{"$error":"#DIV/0!"},0,0,0,null,null,null,null,null,null,null,null,null,"",""]
[null,null,null,null,null,null,null,null,null,null,null,null,null,"F-Ratio","Limits",null,null,null,null,null,null,null,null,null,null,null,null,null,"B:",{"$f":"(AD17+AD18)/(AD15+AD16)","v":{"$error":"#DIV/0!"}},null,0,0,0,{"$error":"#DIV/0!"},0,0,0,null,null,null,null,null,null,null,null,null,"",""]
[null,null,null,"Date: ",null,null,null,null,null,null,null,"Non-parallelism",null,{"$f":"AG37","v":{"$error":"#DIV/0!"}},{"$f":"AH37","v":{"$error":"#NUM!"}},null,null,null,null,null,null,null,null,null,null,null,null,null,"t",{"$f":"TINV(0.05,AE41)","v":{"$error":"#NUM!"}},null,0,0,0,{"$error":"#DIV/0!"},0,0,0,null,null,null,null,null,null,null,null,null,"",""]
[null,null,null,"Sample name: ",null,null,null,null,null,null,null,"Non linearity (St)",null,{"$f":"AG38","v":{"$error":"#DIV/0!"}},{"$error":"#NUM!"},null,null,null,null,null,null,null,null,null,null,null,null,null,"s",{"$f":"SQRT(AF41)","v":{"$error":"#DIV/0!"}},null,0,0,0,{"$error":"#DIV/0!"},0,0,0,null,null,null,null,null,null,null,null,null,"",""]
[null,null,null,null,null,null,null,null,null,null,null,"Non linearity (Sa)",null,{"$error":"#DIV/0!"},{"$error":"#NUM!"},null,null,null,null,null,null,null,null,null,null,null,null,null,"g",{"$f":"AD22^2*AD23^2/(AD21^2*(AD15+AD16))","v":{"$error":"#NUM!"}}]
[null,null,null,null,null,null,null,null,null,null,null,"Relative Slope",null,{"$f":"AD48/AD45","v":{"$error":"#DIV/0!"}}," 0.90-1.10",null,null,null,null,null,null,null,null,null,null,null,null,null,null,null,null,"mi","yti","Xti","SxxTi","SyyTi","SxyTi","yi^2",null,null,null,null,null,null,null,null,null,"Regression","Dose(log)"]
[null,null,null,null,null,null,null,null,null,null,null,null,null,null,null,null,null,null,null,null,null,null,null,null,null,null,null,null,"var(P)",{"$f":"(AD23^2/AD21^2)*((1/AD5+1/AD6)+(AD28-AD11+AD12)^2/(AD15+AD16))","v":{"$error":"#DIV/0!"}},null,{"$f":"COUNTIF(AP26:AU26,\">0\")","v":0},{"$f":"SUM(AP26:AU26)","v":0},{"$f":"AF26*AW26","v":0},{"$f":"AF26*(AW26-$AD$12)^2","v":{"$error":"#DIV/0!"}},{"$f":"IF(AF26=0,0,+AF26*(AG26/AF26-$AD$14)^2)","v":0},{"$f":"IF(AF26=0,0,+AF26*(AG26/AF26-$AD$14)*(AW26-$AD$12))","v":0},{"$f":"AP26^2+AQ26^2+AR26^2+AS26^2+AT26^2+AU26^2","v":0},null,"Test sample",null,null,null,null,null,null,null,{"$f":"IF(AO26>0,AW26*$AD$48+$AD$49,\"\")","v":""},{"$f":"IF(AO26>0,LOG(AO26),\"\")","v":""}]
[null,null,null,"Italic or Bold  = Delete point. Press button Recalculate",null,null,null,null,null,null,null,null,null,null,null,null,null,null,null,null,null,null,null,null,null,null,null,null,"limit",{"$f":"(AD23*AD22/AD21)*SQRT((1-AD24)*(1/AD6+1/AD5)+(AD28-AD11+AD12)^2/(AD15+AD16))","v":{"$error":"#DIV/0!"}},null,{"$f":"COUNTIF(AP27:AU27,\">0\")","v":0},0,0,{"$error":"#DIV/0!"},0,0,0,null,null,null,null,null,null,null,null,null,"",""]
[null,null,null,null,null,null,null,null,null,null,null,null,null,null,null,null,null,null,null,null,null,null,null,null,null,null,null,null,"M",{"$f":"$AD$11-$AD$12-(AD13-AD14)/AD21","v":{"$error":"#DIV/0!"}},null,0,0,0,{"$error":"#DIV/0!"},0,0,0,null,null,null,null,null,null,null,null,null,"",""]
[null,null,null,null,null,null,null,null,null,null,null,null,null,null,null,null,null,null,null,null,null,null,null,null,null,null,null,null,"Ml",{"$f":"$AD$11-$AD$12+($AD$28-$AD$11+$AD$12+$AD$27)/(1-$AD$24)","v":{"$error":"#DIV/0!"}},null,0,0,0,{"$error":"#DIV/0!"},0,0,0,null,null,null,null,null,null,null,null,null,"",""]
[null,null,null,null,null,null,null,null,null,null,null,null,null,null,null,null,null,null,null,null,null,null,null,null,null,null,null,null,"Mu",{"$f":"$AD$11-$AD$12+($AD$28-$AD$11+$AD$12-$AD$27)/(1-$AD$24)","v":{"$error":"#DIV/0!"}},null,0,0,0,{"$error":"#DIV/0!"},0,0,0,null,null,null,null,null,null,null,null,null,"",""]
[null,null,null,null,null,null,null,null,null,null,null,null,null,null,null,null,null,null,null,null,null,null,null,null,null,null,null,null,null,null,null,0,0,0,{"$error":"#DIV/0!"},0,0,0,null,null,null,null,null,null,null,null,null,"",""]
[null,null,null,null,null,null,null,null,null,null,null,null,null,null,null,null,null,null,null,null,null,null,null,null,null,null,null,null,null,null,null,0,0,0,{"$error":"#DIV/0!"},0,0,0,null,null,null,null,null,null,null,null,null,"",""]
[]
[null,null,null,null,null,null,null,null,null,null,null,null,null,null,null,null,null,null,null,null,null,null,null,null,null,null,null,null,"Source of variation","S.S.","DF","M.S.","F RATIO","F 0.95"]
[null,null,null,null,null,null,null,null,null,null,null,null,null,null,null,null,null,null,null,null,null,null,null,null,null,null,null,null,"Preparations",{"$f":"AD7^2/AD5+AD8^2/AD6-(AD7+AD8)^2/(AD5+AD6)","v":{"$error":"#DIV/0!"}},1,{"$f":"AD35","v":{"$error":"#DIV/0!"}},{"$f":"AF35/$AF$41","v":{"$error":"#DIV/0!"}}]
[null,null,null,null,null,null,null,null,null,null,null,null,null,null,null,null,null,null,null,null,null,null,null,null,null,null,null,null,"Regression",{"$f":"(AD17+AD18)^2/(AD15+AD16)","v":{"$error":"#DIV/0!"}},1,{"$f":"AD36","v":{"$error":"#DIV/0!"}},{"$f":"AF36/$AF$41","v":{"$error":"#DIV/0!"}}]
[null,null,null,null,null,null,null,null,null,null,null,null,null,null,null,null,null,null,null,null,null,null,null,null,null,null,null,null,"Non-parallelism",{"$f":"(AD17)^2/AD15+AD18^2/AD16-(AD17+AD18)^2/(AD15+AD16)","v":{"$error":"#DIV/0!"}},1,{"$f":"AD37","v":{"$error":"#DIV/0!"}},{"$f":"AF37/$AF$41","v":{"$error":"#DIV/0!"}},{"$f":"FINV(0.05,AE37,AE$41)","v":{"$error":"#NUM!"}}]
[null,null,null,null,null,null,null,null,null,null,null,null,null,null,null,null,null,null,null,null,null,null,null,null,null,null,null,null,"Non-linearity (s)",{"$f":"AD19-AD17^2/AD15","v":{"$error":"#DIV/0!"}},{"$f":"AD3-2","v":-2},{"$f":"AD38/AE38","v":{"$error":"#DIV/0!"}},{"$f":"AF38/$AF$41","v":{"$error":"#DIV/0!"}},{"$f":"FINV(0.05,AE38,AE$41)","v":{"$error":"#NUM!"}}]
[null,null,null,null,null,null,null,null,null,null,null,null,null,null,null,null,null,null,null,null,null,null,null,null,null,null,null,null,"Non-linearity (t)",{"$f":"AD20-AD18^2/AD16","v":{"$error":"#DIV/0!"}},{"$f":"AD4-2","v":-2},{"$f":"AD39/AE39","v":{"$error":"#DIV/0!"}},{"$f":"AF39/$AF$41","v":{"$error":"#DIV/0!"}},{"$f":"FINV(0.05,AE39,AE$41)","v":{"$error":"#NUM!"}}]
[]
[null,null,null,null,null,null,null,null,null,null,5,null,null,null,null,null,null,null,null,null,null,null,null,null,null,null,null,null,"Residual Error",{"$f":"AD43-AD35-AD36-AD37-AD38-AD39","v":{"$error":"#DIV/0!"}},{"$f":"AE43-AE35-AE36-AE37-AE38-AE39","v":0},{"$f":"AD41/AE41","v":{"$error":"#DIV/0!"}}]
[]
[null,null,null,null,null,null,null,null,null,null,null,null,null,null,null,null,null,null,null,null,null,null,null,null,null,null,null,null,"Total",{"$f":"SUM(AL17:AL32)-(AD7+AD8)^2/(AD5+AD6)","v":{"$error":"#DIV/0!"}},{"$f":"(AD6+AD5)-1","v":-1}]
[]
[null,null,null,null,null,null,null,null,null,null,null,null,null,null,null,null,null,null,null,null,null,null,null,null,null,null,null,null,"Slope standard",{"$f":"AD17/AD15","v":{"$error":"#DIV/0!"}}]
[null,null,null,null,null,null,null,null,null,null,null,null,null,null,null,null,null,null,null,null,null,null,null,null,null,null,null,null,"Intercept standard",{"$f":"AD13-AD45*AD11","v":{"$error":"#DIV/0!"}}]
[]
[null,null,null,null,null,null,null,null,null,null,null,null,null,null,null,null,null,null,null,null,null,null,null,null,null,null,null,null,"Slope test",{"$f":"AD18/AD16","v":{"$error":"#DIV/0!"}}]
[null,null,null,null,null,null,null,null,null,null,null,null,null,null,null,null,null,null,null,null,null,null,null,null,null,null,null,null,"Intercept test",{"$f":"AD14-AD48*AD12","v":{"$error":"#DIV/0!"}}]
[]
[null,null,null,null,null,null,null,null,null,null,null,null,null,null,null,null,null,null,null,null,null,null,null,null,null,null,null,null,null,"Limits"]
[null,null,null,null,null,null,null,null,null,null,null,null,null,null,null,null,null,null,null,null,null,null,null,null,null,null,null,null,"Relative potency","Upper","Lower"]
[null,null,null,null,null,null,null,null,null,null,null,null,null,null,null,null,null,null,null,null,null,null,null,null,null,null,null,null,{"$f":"10^AD28","v":{"$error":"#DIV/0!"}},{"$f":"10^AD30","v":{"$error":"#DIV/0!"}},{"$f":"10^AD29","v":{"$error":"#DIV/0!"}}]
[null,null,null,null,null,null,null,null,null,null,null,null,null,null,null,null,null,null,null,null,null,null,null,null,null,null,null,null,"Potency",{"$f":"$AD$53*$N$19","v":{"$error":"#DIV/0!"}},{"$f":"$AE$53*$N$19","v":{"$error":"#DIV/0!"}}]
[null,null,null,null,null,null,null,null,null,null,null,null,null,null,null,null,null,null,null,null,null,null,null,null,null,null,null,null,"Deviation",{"$f":"(AD53-AC53)/AC53","v":{"$error":"#DIV/0!"}},{"$f":"(AE53-AC53)/AC53","v":{"$error":"#DIV/0!"}}]

{"sheet":"Sample8","index":11,"n_rows":55,"n_cols":49,"rows_kept":55,"cut":false,"hidden":false,"merged":[[21,4,21,5],[22,4,22,9]]}
[null,null,null,null,null,null,null,null,null,null,null,null,null,null,null,null,null,null,null,null,"V 1.0"]
[null,null,null,"PLA tredecim V01Sep2018"]
[null,null,null,null,null,null,null,null,null,null,null,null,null,null,null,null,null,null,null,null,null,null,null,null,null,null,null,null,"aantal doses standaard",{"$f":"COUNT(AW17:AW23)-COUNTIF(AW17:AW23,\"=0\")","v":0}]
[null,null,null,"Sample","l","l","l","l","l","l",null,null,"Standard","l","l","l","l","l","l",null,null,null,null,null,null,null,null,null,"aantal doses test",{"$f":"COUNT(AW26:AW32)-COUNTIF(AW26:AW32,\"=0\")","v":0}]
[null,null,null,null,null,null,null,null,null,null,null,null,null,null,null,null,null,null,null,null,null,null,null,null,null,null,null,null,"aantal responses standaard",{"$f":"COUNTIF(AP17:AU23,\">0\")","v":0}]
[null,null,null,"Dose","Response",null,null,null,null,null,null,null,"Dose","Respons",null,null,null,null,null,null,null,null,null,null,null,null,null,null,"aantal responses test",{"$f":"COUNTIF(AP26:AU32,\">0\")","v":0}]
[null,null,null,null,1,2,3,4,5,6,null,null,null,1,2,3,4,5,6,null,null,null,null,null,null,null,null,null,"som responses standaard",{"$f":"SUM(AP17:AU23)","v":0}]
[null,null,1,null,null,null,null,null,null,null,null,1,null,null,null,null,null,null,null,null,null,null,null,null,null,null,null,null,"som responses test",{"$f":"SUM(AP26:AU32)","v":0}]
[null,null,2,null,null,null,null,null,null,null,null,2,null,null,null,null,null,null,null,null,null,null,null,null,null,null,null,null,"som Xsi",{"$f":"SUM(AH17:AH23)","v":0}]
[null,null,3,null,null,null,null,null,null,null,null,3,null,null,null,null,null,null,null,null,null,null,null,null,null,null,null,null,"som Xti",{"$f":"SUM(AH26:AH32)","v":0}]
[null,null,4,null,null,null,null,null,null,null,null,4,null,null,null,null,null,null,null,null,null,null,null,null,null,null,null,null,"XSm",{"$f":"AD9/AD5","v":{"$error":"#DIV/0!"}}]
[null,null,5,null,null,null,null,null,null,null,null,5,null,null,null,null,null,null,null,null,null,null,null,null,null,null,null,null,"XTm",{"$f":"AD10/AD6","v":{"$error":"#DIV/0!"}}]
[null,null,6,null,null,null,null,null,null,null,null,6,null,null,null,null,null,null,null,null,null,null,null,null,null,null,null,null,"Ysm",{"$f":"AD7/AD5","v":{"$error":"#DIV/0!"}}]
[null,null,7,null,null,null,null,null,null,null,null,7,null,null,null,null,null,null,null,null,null,null,null,null,null,null,null,null,"Ytm",{"$f":"AD8/AD6","v":{"$error":"#DIV/0!"}}]
[null,null,null,null,null,null,null,null,null,null,null,null,null,null,null,null,null,null,null,null,null,null,null,null,null,null,null,null,"SxxS:",{"$f":"SUM(AI17:AI23)","v":{"$error":"#DIV/0!"}}]
[null,null,null,null,null,null,null,null,null,null,null,null,null,null,null,null,null,null,null,null,null,null,null,null,null,null,null,null,"SxxT:",{"$f":"SUM(AI26:AI32)","v":{"$error":"#DIV/0!"}},null,"ni","ysi","Xsi","SxxSi","SyySi","SxySi","yi^2",null,null,"Dose","Responses",null,null,null,null,null,"Regression","Dose(log)"]
[null,null,null,null,null,null,null,null,null,null,null,null,null,null,null,null,null,null,null,null,null,null,null,null,null,null,null,null,"SxyS:",{"$f":"SUM(AK17:AK23)","v":0},null,{"$f":"COUNTIF(AP17:AU17,\">0\")","v":0},{"$f":"SUM(AP17:AU17)","v":0},{"$f":"AF17*AW17","v":0},{"$f":"AF17*(AW17-$AD$11)^2","v":{"$error":"#DIV/0!"}},{"$f":"IF(AF17=0,0,+AF17*(AG17/AF17-$AD$13)^2)","v":0},{"$f":"IF(AF17=0,0,+AF17*(AG17/AF17-$AD$13)*(AW17-$AD$11))","v":0},{"$f":"AP17^2+AQ17^2+AR17^2+AS17^2+AT17^2+AU17^2","v":0},null,"Standard",null,null,null,null,null,null,null,{"$f":"IF(AO17>0,AW17*$AD$45+$AD$46,\"\")","v":""},{"$f":"IF(AO17>0,LOG(AO17),\"\")","v":""}]
[null,null,null,"Sample: ",null,null,null,null,null,null,null,null,"Standard name:",null,null,null,null,null,null,null,null,null,null,null,null,null,null,null,"SxyT:",{"$f":"SUM(AK26:AK32)","v":0},null,{"$f":"COUNTIF(AP18:AU18,\">0\")","v":0},{"$f":"SUM(AP18:AU18)","v":0},0,{"$error":"#DIV/0!"},0,0,{"$f":"AP18^2+AQ18^2+AR18^2+AS18^2+AT18^2+AU18^2","v":0},null,null,null,null,null,null,null,null,null,"",""]
[null,null,null,"Potency: ",{"$f":"AC53*N19","v":{"$error":"#DIV/0!"}},{"$f":"O19","v":0},null,null,null,null,null,null,"Potency:",null,null,null,null,null,null,null,null,null,null,null,null,null,null,null,"SyyS:",{"$f":"SUM(AJ17:AJ23)","v":0},null,0,0,0,{"$error":"#DIV/0!"},0,0,0,null,null,null,null,null,null,null,null,null,"",""]
[null,null,null,"CI: ",{"$f":"\"(\"&TEXT(MIN(AD54:AE54),\"0.#0\")&\" - \"&TEXT(MAX(AD54:AE54),\"0.#0) \")&\"= +/-\"","v":{"$error":"#VALUE!"}},null,{"$f":"ABS((AD54-AE54)/(2*E19))","v":{"$error":"#DIV/0!"}},null,null,null,null,null,null,null,null,null,null,null,null,null,null,null,null,null,null,null,null,null,"SyyT:",{"$f":"SUM(AJ26:AJ32)","v":0},null,0,0,0,{"$error":"#DIV/0!"},0,0,0,null,null,null,null,null,null,null,null,null,"",""]
[null,null,null,null,null,null,null,null,null,null,null,null,null,"F-Ratio","Limits",null,null,null,null,null,null,null,null,null,null,null,null,null,"B:",{"$f":"(AD17+AD18)/(AD15+AD16)","v":{"$error":"#DIV/0!"}},null,0,0,0,{"$error":"#DIV/0!"},0,0,0,null,null,null,null,null,null,null,null,null,"",""]
[null,null,null,"Date: ",null,null,null,null,null,null,null,"Non-parallelism",null,{"$f":"AG37","v":{"$error":"#DIV/0!"}},{"$f":"AH37","v":{"$error":"#NUM!"}},null,null,null,null,null,null,null,null,null,null,null,null,null,"t",{"$f":"TINV(0.05,AE41)","v":{"$error":"#NUM!"}},null,0,0,0,{"$error":"#DIV/0!"},0,0,0,null,null,null,null,null,null,null,null,null,"",""]
[null,null,null,"Sample name: ",null,null,null,null,null,null,null,"Non linearity (St)",null,{"$f":"AG38","v":{"$error":"#DIV/0!"}},{"$error":"#NUM!"},null,null,null,null,null,null,null,null,null,null,null,null,null,"s",{"$f":"SQRT(AF41)","v":{"$error":"#DIV/0!"}},null,0,0,0,{"$error":"#DIV/0!"},0,0,0,null,null,null,null,null,null,null,null,null,"",""]
[null,null,null,null,null,null,null,null,null,null,null,"Non linearity (Sa)",null,{"$error":"#DIV/0!"},{"$error":"#NUM!"},null,null,null,null,null,null,null,null,null,null,null,null,null,"g",{"$f":"AD22^2*AD23^2/(AD21^2*(AD15+AD16))","v":{"$error":"#NUM!"}}]
[null,null,null,null,null,null,null,null,null,null,null,"Relative Slope",null,{"$f":"AD48/AD45","v":{"$error":"#DIV/0!"}}," 0.90-1.10",null,null,null,null,null,null,null,null,null,null,null,null,null,null,null,null,"mi","yti","Xti","SxxTi","SyyTi","SxyTi","yi^2",null,null,null,null,null,null,null,null,null,"Regression","Dose(log)"]
[null,null,null,null,null,null,null,null,null,null,null,null,null,null,null,null,null,null,null,null,null,null,null,null,null,null,null,null,"var(P)",{"$f":"(AD23^2/AD21^2)*((1/AD5+1/AD6)+(AD28-AD11+AD12)^2/(AD15+AD16))","v":{"$error":"#DIV/0!"}},null,{"$f":"COUNTIF(AP26:AU26,\">0\")","v":0},{"$f":"SUM(AP26:AU26)","v":0},{"$f":"AF26*AW26","v":0},{"$f":"AF26*(AW26-$AD$12)^2","v":{"$error":"#DIV/0!"}},{"$f":"IF(AF26=0,0,+AF26*(AG26/AF26-$AD$14)^2)","v":0},{"$f":"IF(AF26=0,0,+AF26*(AG26/AF26-$AD$14)*(AW26-$AD$12))","v":0},{"$f":"AP26^2+AQ26^2+AR26^2+AS26^2+AT26^2+AU26^2","v":0},null,"Test sample",null,null,null,null,null,null,null,{"$f":"IF(AO26>0,AW26*$AD$48+$AD$49,\"\")","v":""},{"$f":"IF(AO26>0,LOG(AO26),\"\")","v":""}]
[null,null,null,"Italic or Bold  = Delete point. Press button Recalculate",null,null,null,null,null,null,null,null,null,null,null,null,null,null,null,null,null,null,null,null,null,null,null,null,"limit",{"$f":"(AD23*AD22/AD21)*SQRT((1-AD24)*(1/AD6+1/AD5)+(AD28-AD11+AD12)^2/(AD15+AD16))","v":{"$error":"#DIV/0!"}},null,{"$f":"COUNTIF(AP27:AU27,\">0\")","v":0},0,0,{"$error":"#DIV/0!"},0,0,0,null,null,null,null,null,null,null,null,null,"",""]
[null,null,null,null,null,null,null,null,null,null,null,null,null,null,null,null,null,null,null,null,null,null,null,null,null,null,null,null,"M",{"$f":"$AD$11-$AD$12-(AD13-AD14)/AD21","v":{"$error":"#DIV/0!"}},null,0,0,0,{"$error":"#DIV/0!"},0,0,0,null,null,null,null,null,null,null,null,null,"",""]
[null,null,null,null,null,null,null,null,null,null,null,null,null,null,null,null,null,null,null,null,null,null,null,null,null,null,null,null,"Ml",{"$f":"$AD$11-$AD$12+($AD$28-$AD$11+$AD$12+$AD$27)/(1-$AD$24)","v":{"$error":"#DIV/0!"}},null,0,0,0,{"$error":"#DIV/0!"},0,0,0,null,null,null,null,null,null,null,null,null,"",""]
[null,null,null,null,null,null,null,null,null,null,null,null,null,null,null,null,null,null,null,null,null,null,null,null,null,null,null,null,"Mu",{"$f":"$AD$11-$AD$12+($AD$28-$AD$11+$AD$12-$AD$27)/(1-$AD$24)","v":{"$error":"#DIV/0!"}},null,0,0,0,{"$error":"#DIV/0!"},0,0,0,null,null,null,null,null,null,null,null,null,"",""]
[null,null,null,null,null,null,null,null,null,null,null,null,null,null,null,null,null,null,null,null,null,null,null,null,null,null,null,null,null,null,null,0,0,0,{"$error":"#DIV/0!"},0,0,0,null,null,null,null,null,null,null,null,null,"",""]
[null,null,null,null,null,null,null,null,null,null,null,null,null,null,null,null,null,null,null,null,null,null,null,null,null,null,null,null,null,null,null,0,0,0,{"$error":"#DIV/0!"},0,0,0,null,null,null,null,null,null,null,null,null,"",""]
[]
[null,null,null,null,null,null,null,null,null,null,null,null,null,null,null,null,null,null,null,null,null,null,null,null,null,null,null,null,"Source of variation","S.S.","DF","M.S.","F RATIO","F 0.95"]
[null,null,null,null,null,null,null,null,null,null,null,null,null,null,null,null,null,null,null,null,null,null,null,null,null,null,null,null,"Preparations",{"$f":"AD7^2/AD5+AD8^2/AD6-(AD7+AD8)^2/(AD5+AD6)","v":{"$error":"#DIV/0!"}},1,{"$f":"AD35","v":{"$error":"#DIV/0!"}},{"$f":"AF35/$AF$41","v":{"$error":"#DIV/0!"}}]
[null,null,null,null,null,null,null,null,null,null,null,null,null,null,null,null,null,null,null,null,null,null,null,null,null,null,null,null,"Regression",{"$f":"(AD17+AD18)^2/(AD15+AD16)","v":{"$error":"#DIV/0!"}},1,{"$f":"AD36","v":{"$error":"#DIV/0!"}},{"$f":"AF36/$AF$41","v":{"$error":"#DIV/0!"}}]
[null,null,null,null,null,null,null,null,null,null,null,null,null,null,null,null,null,null,null,null,null,null,null,null,null,null,null,null,"Non-parallelism",{"$f":"(AD17)^2/AD15+AD18^2/AD16-(AD17+AD18)^2/(AD15+AD16)","v":{"$error":"#DIV/0!"}},1,{"$f":"AD37","v":{"$error":"#DIV/0!"}},{"$f":"AF37/$AF$41","v":{"$error":"#DIV/0!"}},{"$f":"FINV(0.05,AE37,AE$41)","v":{"$error":"#NUM!"}}]
[null,null,null,null,null,null,null,null,null,null,null,null,null,null,null,null,null,null,null,null,null,null,null,null,null,null,null,null,"Non-linearity (s)",{"$f":"AD19-AD17^2/AD15","v":{"$error":"#DIV/0!"}},{"$f":"AD3-2","v":-2},{"$f":"AD38/AE38","v":{"$error":"#DIV/0!"}},{"$f":"AF38/$AF$41","v":{"$error":"#DIV/0!"}},{"$f":"FINV(0.05,AE38,AE$41)","v":{"$error":"#NUM!"}}]
[null,null,null,null,null,null,null,null,null,null,null,null,null,null,null,null,null,null,null,null,null,null,null,null,null,null,null,null,"Non-linearity (t)",{"$f":"AD20-AD18^2/AD16","v":{"$error":"#DIV/0!"}},{"$f":"AD4-2","v":-2},{"$f":"AD39/AE39","v":{"$error":"#DIV/0!"}},{"$f":"AF39/$AF$41","v":{"$error":"#DIV/0!"}},{"$f":"FINV(0.05,AE39,AE$41)","v":{"$error":"#NUM!"}}]
[]
[null,null,null,null,null,null,null,null,null,null,5,null,null,null,null,null,null,null,null,null,null,null,null,null,null,null,null,null,"Residual Error",{"$f":"AD43-AD35-AD36-AD37-AD38-AD39","v":{"$error":"#DIV/0!"}},{"$f":"AE43-AE35-AE36-AE37-AE38-AE39","v":0},{"$f":"AD41/AE41","v":{"$error":"#DIV/0!"}}]
[]
[null,null,null,null,null,null,null,null,null,null,null,null,null,null,null,null,null,null,null,null,null,null,null,null,null,null,null,null,"Total",{"$f":"SUM(AL17:AL32)-(AD7+AD8)^2/(AD5+AD6)","v":{"$error":"#DIV/0!"}},{"$f":"(AD6+AD5)-1","v":-1}]
[]
[null,null,null,null,null,null,null,null,null,null,null,null,null,null,null,null,null,null,null,null,null,null,null,null,null,null,null,null,"Slope standard",{"$f":"AD17/AD15","v":{"$error":"#DIV/0!"}}]
[null,null,null,null,null,null,null,null,null,null,null,null,null,null,null,null,null,null,null,null,null,null,null,null,null,null,null,null,"Intercept standard",{"$f":"AD13-AD45*AD11","v":{"$error":"#DIV/0!"}}]
[]
[null,null,null,null,null,null,null,null,null,null,null,null,null,null,null,null,null,null,null,null,null,null,null,null,null,null,null,null,"Slope test",{"$f":"AD18/AD16","v":{"$error":"#DIV/0!"}}]
[null,null,null,null,null,null,null,null,null,null,null,null,null,null,null,null,null,null,null,null,null,null,null,null,null,null,null,null,"Intercept test",{"$f":"AD14-AD48*AD12","v":{"$error":"#DIV/0!"}}]
[]
[null,null,null,null,null,null,null,null,null,null,null,null,null,null,null,null,null,null,null,null,null,null,null,null,null,null,null,null,null,"Limits"]
[null,null,null,null,null,null,null,null,null,null,null,null,null,null,null,null,null,null,null,null,null,null,null,null,null,null,null,null,"Relative potency","Upper","Lower"]
[null,null,null,null,null,null,null,null,null,null,null,null,null,null,null,null,null,null,null,null,null,null,null,null,null,null,null,null,{"$f":"10^AD28","v":{"$error":"#DIV/0!"}},{"$f":"10^AD30","v":{"$error":"#DIV/0!"}},{"$f":"10^AD29","v":{"$error":"#DIV/0!"}}]
[null,null,null,null,null,null,null,null,null,null,null,null,null,null,null,null,null,null,null,null,null,null,null,null,null,null,null,null,"Potency",{"$f":"$AD$53*$N$19","v":{"$error":"#DIV/0!"}},{"$f":"$AE$53*$N$19","v":{"$error":"#DIV/0!"}}]
[null,null,null,null,null,null,null,null,null,null,null,null,null,null,null,null,null,null,null,null,null,null,null,null,null,null,null,null,"Deviation",{"$f":"(AD53-AC53)/AC53","v":{"$error":"#DIV/0!"}},{"$f":"(AE53-AC53)/AC53","v":{"$error":"#DIV/0!"}}]

{"sheet":"Sample9","index":12,"n_rows":55,"n_cols":49,"rows_kept":55,"cut":false,"hidden":false,"merged":[[21,4,21,5],[22,4,22,9]]}
[null,null,null,null,null,null,null,null,null,null,null,null,null,null,null,null,null,null,null,null,"V 1.0"]
[null,null,null,"PLA tredecim V01Sep2018"]
[null,null,null,null,null,null,null,null,null,null,null,null,null,null,null,null,null,null,null,null,null,null,null,null,null,null,null,null,"aantal doses standaard",{"$f":"COUNT(AW17:AW23)-COUNTIF(AW17:AW23,\"=0\")","v":0}]
[null,null,null,"Sample","l","l","l","l","l","l",null,null,"Standard","l","l","l","l","l","l",null,null,null,null,null,null,null,null,null,"aantal doses test",{"$f":"COUNT(AW26:AW32)-COUNTIF(AW26:AW32,\"=0\")","v":0}]
[null,null,null,null,null,null,null,null,null,null,null,null,null,null,null,null,null,null,null,null,null,null,null,null,null,null,null,null,"aantal responses standaard",{"$f":"COUNTIF(AP17:AU23,\">0\")","v":0}]
[null,null,null,"Dose","Response",null,null,null,null,null,null,null,"Dose","Respons",null,null,null,null,null,null,null,null,null,null,null,null,null,null,"aantal responses test",{"$f":"COUNTIF(AP26:AU32,\">0\")","v":0}]
[null,null,null,null,1,2,3,4,5,6,null,null,null,1,2,3,4,5,6,null,null,null,null,null,null,null,null,null,"som responses standaard",{"$f":"SUM(AP17:AU23)","v":0}]
[null,null,1,null,null,null,null,null,null,null,null,1,null,null,null,null,null,null,null,null,null,null,null,null,null,null,null,null,"som responses test",{"$f":"SUM(AP26:AU32)","v":0}]
[null,null,2,null,null,null,null,null,null,null,null,2,null,null,null,null,null,null,null,null,null,null,null,null,null,null,null,null,"som Xsi",{"$f":"SUM(AH17:AH23)","v":0}]
[null,null,3,null,null,null,null,null,null,null,null,3,null,null,null,null,null,null,null,null,null,null,null,null,null,null,null,null,"som Xti",{"$f":"SUM(AH26:AH32)","v":0}]
[null,null,4,null,null,null,null,null,null,null,null,4,null,null,null,null,null,null,null,null,null,null,null,null,null,null,null,null,"XSm",{"$f":"AD9/AD5","v":{"$error":"#DIV/0!"}}]
[null,null,5,null,null,null,null,null,null,null,null,5,null,null,null,null,null,null,null,null,null,null,null,null,null,null,null,null,"XTm",{"$f":"AD10/AD6","v":{"$error":"#DIV/0!"}}]
[null,null,6,null,null,null,null,null,null,null,null,6,null,null,null,null,null,null,null,null,null,null,null,null,null,null,null,null,"Ysm",{"$f":"AD7/AD5","v":{"$error":"#DIV/0!"}}]
[null,null,7,null,null,null,null,null,null,null,null,7,null,null,null,null,null,null,null,null,null,null,null,null,null,null,null,null,"Ytm",{"$f":"AD8/AD6","v":{"$error":"#DIV/0!"}}]
[null,null,null,null,null,null,null,null,null,null,null,null,null,null,null,null,null,null,null,null,null,null,null,null,null,null,null,null,"SxxS:",{"$f":"SUM(AI17:AI23)","v":{"$error":"#DIV/0!"}}]
[null,null,null,null,null,null,null,null,null,null,null,null,null,null,null,null,null,null,null,null,null,null,null,null,null,null,null,null,"SxxT:",{"$f":"SUM(AI26:AI32)","v":{"$error":"#DIV/0!"}},null,"ni","ysi","Xsi","SxxSi","SyySi","SxySi","yi^2",null,null,"Dose","Responses",null,null,null,null,null,"Regression","Dose(log)"]
[null,null,null,null,null,null,null,null,null,null,null,null,null,null,null,null,null,null,null,null,null,null,null,null,null,null,null,null,"SxyS:",{"$f":"SUM(AK17:AK23)","v":0},null,{"$f":"COUNTIF(AP17:AU17,\">0\")","v":0},{"$f":"SUM(AP17:AU17)","v":0},{"$f":"AF17*AW17","v":0},{"$f":"AF17*(AW17-$AD$11)^2","v":{"$error":"#DIV/0!"}},{"$f":"IF(AF17=0,0,+AF17*(AG17/AF17-$AD$13)^2)","v":0},{"$f":"IF(AF17=0,0,+AF17*(AG17/AF17-$AD$13)*(AW17-$AD$11))","v":0},{"$f":"AP17^2+AQ17^2+AR17^2+AS17^2+AT17^2+AU17^2","v":0},null,"Standard",null,null,null,null,null,null,null,{"$f":"IF(AO17>0,AW17*$AD$45+$AD$46,\"\")","v":""},{"$f":"IF(AO17>0,LOG(AO17),\"\")","v":""}]
[null,null,null,"Sample: ",null,null,null,null,null,null,null,null,"Standard name:",null,null,null,null,null,null,null,null,null,null,null,null,null,null,null,"SxyT:",{"$f":"SUM(AK26:AK32)","v":0},null,{"$f":"COUNTIF(AP18:AU18,\">0\")","v":0},{"$f":"SUM(AP18:AU18)","v":0},0,{"$error":"#DIV/0!"},0,0,{"$f":"AP18^2+AQ18^2+AR18^2+AS18^2+AT18^2+AU18^2","v":0},null,null,null,null,null,null,null,null,null,"",""]
[null,null,null,"Potency: ",{"$f":"AC53*N19","v":{"$error":"#DIV/0!"}},{"$f":"O19","v":0},null,null,null,null,null,null,"Potency:",null,null,null,null,null,null,null,null,null,null,null,null,null,null,null,"SyyS:",{"$f":"SUM(AJ17:AJ23)","v":0},null,0,0,0,{"$error":"#DIV/0!"},0,0,0,null,null,null,null,null,null,null,null,null,"",""]
[null,null,null,"CI: ",{"$f":"\"(\"&TEXT(MIN(AD54:AE54),\"0.#0\")&\" - \"&TEXT(MAX(AD54:AE54),\"0.#0) \")&\"= +/-\"","v":{"$error":"#VALUE!"}},null,{"$f":"ABS((AD54-AE54)/(2*E19))","v":{"$error":"#DIV/0!"}},null,null,null,null,null,null,null,null,null,null,null,null,null,null,null,null,null,null,null,null,null,"SyyT:",{"$f":"SUM(AJ26:AJ32)","v":0},null,0,0,0,{"$error":"#DIV/0!"},0,0,0,null,null,null,null,null,null,null,null,null,"",""]
[null,null,null,null,null,null,null,null,null,null,null,null,null,"F-Ratio","Limits",null,null,null,null,null,null,null,null,null,null,null,null,null,"B:",{"$f":"(AD17+AD18)/(AD15+AD16)","v":{"$error":"#DIV/0!"}},null,0,0,0,{"$error":"#DIV/0!"},0,0,0,null,null,null,null,null,null,null,null,null,"",""]
[null,null,null,"Date: ",null,null,null,null,null,null,null,"Non-parallelism",null,{"$f":"AG37","v":{"$error":"#DIV/0!"}},{"$f":"AH37","v":{"$error":"#NUM!"}},null,null,null,null,null,null,null,null,null,null,null,null,null,"t",{"$f":"TINV(0.05,AE41)","v":{"$error":"#NUM!"}},null,0,0,0,{"$error":"#DIV/0!"},0,0,0,null,null,null,null,null,null,null,null,null,"",""]
[null,null,null,"Sample name: ",null,null,null,null,null,null,null,"Non linearity (St)",null,{"$f":"AG38","v":{"$error":"#DIV/0!"}},{"$error":"#NUM!"},null,null,null,null,null,null,null,null,null,null,null,null,null,"s",{"$f":"SQRT(AF41)","v":{"$error":"#DIV/0!"}},null,0,0,0,{"$error":"#DIV/0!"},0,0,0,null,null,null,null,null,null,null,null,null,"",""]
[null,null,null,null,null,null,null,null,null,null,null,"Non linearity (Sa)",null,{"$error":"#DIV/0!"},{"$error":"#NUM!"},null,null,null,null,null,null,null,null,null,null,null,null,null,"g",{"$f":"AD22^2*AD23^2/(AD21^2*(AD15+AD16))","v":{"$error":"#NUM!"}}]
[null,null,null,null,null,null,null,null,null,null,null,"Relative Slope",null,{"$f":"AD48/AD45","v":{"$error":"#DIV/0!"}}," 0.90-1.10",null,null,null,null,null,null,null,null,null,null,null,null,null,null,null,null,"mi","yti","Xti","SxxTi","SyyTi","SxyTi","yi^2",null,null,null,null,null,null,null,null,null,"Regression","Dose(log)"]
[null,null,null,null,null,null,null,null,null,null,null,null,null,null,null,null,null,null,null,null,null,null,null,null,null,null,null,null,"var(P)",{"$f":"(AD23^2/AD21^2)*((1/AD5+1/AD6)+(AD28-AD11+AD12)^2/(AD15+AD16))","v":{"$error":"#DIV/0!"}},null,{"$f":"COUNTIF(AP26:AU26,\">0\")","v":0},{"$f":"SUM(AP26:AU26)","v":0},{"$f":"AF26*AW26","v":0},{"$f":"AF26*(AW26-$AD$12)^2","v":{"$error":"#DIV/0!"}},{"$f":"IF(AF26=0,0,+AF26*(AG26/AF26-$AD$14)^2)","v":0},{"$f":"IF(AF26=0,0,+AF26*(AG26/AF26-$AD$14)*(AW26-$AD$12))","v":0},{"$f":"AP26^2+AQ26^2+AR26^2+AS26^2+AT26^2+AU26^2","v":0},null,"Test sample",null,null,null,null,null,null,null,{"$f":"IF(AO26>0,AW26*$AD$48+$AD$49,\"\")","v":""},{"$f":"IF(AO26>0,LOG(AO26),\"\")","v":""}]
[null,null,null,"Italic or Bold  = Delete point. Press button Recalculate",null,null,null,null,null,null,null,null,null,null,null,null,null,null,null,null,null,null,null,null,null,null,null,null,"limit",{"$f":"(AD23*AD22/AD21)*SQRT((1-AD24)*(1/AD6+1/AD5)+(AD28-AD11+AD12)^2/(AD15+AD16))","v":{"$error":"#DIV/0!"}},null,{"$f":"COUNTIF(AP27:AU27,\">0\")","v":0},0,0,{"$error":"#DIV/0!"},0,0,0,null,null,null,null,null,null,null,null,null,"",""]
[null,null,null,null,null,null,null,null,null,null,null,null,null,null,null,null,null,null,null,null,null,null,null,null,null,null,null,null,"M",{"$f":"$AD$11-$AD$12-(AD13-AD14)/AD21","v":{"$error":"#DIV/0!"}},null,0,0,0,{"$error":"#DIV/0!"},0,0,0,null,null,null,null,null,null,null,null,null,"",""]
[null,null,null,null,null,null,null,null,null,null,null,null,null,null,null,null,null,null,null,null,null,null,null,null,null,null,null,null,"Ml",{"$f":"$AD$11-$AD$12+($AD$28-$AD$11+$AD$12+$AD$27)/(1-$AD$24)","v":{"$error":"#DIV/0!"}},null,0,0,0,{"$error":"#DIV/0!"},0,0,0,null,null,null,null,null,null,null,null,null,"",""]
[null,null,null,null,null,null,null,null,null,null,null,null,null,null,null,null,null,null,null,null,null,null,null,null,null,null,null,null,"Mu",{"$f":"$AD$11-$AD$12+($AD$28-$AD$11+$AD$12-$AD$27)/(1-$AD$24)","v":{"$error":"#DIV/0!"}},null,0,0,0,{"$error":"#DIV/0!"},0,0,0,null,null,null,null,null,null,null,null,null,"",""]
[null,null,null,null,null,null,null,null,null,null,null,null,null,null,null,null,null,null,null,null,null,null,null,null,null,null,null,null,null,null,null,0,0,0,{"$error":"#DIV/0!"},0,0,0,null,null,null,null,null,null,null,null,null,"",""]
[null,null,null,null,null,null,null,null,null,null,null,null,null,null,null,null,null,null,null,null,null,null,null,null,null,null,null,null,null,null,null,0,0,0,{"$error":"#DIV/0!"},0,0,0,null,null,null,null,null,null,null,null,null,"",""]
[]
[null,null,null,null,null,null,null,null,null,null,null,null,null,null,null,null,null,null,null,null,null,null,null,null,null,null,null,null,"Source of variation","S.S.","DF","M.S.","F RATIO","F 0.95"]
[null,null,null,null,null,null,null,null,null,null,null,null,null,null,null,null,null,null,null,null,null,null,null,null,null,null,null,null,"Preparations",{"$f":"AD7^2/AD5+AD8^2/AD6-(AD7+AD8)^2/(AD5+AD6)","v":{"$error":"#DIV/0!"}},1,{"$f":"AD35","v":{"$error":"#DIV/0!"}},{"$f":"AF35/$AF$41","v":{"$error":"#DIV/0!"}}]
[null,null,null,null,null,null,null,null,null,null,null,null,null,null,null,null,null,null,null,null,null,null,null,null,null,null,null,null,"Regression",{"$f":"(AD17+AD18)^2/(AD15+AD16)","v":{"$error":"#DIV/0!"}},1,{"$f":"AD36","v":{"$error":"#DIV/0!"}},{"$f":"AF36/$AF$41","v":{"$error":"#DIV/0!"}}]
[null,null,null,null,null,null,null,null,null,null,null,null,null,null,null,null,null,null,null,null,null,null,null,null,null,null,null,null,"Non-parallelism",{"$f":"(AD17)^2/AD15+AD18^2/AD16-(AD17+AD18)^2/(AD15+AD16)","v":{"$error":"#DIV/0!"}},1,{"$f":"AD37","v":{"$error":"#DIV/0!"}},{"$f":"AF37/$AF$41","v":{"$error":"#DIV/0!"}},{"$f":"FINV(0.05,AE37,AE$41)","v":{"$error":"#NUM!"}}]
[null,null,null,null,null,null,null,null,null,null,null,null,null,null,null,null,null,null,null,null,null,null,null,null,null,null,null,null,"Non-linearity (s)",{"$f":"AD19-AD17^2/AD15","v":{"$error":"#DIV/0!"}},{"$f":"AD3-2","v":-2},{"$f":"AD38/AE38","v":{"$error":"#DIV/0!"}},{"$f":"AF38/$AF$41","v":{"$error":"#DIV/0!"}},{"$f":"FINV(0.05,AE38,AE$41)","v":{"$error":"#NUM!"}}]
[null,null,null,null,null,null,null,null,null,null,null,null,null,null,null,null,null,null,null,null,null,null,null,null,null,null,null,null,"Non-linearity (t)",{"$f":"AD20-AD18^2/AD16","v":{"$error":"#DIV/0!"}},{"$f":"AD4-2","v":-2},{"$f":"AD39/AE39","v":{"$error":"#DIV/0!"}},{"$f":"AF39/$AF$41","v":{"$error":"#DIV/0!"}},{"$f":"FINV(0.05,AE39,AE$41)","v":{"$error":"#NUM!"}}]
[]
[null,null,null,null,null,null,null,null,null,null,5,null,null,null,null,null,null,null,null,null,null,null,null,null,null,null,null,null,"Residual Error",{"$f":"AD43-AD35-AD36-AD37-AD38-AD39","v":{"$error":"#DIV/0!"}},{"$f":"AE43-AE35-AE36-AE37-AE38-AE39","v":0},{"$f":"AD41/AE41","v":{"$error":"#DIV/0!"}}]
[]
[null,null,null,null,null,null,null,null,null,null,null,null,null,null,null,null,null,null,null,null,null,null,null,null,null,null,null,null,"Total",{"$f":"SUM(AL17:AL32)-(AD7+AD8)^2/(AD5+AD6)","v":{"$error":"#DIV/0!"}},{"$f":"(AD6+AD5)-1","v":-1}]
[]
[null,null,null,null,null,null,null,null,null,null,null,null,null,null,null,null,null,null,null,null,null,null,null,null,null,null,null,null,"Slope standard",{"$f":"AD17/AD15","v":{"$error":"#DIV/0!"}}]
[null,null,null,null,null,null,null,null,null,null,null,null,null,null,null,null,null,null,null,null,null,null,null,null,null,null,null,null,"Intercept standard",{"$f":"AD13-AD45*AD11","v":{"$error":"#DIV/0!"}}]
[]
[null,null,null,null,null,null,null,null,null,null,null,null,null,null,null,null,null,null,null,null,null,null,null,null,null,null,null,null,"Slope test",{"$f":"AD18/AD16","v":{"$error":"#DIV/0!"}}]
[null,null,null,null,null,null,null,null,null,null,null,null,null,null,null,null,null,null,null,null,null,null,null,null,null,null,null,null,"Intercept test",{"$f":"AD14-AD48*AD12","v":{"$error":"#DIV/0!"}}]
[]
[null,null,null,null,null,null,null,null,null,null,null,null,null,null,null,null,null,null,null,null,null,null,null,null,null,null,null,null,null,"Limits"]
[null,null,null,null,null,null,null,null,null,null,null,null,null,null,null,null,null,null,null,null,null,null,null,null,null,null,null,null,"Relative potency","Upper","Lower"]
[null,null,null,null,null,null,null,null,null,null,null,null,null,null,null,null,null,null,null,null,null,null,null,null,null,null,null,null,{"$f":"10^AD28","v":{"$error":"#DIV/0!"}},{"$f":"10^AD30","v":{"$error":"#DIV/0!"}},{"$f":"10^AD29","v":{"$error":"#DIV/0!"}}]
[null,null,null,null,null,null,null,null,null,null,null,null,null,null,null,null,null,null,null,null,null,null,null,null,null,null,null,null,"Potency",{"$f":"$AD$53*$N$19","v":{"$error":"#DIV/0!"}},{"$f":"$AE$53*$N$19","v":{"$error":"#DIV/0!"}}]
[null,null,null,null,null,null,null,null,null,null,null,null,null,null,null,null,null,null,null,null,null,null,null,null,null,null,null,null,"Deviation",{"$f":"(AD53-AC53)/AC53","v":{"$error":"#DIV/0!"}},{"$f":"(AE53-AC53)/AC53","v":{"$error":"#DIV/0!"}}]

{"sheet":"Sample10","index":13,"n_rows":55,"n_cols":49,"rows_kept":55,"cut":false,"hidden":false,"merged":[[21,4,21,5],[22,4,22,9]]}
[null,null,null,null,null,null,null,null,null,null,null,null,null,null,null,null,null,null,null,null,"V 1.0"]
[null,null,null,"PLA tredecim V01Sep2018"]
[null,null,null,null,null,null,null,null,null,null,null,null,null,null,null,null,null,null,null,null,null,null,null,null,null,null,null,null,"aantal doses standaard",{"$f":"COUNT(AW17:AW23)-COUNTIF(AW17:AW23,\"=0\")","v":0}]
[null,null,null,"Sample","l","l","l","l","l","l",null,null,"Standard","l","l","l","l","l","l",null,null,null,null,null,null,null,null,null,"aantal doses test",{"$f":"COUNT(AW26:AW32)-COUNTIF(AW26:AW32,\"=0\")","v":0}]
[null,null,null,null,null,null,null,null,null,null,null,null,null,null,null,null,null,null,null,null,null,null,null,null,null,null,null,null,"aantal responses standaard",{"$f":"COUNTIF(AP17:AU23,\">0\")","v":0}]
[null,null,null,"Dose","Response",null,null,null,null,null,null,null,"Dose","Respons",null,null,null,null,null,null,null,null,null,null,null,null,null,null,"aantal responses test",{"$f":"COUNTIF(AP26:AU32,\">0\")","v":0}]
[null,null,null,null,1,2,3,4,5,6,null,null,null,1,2,3,4,5,6,null,null,null,null,null,null,null,null,null,"som responses standaard",{"$f":"SUM(AP17:AU23)","v":0}]
[null,null,1,null,null,null,null,null,null,null,null,1,null,null,null,null,null,null,null,null,null,null,null,null,null,null,null,null,"som responses test",{"$f":"SUM(AP26:AU32)","v":0}]
[null,null,2,null,null,null,null,null,null,null,null,2,null,null,null,null,null,null,null,null,null,null,null,null,null,null,null,null,"som Xsi",{"$f":"SUM(AH17:AH23)","v":0}]
[null,null,3,null,null,null,null,null,null,null,null,3,null,null,null,null,null,null,null,null,null,null,null,null,null,null,null,null,"som Xti",{"$f":"SUM(AH26:AH32)","v":0}]
[null,null,4,null,null,null,null,null,null,null,null,4,null,null,null,null,null,null,null,null,null,null,null,null,null,null,null,null,"XSm",{"$f":"AD9/AD5","v":{"$error":"#DIV/0!"}}]
[null,null,5,null,null,null,null,null,null,null,null,5,null,null,null,null,null,null,null,null,null,null,null,null,null,null,null,null,"XTm",{"$f":"AD10/AD6","v":{"$error":"#DIV/0!"}}]
[null,null,6,null,null,null,null,null,null,null,null,6,null,null,null,null,null,null,null,null,null,null,null,null,null,null,null,null,"Ysm",{"$f":"AD7/AD5","v":{"$error":"#DIV/0!"}}]
[null,null,7,null,null,null,null,null,null,null,null,7,null,null,null,null,null,null,null,null,null,null,null,null,null,null,null,null,"Ytm",{"$f":"AD8/AD6","v":{"$error":"#DIV/0!"}}]
[null,null,null,null,null,null,null,null,null,null,null,null,null,null,null,null,null,null,null,null,null,null,null,null,null,null,null,null,"SxxS:",{"$f":"SUM(AI17:AI23)","v":{"$error":"#DIV/0!"}}]
[null,null,null,null,null,null,null,null,null,null,null,null,null,null,null,null,null,null,null,null,null,null,null,null,null,null,null,null,"SxxT:",{"$f":"SUM(AI26:AI32)","v":{"$error":"#DIV/0!"}},null,"ni","ysi","Xsi","SxxSi","SyySi","SxySi","yi^2",null,null,"Dose","Responses",null,null,null,null,null,"Regression","Dose(log)"]
[null,null,null,null,null,null,null,null,null,null,null,null,null,null,null,null,null,null,null,null,null,null,null,null,null,null,null,null,"SxyS:",{"$f":"SUM(AK17:AK23)","v":0},null,{"$f":"COUNTIF(AP17:AU17,\">0\")","v":0},{"$f":"SUM(AP17:AU17)","v":0},{"$f":"AF17*AW17","v":0},{"$f":"AF17*(AW17-$AD$11)^2","v":{"$error":"#DIV/0!"}},{"$f":"IF(AF17=0,0,+AF17*(AG17/AF17-$AD$13)^2)","v":0},{"$f":"IF(AF17=0,0,+AF17*(AG17/AF17-$AD$13)*(AW17-$AD$11))","v":0},{"$f":"AP17^2+AQ17^2+AR17^2+AS17^2+AT17^2+AU17^2","v":0},null,"Standard",null,null,null,null,null,null,null,{"$f":"IF(AO17>0,AW17*$AD$45+$AD$46,\"\")","v":""},{"$f":"IF(AO17>0,LOG(AO17),\"\")","v":""}]
[null,null,null,"Sample: ",null,null,null,null,null,null,null,null,"Standard name:",null,null,null,null,null,null,null,null,null,null,null,null,null,null,null,"SxyT:",{"$f":"SUM(AK26:AK32)","v":0},null,{"$f":"COUNTIF(AP18:AU18,\">0\")","v":0},{"$f":"SUM(AP18:AU18)","v":0},0,{"$error":"#DIV/0!"},0,0,{"$f":"AP18^2+AQ18^2+AR18^2+AS18^2+AT18^2+AU18^2","v":0},null,null,null,null,null,null,null,null,null,"",""]
[null,null,null,"Potency: ",{"$f":"AC53*N19","v":{"$error":"#DIV/0!"}},{"$f":"O19","v":0},null,null,null,null,null,null,"Potency:",null,null,null,null,null,null,null,null,null,null,null,null,null,null,null,"SyyS:",{"$f":"SUM(AJ17:AJ23)","v":0},null,0,0,0,{"$error":"#DIV/0!"},0,0,0,null,null,null,null,null,null,null,null,null,"",""]
[null,null,null,"CI: ",{"$f":"\"(\"&TEXT(MIN(AD54:AE54),\"0.#0\")&\" - \"&TEXT(MAX(AD54:AE54),\"0.#0) \")&\"= +/-\"","v":{"$error":"#VALUE!"}},null,{"$f":"ABS((AD54-AE54)/(2*E19))","v":{"$error":"#DIV/0!"}},null,null,null,null,null,null,null,null,null,null,null,null,null,null,null,null,null,null,null,null,null,"SyyT:",{"$f":"SUM(AJ26:AJ32)","v":0},null,0,0,0,{"$error":"#DIV/0!"},0,0,0,null,null,null,null,null,null,null,null,null,"",""]
[null,null,null,null,null,null,null,null,null,null,null,null,null,"F-Ratio","Limits",null,null,null,null,null,null,null,null,null,null,null,null,null,"B:",{"$f":"(AD17+AD18)/(AD15+AD16)","v":{"$error":"#DIV/0!"}},null,0,0,0,{"$error":"#DIV/0!"},0,0,0,null,null,null,null,null,null,null,null,null,"",""]
[null,null,null,"Date: ",null,null,null,null,null,null,null,"Non-parallelism",null,{"$f":"AG37","v":{"$error":"#DIV/0!"}},{"$f":"AH37","v":{"$error":"#NUM!"}},null,null,null,null,null,null,null,null,null,null,null,null,null,"t",{"$f":"TINV(0.05,AE41)","v":{"$error":"#NUM!"}},null,0,0,0,{"$error":"#DIV/0!"},0,0,0,null,null,null,null,null,null,null,null,null,"",""]
[null,null,null,"Sample name: ",null,null,null,null,null,null,null,"Non linearity (St)",null,{"$f":"AG38","v":{"$error":"#DIV/0!"}},{"$error":"#NUM!"},null,null,null,null,null,null,null,null,null,null,null,null,null,"s",{"$f":"SQRT(AF41)","v":{"$error":"#DIV/0!"}},null,0,0,0,{"$error":"#DIV/0!"},0,0,0,null,null,null,null,null,null,null,null,null,"",""]
[null,null,null,null,null,null,null,null,null,null,null,"Non linearity (Sa)",null,{"$error":"#DIV/0!"},{"$error":"#NUM!"},null,null,null,null,null,null,null,null,null,null,null,null,null,"g",{"$f":"AD22^2*AD23^2/(AD21^2*(AD15+AD16))","v":{"$error":"#NUM!"}}]
[null,null,null,null,null,null,null,null,null,null,null,"Relative Slope",null,{"$f":"AD48/AD45","v":{"$error":"#DIV/0!"}}," 0.90-1.10",null,null,null,null,null,null,null,null,null,null,null,null,null,null,null,null,"mi","yti","Xti","SxxTi","SyyTi","SxyTi","yi^2",null,null,null,null,null,null,null,null,null,"Regression","Dose(log)"]
[null,null,null,null,null,null,null,null,null,null,null,null,null,null,null,null,null,null,null,null,null,null,null,null,null,null,null,null,"var(P)",{"$f":"(AD23^2/AD21^2)*((1/AD5+1/AD6)+(AD28-AD11+AD12)^2/(AD15+AD16))","v":{"$error":"#DIV/0!"}},null,{"$f":"COUNTIF(AP26:AU26,\">0\")","v":0},{"$f":"SUM(AP26:AU26)","v":0},{"$f":"AF26*AW26","v":0},{"$f":"AF26*(AW26-$AD$12)^2","v":{"$error":"#DIV/0!"}},{"$f":"IF(AF26=0,0,+AF26*(AG26/AF26-$AD$14)^2)","v":0},{"$f":"IF(AF26=0,0,+AF26*(AG26/AF26-$AD$14)*(AW26-$AD$12))","v":0},{"$f":"AP26^2+AQ26^2+AR26^2+AS26^2+AT26^2+AU26^2","v":0},null,"Test sample",null,null,null,null,null,null,null,{"$f":"IF(AO26>0,AW26*$AD$48+$AD$49,\"\")","v":""},{"$f":"IF(AO26>0,LOG(AO26),\"\")","v":""}]
[null,null,null,"Italic or Bold  = Delete point. Press button Recalculate",null,null,null,null,null,null,null,null,null,null,null,null,null,null,null,null,null,null,null,null,null,null,null,null,"limit",{"$f":"(AD23*AD22/AD21)*SQRT((1-AD24)*(1/AD6+1/AD5)+(AD28-AD11+AD12)^2/(AD15+AD16))","v":{"$error":"#DIV/0!"}},null,{"$f":"COUNTIF(AP27:AU27,\">0\")","v":0},0,0,{"$error":"#DIV/0!"},0,0,0,null,null,null,null,null,null,null,null,null,"",""]
[null,null,null,null,null,null,null,null,null,null,null,null,null,null,null,null,null,null,null,null,null,null,null,null,null,null,null,null,"M",{"$f":"$AD$11-$AD$12-(AD13-AD14)/AD21","v":{"$error":"#DIV/0!"}},null,0,0,0,{"$error":"#DIV/0!"},0,0,0,null,null,null,null,null,null,null,null,null,"",""]
[null,null,null,null,null,null,null,null,null,null,null,null,null,null,null,null,null,null,null,null,null,null,null,null,null,null,null,null,"Ml",{"$f":"$AD$11-$AD$12+($AD$28-$AD$11+$AD$12+$AD$27)/(1-$AD$24)","v":{"$error":"#DIV/0!"}},null,0,0,0,{"$error":"#DIV/0!"},0,0,0,null,null,null,null,null,null,null,null,null,"",""]
[null,null,null,null,null,null,null,null,null,null,null,null,null,null,null,null,null,null,null,null,null,null,null,null,null,null,null,null,"Mu",{"$f":"$AD$11-$AD$12+($AD$28-$AD$11+$AD$12-$AD$27)/(1-$AD$24)","v":{"$error":"#DIV/0!"}},null,0,0,0,{"$error":"#DIV/0!"},0,0,0,null,null,null,null,null,null,null,null,null,"",""]
[null,null,null,null,null,null,null,null,null,null,null,null,null,null,null,null,null,null,null,null,null,null,null,null,null,null,null,null,null,null,null,0,0,0,{"$error":"#DIV/0!"},0,0,0,null,null,null,null,null,null,null,null,null,"",""]
[null,null,null,null,null,null,null,null,null,null,null,null,null,null,null,null,null,null,null,null,null,null,null,null,null,null,null,null,null,null,null,0,0,0,{"$error":"#DIV/0!"},0,0,0,null,null,null,null,null,null,null,null,null,"",""]
[]
[null,null,null,null,null,null,null,null,null,null,null,null,null,null,null,null,null,null,null,null,null,null,null,null,null,null,null,null,"Source of variation","S.S.","DF","M.S.","F RATIO","F 0.95"]
[null,null,null,null,null,null,null,null,null,null,null,null,null,null,null,null,null,null,null,null,null,null,null,null,null,null,null,null,"Preparations",{"$f":"AD7^2/AD5+AD8^2/AD6-(AD7+AD8)^2/(AD5+AD6)","v":{"$error":"#DIV/0!"}},1,{"$f":"AD35","v":{"$error":"#DIV/0!"}},{"$f":"AF35/$AF$41","v":{"$error":"#DIV/0!"}}]
[null,null,null,null,null,null,null,null,null,null,null,null,null,null,null,null,null,null,null,null,null,null,null,null,null,null,null,null,"Regression",{"$f":"(AD17+AD18)^2/(AD15+AD16)","v":{"$error":"#DIV/0!"}},1,{"$f":"AD36","v":{"$error":"#DIV/0!"}},{"$f":"AF36/$AF$41","v":{"$error":"#DIV/0!"}}]
[null,null,null,null,null,null,null,null,null,null,null,null,null,null,null,null,null,null,null,null,null,null,null,null,null,null,null,null,"Non-parallelism",{"$f":"(AD17)^2/AD15+AD18^2/AD16-(AD17+AD18)^2/(AD15+AD16)","v":{"$error":"#DIV/0!"}},1,{"$f":"AD37","v":{"$error":"#DIV/0!"}},{"$f":"AF37/$AF$41","v":{"$error":"#DIV/0!"}},{"$f":"FINV(0.05,AE37,AE$41)","v":{"$error":"#NUM!"}}]
[null,null,null,null,null,null,null,null,null,null,null,null,null,null,null,null,null,null,null,null,null,null,null,null,null,null,null,null,"Non-linearity (s)",{"$f":"AD19-AD17^2/AD15","v":{"$error":"#DIV/0!"}},{"$f":"AD3-2","v":-2},{"$f":"AD38/AE38","v":{"$error":"#DIV/0!"}},{"$f":"AF38/$AF$41","v":{"$error":"#DIV/0!"}},{"$f":"FINV(0.05,AE38,AE$41)","v":{"$error":"#NUM!"}}]
[null,null,null,null,null,null,null,null,null,null,null,null,null,null,null,null,null,null,null,null,null,null,null,null,null,null,null,null,"Non-linearity (t)",{"$f":"AD20-AD18^2/AD16","v":{"$error":"#DIV/0!"}},{"$f":"AD4-2","v":-2},{"$f":"AD39/AE39","v":{"$error":"#DIV/0!"}},{"$f":"AF39/$AF$41","v":{"$error":"#DIV/0!"}},{"$f":"FINV(0.05,AE39,AE$41)","v":{"$error":"#NUM!"}}]
[]
[null,null,null,null,null,null,null,null,null,null,5,null,null,null,null,null,null,null,null,null,null,null,null,null,null,null,null,null,"Residual Error",{"$f":"AD43-AD35-AD36-AD37-AD38-AD39","v":{"$error":"#DIV/0!"}},{"$f":"AE43-AE35-AE36-AE37-AE38-AE39","v":0},{"$f":"AD41/AE41","v":{"$error":"#DIV/0!"}}]
[]
[null,null,null,null,null,null,null,null,null,null,null,null,null,null,null,null,null,null,null,null,null,null,null,null,null,null,null,null,"Total",{"$f":"SUM(AL17:AL32)-(AD7+AD8)^2/(AD5+AD6)","v":{"$error":"#DIV/0!"}},{"$f":"(AD6+AD5)-1","v":-1}]
[]
[null,null,null,null,null,null,null,null,null,null,null,null,null,null,null,null,null,null,null,null,null,null,null,null,null,null,null,null,"Slope standard",{"$f":"AD17/AD15","v":{"$error":"#DIV/0!"}}]
[null,null,null,null,null,null,null,null,null,null,null,null,null,null,null,null,null,null,null,null,null,null,null,null,null,null,null,null,"Intercept standard",{"$f":"AD13-AD45*AD11","v":{"$error":"#DIV/0!"}}]
[]
[null,null,null,null,null,null,null,null,null,null,null,null,null,null,null,null,null,null,null,null,null,null,null,null,null,null,null,null,"Slope test",{"$f":"AD18/AD16","v":{"$error":"#DIV/0!"}}]
[null,null,null,null,null,null,null,null,null,null,null,null,null,null,null,null,null,null,null,null,null,null,null,null,null,null,null,null,"Intercept test",{"$f":"AD14-AD48*AD12","v":{"$error":"#DIV/0!"}}]
[]
[null,null,null,null,null,null,null,null,null,null,null,null,null,null,null,null,null,null,null,null,null,null,null,null,null,null,null,null,null,"Limits"]
[null,null,null,null,null,null,null,null,null,null,null,null,null,null,null,null,null,null,null,null,null,null,null,null,null,null,null,null,"Relative potency","Upper","Lower"]
[null,null,null,null,null,null,null,null,null,null,null,null,null,null,null,null,null,null,null,null,null,null,null,null,null,null,null,null,{"$f":"10^AD28","v":{"$error":"#DIV/0!"}},{"$f":"10^AD30","v":{"$error":"#DIV/0!"}},{"$f":"10^AD29","v":{"$error":"#DIV/0!"}}]
[null,null,null,null,null,null,null,null,null,null,null,null,null,null,null,null,null,null,null,null,null,null,null,null,null,null,null,null,"Potency",{"$f":"$AD$53*$N$19","v":{"$error":"#DIV/0!"}},{"$f":"$AE$53*$N$19","v":{"$error":"#DIV/0!"}}]
[null,null,null,null,null,null,null,null,null,null,null,null,null,null,null,null,null,null,null,null,null,null,null,null,null,null,null,null,"Deviation",{"$f":"(AD53-AC53)/AC53","v":{"$error":"#DIV/0!"}},{"$f":"(AE53-AC53)/AC53","v":{"$error":"#DIV/0!"}}]

{"sheet":"Sample11","index":14,"n_rows":55,"n_cols":49,"rows_kept":55,"cut":false,"hidden":false,"merged":[[21,4,21,5],[22,4,22,9]]}
[null,null,null,null,null,null,null,null,null,null,null,null,null,null,null,null,null,null,null,null,"V 1.0"]
[null,null,null,"PLA tredecim V01Sep2018"]
[null,null,null,null,null,null,null,null,null,null,null,null,null,null,null,null,null,null,null,null,null,null,null,null,null,null,null,null,"aantal doses standaard",{"$f":"COUNT(AW17:AW23)-COUNTIF(AW17:AW23,\"=0\")","v":0}]
[null,null,null,"Sample","l","l","l","l","l","l",null,null,"Standard","l","l","l","l","l","l",null,null,null,null,null,null,null,null,null,"aantal doses test",{"$f":"COUNT(AW26:AW32)-COUNTIF(AW26:AW32,\"=0\")","v":0}]
[null,null,null,null,null,null,null,null,null,null,null,null,null,null,null,null,null,null,null,null,null,null,null,null,null,null,null,null,"aantal responses standaard",{"$f":"COUNTIF(AP17:AU23,\">0\")","v":0}]
[null,null,null,"Dose","Response",null,null,null,null,null,null,null,"Dose","Respons",null,null,null,null,null,null,null,null,null,null,null,null,null,null,"aantal responses test",{"$f":"COUNTIF(AP26:AU32,\">0\")","v":0}]
[null,null,null,null,1,2,3,4,5,6,null,null,null,1,2,3,4,5,6,null,null,null,null,null,null,null,null,null,"som responses standaard",{"$f":"SUM(AP17:AU23)","v":0}]
[null,null,1,null,null,null,null,null,null,null,null,1,null,null,null,null,null,null,null,null,null,null,null,null,null,null,null,null,"som responses test",{"$f":"SUM(AP26:AU32)","v":0}]
[null,null,2,null,null,null,null,null,null,null,null,2,null,null,null,null,null,null,null,null,null,null,null,null,null,null,null,null,"som Xsi",{"$f":"SUM(AH17:AH23)","v":0}]
[null,null,3,null,null,null,null,null,null,null,null,3,null,null,null,null,null,null,null,null,null,null,null,null,null,null,null,null,"som Xti",{"$f":"SUM(AH26:AH32)","v":0}]
[null,null,4,null,null,null,null,null,null,null,null,4,null,null,null,null,null,null,null,null,null,null,null,null,null,null,null,null,"XSm",{"$f":"AD9/AD5","v":{"$error":"#DIV/0!"}}]
[null,null,5,null,null,null,null,null,null,null,null,5,null,null,null,null,null,null,null,null,null,null,null,null,null,null,null,null,"XTm",{"$f":"AD10/AD6","v":{"$error":"#DIV/0!"}}]
[null,null,6,null,null,null,null,null,null,null,null,6,null,null,null,null,null,null,null,null,null,null,null,null,null,null,null,null,"Ysm",{"$f":"AD7/AD5","v":{"$error":"#DIV/0!"}}]
[null,null,7,null,null,null,null,null,null,null,null,7,null,null,null,null,null,null,null,null,null,null,null,null,null,null,null,null,"Ytm",{"$f":"AD8/AD6","v":{"$error":"#DIV/0!"}}]
[null,null,null,null,null,null,null,null,null,null,null,null,null,null,null,null,null,null,null,null,null,null,null,null,null,null,null,null,"SxxS:",{"$f":"SUM(AI17:AI23)","v":{"$error":"#DIV/0!"}}]
[null,null,null,null,null,null,null,null,null,null,null,null,null,null,null,null,null,null,null,null,null,null,null,null,null,null,null,null,"SxxT:",{"$f":"SUM(AI26:AI32)","v":{"$error":"#DIV/0!"}},null,"ni","ysi","Xsi","SxxSi","SyySi","SxySi","yi^2",null,null,"Dose","Responses",null,null,null,null,null,"Regression","Dose(log)"]
[null,null,null,null,null,null,null,null,null,null,null,null,null,null,null,null,null,null,null,null,null,null,null,null,null,null,null,null,"SxyS:",{"$f":"SUM(AK17:AK23)","v":0},null,{"$f":"COUNTIF(AP17:AU17,\">0\")","v":0},{"$f":"SUM(AP17:AU17)","v":0},{"$f":"AF17*AW17","v":0},{"$f":"AF17*(AW17-$AD$11)^2","v":{"$error":"#DIV/0!"}},{"$f":"IF(AF17=0,0,+AF17*(AG17/AF17-$AD$13)^2)","v":0},{"$f":"IF(AF17=0,0,+AF17*(AG17/AF17-$AD$13)*(AW17-$AD$11))","v":0},{"$f":"AP17^2+AQ17^2+AR17^2+AS17^2+AT17^2+AU17^2","v":0},null,"Standard",null,null,null,null,null,null,null,{"$f":"IF(AO17>0,AW17*$AD$45+$AD$46,\"\")","v":""},{"$f":"IF(AO17>0,LOG(AO17),\"\")","v":""}]
[null,null,null,"Sample: ",null,null,null,null,null,null,null,null,"Standard name:",null,null,null,null,null,null,null,null,null,null,null,null,null,null,null,"SxyT:",{"$f":"SUM(AK26:AK32)","v":0},null,{"$f":"COUNTIF(AP18:AU18,\">0\")","v":0},{"$f":"SUM(AP18:AU18)","v":0},0,{"$error":"#DIV/0!"},0,0,{"$f":"AP18^2+AQ18^2+AR18^2+AS18^2+AT18^2+AU18^2","v":0},null,null,null,null,null,null,null,null,null,"",""]
[null,null,null,"Potency: ",{"$f":"AC53*N19","v":{"$error":"#DIV/0!"}},{"$f":"O19","v":0},null,null,null,null,null,null,"Potency:",null,null,null,null,null,null,null,null,null,null,null,null,null,null,null,"SyyS:",{"$f":"SUM(AJ17:AJ23)","v":0},null,0,0,0,{"$error":"#DIV/0!"},0,0,0,null,null,null,null,null,null,null,null,null,"",""]
[null,null,null,"CI: ",{"$f":"\"(\"&TEXT(MIN(AD54:AE54),\"0.#0\")&\" - \"&TEXT(MAX(AD54:AE54),\"0.#0) \")&\"= +/-\"","v":{"$error":"#VALUE!"}},null,{"$f":"ABS((AD54-AE54)/(2*E19))","v":{"$error":"#DIV/0!"}},null,null,null,null,null,null,null,null,null,null,null,null,null,null,null,null,null,null,null,null,null,"SyyT:",{"$f":"SUM(AJ26:AJ32)","v":0},null,0,0,0,{"$error":"#DIV/0!"},0,0,0,null,null,null,null,null,null,null,null,null,"",""]
[null,null,null,null,null,null,null,null,null,null,null,null,null,"F-Ratio","Limits",null,null,null,null,null,null,null,null,null,null,null,null,null,"B:",{"$f":"(AD17+AD18)/(AD15+AD16)","v":{"$error":"#DIV/0!"}},null,0,0,0,{"$error":"#DIV/0!"},0,0,0,null,null,null,null,null,null,null,null,null,"",""]
[null,null,null,"Date: ",null,null,null,null,null,null,null,"Non-parallelism",null,{"$f":"AG37","v":{"$error":"#DIV/0!"}},{"$f":"AH37","v":{"$error":"#NUM!"}},null,null,null,null,null,null,null,null,null,null,null,null,null,"t",{"$f":"TINV(0.05,AE41)","v":{"$error":"#NUM!"}},null,0,0,0,{"$error":"#DIV/0!"},0,0,0,null,null,null,null,null,null,null,null,null,"",""]
[null,null,null,"Sample name: ",null,null,null,null,null,null,null,"Non linearity (St)",null,{"$f":"AG38","v":{"$error":"#DIV/0!"}},{"$error":"#NUM!"},null,null,null,null,null,null,null,null,null,null,null,null,null,"s",{"$f":"SQRT(AF41)","v":{"$error":"#DIV/0!"}},null,0,0,0,{"$error":"#DIV/0!"},0,0,0,null,null,null,null,null,null,null,null,null,"",""]
[null,null,null,null,null,null,null,null,null,null,null,"Non linearity (Sa)",null,{"$error":"#DIV/0!"},{"$error":"#NUM!"},null,null,null,null,null,null,null,null,null,null,null,null,null,"g",{"$f":"AD22^2*AD23^2/(AD21^2*(AD15+AD16))","v":{"$error":"#NUM!"}}]
[null,null,null,null,null,null,null,null,null,null,null,"Relative Slope",null,{"$f":"AD48/AD45","v":{"$error":"#DIV/0!"}}," 0.90-1.10",null,null,null,null,null,null,null,null,null,null,null,null,null,null,null,null,"mi","yti","Xti","SxxTi","SyyTi","SxyTi","yi^2",null,null,null,null,null,null,null,null,null,"Regression","Dose(log)"]
[null,null,null,null,null,null,null,null,null,null,null,null,null,null,null,null,null,null,null,null,null,null,null,null,null,null,null,null,"var(P)",{"$f":"(AD23^2/AD21^2)*((1/AD5+1/AD6)+(AD28-AD11+AD12)^2/(AD15+AD16))","v":{"$error":"#DIV/0!"}},null,{"$f":"COUNTIF(AP26:AU26,\">0\")","v":0},{"$f":"SUM(AP26:AU26)","v":0},{"$f":"AF26*AW26","v":0},{"$f":"AF26*(AW26-$AD$12)^2","v":{"$error":"#DIV/0!"}},{"$f":"IF(AF26=0,0,+AF26*(AG26/AF26-$AD$14)^2)","v":0},{"$f":"IF(AF26=0,0,+AF26*(AG26/AF26-$AD$14)*(AW26-$AD$12))","v":0},{"$f":"AP26^2+AQ26^2+AR26^2+AS26^2+AT26^2+AU26^2","v":0},null,"Test sample",null,null,null,null,null,null,null,{"$f":"IF(AO26>0,AW26*$AD$48+$AD$49,\"\")","v":""},{"$f":"IF(AO26>0,LOG(AO26),\"\")","v":""}]
[null,null,null,"Italic or Bold  = Delete point. Press button Recalculate",null,null,null,null,null,null,null,null,null,null,null,null,null,null,null,null,null,null,null,null,null,null,null,null,"limit",{"$f":"(AD23*AD22/AD21)*SQRT((1-AD24)*(1/AD6+1/AD5)+(AD28-AD11+AD12)^2/(AD15+AD16))","v":{"$error":"#DIV/0!"}},null,{"$f":"COUNTIF(AP27:AU27,\">0\")","v":0},0,0,{"$error":"#DIV/0!"},0,0,0,null,null,null,null,null,null,null,null,null,"",""]
[null,null,null,null,null,null,null,null,null,null,null,null,null,null,null,null,null,null,null,null,null,null,null,null,null,null,null,null,"M",{"$f":"$AD$11-$AD$12-(AD13-AD14)/AD21","v":{"$error":"#DIV/0!"}},null,0,0,0,{"$error":"#DIV/0!"},0,0,0,null,null,null,null,null,null,null,null,null,"",""]
[null,null,null,null,null,null,null,null,null,null,null,null,null,null,null,null,null,null,null,null,null,null,null,null,null,null,null,null,"Ml",{"$f":"$AD$11-$AD$12+($AD$28-$AD$11+$AD$12+$AD$27)/(1-$AD$24)","v":{"$error":"#DIV/0!"}},null,0,0,0,{"$error":"#DIV/0!"},0,0,0,null,null,null,null,null,null,null,null,null,"",""]
[null,null,null,null,null,null,null,null,null,null,null,null,null,null,null,null,null,null,null,null,null,null,null,null,null,null,null,null,"Mu",{"$f":"$AD$11-$AD$12+($AD$28-$AD$11+$AD$12-$AD$27)/(1-$AD$24)","v":{"$error":"#DIV/0!"}},null,0,0,0,{"$error":"#DIV/0!"},0,0,0,null,null,null,null,null,null,null,null,null,"",""]
[null,null,null,null,null,null,null,null,null,null,null,null,null,null,null,null,null,null,null,null,null,null,null,null,null,null,null,null,null,null,null,0,0,0,{"$error":"#DIV/0!"},0,0,0,null,null,null,null,null,null,null,null,null,"",""]
[null,null,null,null,null,null,null,null,null,null,null,null,null,null,null,null,null,null,null,null,null,null,null,null,null,null,null,null,null,null,null,0,0,0,{"$error":"#DIV/0!"},0,0,0,null,null,null,null,null,null,null,null,null,"",""]
[]
[null,null,null,null,null,null,null,null,null,null,null,null,null,null,null,null,null,null,null,null,null,null,null,null,null,null,null,null,"Source of variation","S.S.","DF","M.S.","F RATIO","F 0.95"]
[null,null,null,null,null,null,null,null,null,null,null,null,null,null,null,null,null,null,null,null,null,null,null,null,null,null,null,null,"Preparations",{"$f":"AD7^2/AD5+AD8^2/AD6-(AD7+AD8)^2/(AD5+AD6)","v":{"$error":"#DIV/0!"}},1,{"$f":"AD35","v":{"$error":"#DIV/0!"}},{"$f":"AF35/$AF$41","v":{"$error":"#DIV/0!"}}]
[null,null,null,null,null,null,null,null,null,null,null,null,null,null,null,null,null,null,null,null,null,null,null,null,null,null,null,null,"Regression",{"$f":"(AD17+AD18)^2/(AD15+AD16)","v":{"$error":"#DIV/0!"}},1,{"$f":"AD36","v":{"$error":"#DIV/0!"}},{"$f":"AF36/$AF$41","v":{"$error":"#DIV/0!"}}]
[null,null,null,null,null,null,null,null,null,null,null,null,null,null,null,null,null,null,null,null,null,null,null,null,null,null,null,null,"Non-parallelism",{"$f":"(AD17)^2/AD15+AD18^2/AD16-(AD17+AD18)^2/(AD15+AD16)","v":{"$error":"#DIV/0!"}},1,{"$f":"AD37","v":{"$error":"#DIV/0!"}},{"$f":"AF37/$AF$41","v":{"$error":"#DIV/0!"}},{"$f":"FINV(0.05,AE37,AE$41)","v":{"$error":"#NUM!"}}]
[null,null,null,null,null,null,null,null,null,null,null,null,null,null,null,null,null,null,null,null,null,null,null,null,null,null,null,null,"Non-linearity (s)",{"$f":"AD19-AD17^2/AD15","v":{"$error":"#DIV/0!"}},{"$f":"AD3-2","v":-2},{"$f":"AD38/AE38","v":{"$error":"#DIV/0!"}},{"$f":"AF38/$AF$41","v":{"$error":"#DIV/0!"}},{"$f":"FINV(0.05,AE38,AE$41)","v":{"$error":"#NUM!"}}]
[null,null,null,null,null,null,null,null,null,null,null,null,null,null,null,null,null,null,null,null,null,null,null,null,null,null,null,null,"Non-linearity (t)",{"$f":"AD20-AD18^2/AD16","v":{"$error":"#DIV/0!"}},{"$f":"AD4-2","v":-2},{"$f":"AD39/AE39","v":{"$error":"#DIV/0!"}},{"$f":"AF39/$AF$41","v":{"$error":"#DIV/0!"}},{"$f":"FINV(0.05,AE39,AE$41)","v":{"$error":"#NUM!"}}]
[]
[null,null,null,null,null,null,null,null,null,null,5,null,null,null,null,null,null,null,null,null,null,null,null,null,null,null,null,null,"Residual Error",{"$f":"AD43-AD35-AD36-AD37-AD38-AD39","v":{"$error":"#DIV/0!"}},{"$f":"AE43-AE35-AE36-AE37-AE38-AE39","v":0},{"$f":"AD41/AE41","v":{"$error":"#DIV/0!"}}]
[]
[null,null,null,null,null,null,null,null,null,null,null,null,null,null,null,null,null,null,null,null,null,null,null,null,null,null,null,null,"Total",{"$f":"SUM(AL17:AL32)-(AD7+AD8)^2/(AD5+AD6)","v":{"$error":"#DIV/0!"}},{"$f":"(AD6+AD5)-1","v":-1}]
[]
[null,null,null,null,null,null,null,null,null,null,null,null,null,null,null,null,null,null,null,null,null,null,null,null,null,null,null,null,"Slope standard",{"$f":"AD17/AD15","v":{"$error":"#DIV/0!"}}]
[null,null,null,null,null,null,null,null,null,null,null,null,null,null,null,null,null,null,null,null,null,null,null,null,null,null,null,null,"Intercept standard",{"$f":"AD13-AD45*AD11","v":{"$error":"#DIV/0!"}}]
[]
[null,null,null,null,null,null,null,null,null,null,null,null,null,null,null,null,null,null,null,null,null,null,null,null,null,null,null,null,"Slope test",{"$f":"AD18/AD16","v":{"$error":"#DIV/0!"}}]
[null,null,null,null,null,null,null,null,null,null,null,null,null,null,null,null,null,null,null,null,null,null,null,null,null,null,null,null,"Intercept test",{"$f":"AD14-AD48*AD12","v":{"$error":"#DIV/0!"}}]
[]
[null,null,null,null,null,null,null,null,null,null,null,null,null,null,null,null,null,null,null,null,null,null,null,null,null,null,null,null,null,"Limits"]
[null,null,null,null,null,null,null,null,null,null,null,null,null,null,null,null,null,null,null,null,null,null,null,null,null,null,null,null,"Relative potency","Upper","Lower"]
[null,null,null,null,null,null,null,null,null,null,null,null,null,null,null,null,null,null,null,null,null,null,null,null,null,null,null,null,{"$f":"10^AD28","v":{"$error":"#DIV/0!"}},{"$f":"10^AD30","v":{"$error":"#DIV/0!"}},{"$f":"10^AD29","v":{"$error":"#DIV/0!"}}]
[null,null,null,null,null,null,null,null,null,null,null,null,null,null,null,null,null,null,null,null,null,null,null,null,null,null,null,null,"Potency",{"$f":"$AD$53*$N$19","v":{"$error":"#DIV/0!"}},{"$f":"$AE$53*$N$19","v":{"$error":"#DIV/0!"}}]
[null,null,null,null,null,null,null,null,null,null,null,null,null,null,null,null,null,null,null,null,null,null,null,null,null,null,null,null,"Deviation",{"$f":"(AD53-AC53)/AC53","v":{"$error":"#DIV/0!"}},{"$f":"(AE53-AC53)/AC53","v":{"$error":"#DIV/0!"}}]

{"sheet":"Sample12","index":15,"n_rows":55,"n_cols":49,"rows_kept":55,"cut":false,"hidden":false,"merged":[[21,4,21,5],[22,4,22,9]]}
[null,null,null,null,null,null,null,null,null,null,null,null,null,null,null,null,null,null,null,null,"V 1.0"]
[null,null,null,"PLA tredecim V01Sep2018"]
[null,null,null,null,null,null,null,null,null,null,null,null,null,null,null,null,null,null,null,null,null,null,null,null,null,null,null,null,"aantal doses standaard",{"$f":"COUNT(AW17:AW23)-COUNTIF(AW17:AW23,\"=0\")","v":0}]
[null,null,null,"Sample","l","l","l","l","l","l",null,null,"Standard","l","l","l","l","l","l",null,null,null,null,null,null,null,null,null,"aantal doses test",{"$f":"COUNT(AW26:AW32)-COUNTIF(AW26:AW32,\"=0\")","v":0}]
[null,null,null,null,null,null,null,null,null,null,null,null,null,null,null,null,null,null,null,null,null,null,null,null,null,null,null,null,"aantal responses standaard",{"$f":"COUNTIF(AP17:AU23,\">0\")","v":0}]
[null,null,null,"Dose","Response",null,null,null,null,null,null,null,"Dose","Respons",null,null,null,null,null,null,null,null,null,null,null,null,null,null,"aantal responses test",{"$f":"COUNTIF(AP26:AU32,\">0\")","v":0}]
[null,null,null,null,1,2,3,4,5,6,null,null,null,1,2,3,4,5,6,null,null,null,null,null,null,null,null,null,"som responses standaard",{"$f":"SUM(AP17:AU23)","v":0}]
[null,null,1,null,null,null,null,null,null,null,null,1,null,null,null,null,null,null,null,null,null,null,null,null,null,null,null,null,"som responses test",{"$f":"SUM(AP26:AU32)","v":0}]
[null,null,2,null,null,null,null,null,null,null,null,2,null,null,null,null,null,null,null,null,null,null,null,null,null,null,null,null,"som Xsi",{"$f":"SUM(AH17:AH23)","v":0}]
[null,null,3,null,null,null,null,null,null,null,null,3,null,null,null,null,null,null,null,null,null,null,null,null,null,null,null,null,"som Xti",{"$f":"SUM(AH26:AH32)","v":0}]
[null,null,4,null,null,null,null,null,null,null,null,4,null,null,null,null,null,null,null,null,null,null,null,null,null,null,null,null,"XSm",{"$f":"AD9/AD5","v":{"$error":"#DIV/0!"}}]
[null,null,5,null,null,null,null,null,null,null,null,5,null,null,null,null,null,null,null,null,null,null,null,null,null,null,null,null,"XTm",{"$f":"AD10/AD6","v":{"$error":"#DIV/0!"}}]
[null,null,6,null,null,null,null,null,null,null,null,6,null,null,null,null,null,null,null,null,null,null,null,null,null,null,null,null,"Ysm",{"$f":"AD7/AD5","v":{"$error":"#DIV/0!"}}]
[null,null,7,null,null,null,null,null,null,null,null,7,null,null,null,null,null,null,null,null,null,null,null,null,null,null,null,null,"Ytm",{"$f":"AD8/AD6","v":{"$error":"#DIV/0!"}}]
[null,null,null,null,null,null,null,null,null,null,null,null,null,null,null,null,null,null,null,null,null,null,null,null,null,null,null,null,"SxxS:",{"$f":"SUM(AI17:AI23)","v":{"$error":"#DIV/0!"}}]
[null,null,null,null,null,null,null,null,null,null,null,null,null,null,null,null,null,null,null,null,null,null,null,null,null,null,null,null,"SxxT:",{"$f":"SUM(AI26:AI32)","v":{"$error":"#DIV/0!"}},null,"ni","ysi","Xsi","SxxSi","SyySi","SxySi","yi^2",null,null,"Dose","Responses",null,null,null,null,null,"Regression","Dose(log)"]
[null,null,null,null,null,null,null,null,null,null,null,null,null,null,null,null,null,null,null,null,null,null,null,null,null,null,null,null,"SxyS:",{"$f":"SUM(AK17:AK23)","v":0},null,{"$f":"COUNTIF(AP17:AU17,\">0\")","v":0},{"$f":"SUM(AP17:AU17)","v":0},{"$f":"AF17*AW17","v":0},{"$f":"AF17*(AW17-$AD$11)^2","v":{"$error":"#DIV/0!"}},{"$f":"IF(AF17=0,0,+AF17*(AG17/AF17-$AD$13)^2)","v":0},{"$f":"IF(AF17=0,0,+AF17*(AG17/AF17-$AD$13)*(AW17-$AD$11))","v":0},{"$f":"AP17^2+AQ17^2+AR17^2+AS17^2+AT17^2+AU17^2","v":0},null,"Standard",null,null,null,null,null,null,null,{"$f":"IF(AO17>0,AW17*$AD$45+$AD$46,\"\")","v":""},{"$f":"IF(AO17>0,LOG(AO17),\"\")","v":""}]
[null,null,null,"Sample: ",null,null,null,null,null,null,null,null,"Standard name:",null,null,null,null,null,null,null,null,null,null,null,null,null,null,null,"SxyT:",{"$f":"SUM(AK26:AK32)","v":0},null,{"$f":"COUNTIF(AP18:AU18,\">0\")","v":0},{"$f":"SUM(AP18:AU18)","v":0},0,{"$error":"#DIV/0!"},0,0,{"$f":"AP18^2+AQ18^2+AR18^2+AS18^2+AT18^2+AU18^2","v":0},null,null,null,null,null,null,null,null,null,"",""]
[null,null,null,"Potency: ",{"$f":"AC53*N19","v":{"$error":"#DIV/0!"}},{"$f":"O19","v":0},null,null,null,null,null,null,"Potency:",null,null,null,null,null,null,null,null,null,null,null,null,null,null,null,"SyyS:",{"$f":"SUM(AJ17:AJ23)","v":0},null,0,0,0,{"$error":"#DIV/0!"},0,0,0,null,null,null,null,null,null,null,null,null,"",""]
[null,null,null,"CI: ",{"$f":"\"(\"&TEXT(MIN(AD54:AE54),\"0.#0\")&\" - \"&TEXT(MAX(AD54:AE54),\"0.#0) \")&\"= +/-\"","v":{"$error":"#VALUE!"}},null,{"$f":"ABS((AD54-AE54)/(2*E19))","v":{"$error":"#DIV/0!"}},null,null,null,null,null,null,null,null,null,null,null,null,null,null,null,null,null,null,null,null,null,"SyyT:",{"$f":"SUM(AJ26:AJ32)","v":0},null,0,0,0,{"$error":"#DIV/0!"},0,0,0,null,null,null,null,null,null,null,null,null,"",""]
[null,null,null,null,null,null,null,null,null,null,null,null,null,"F-Ratio","Limits",null,null,null,null,null,null,null,null,null,null,null,null,null,"B:",{"$f":"(AD17+AD18)/(AD15+AD16)","v":{"$error":"#DIV/0!"}},null,0,0,0,{"$error":"#DIV/0!"},0,0,0,null,null,null,null,null,null,null,null,null,"",""]
[null,null,null,"Date: ",null,null,null,null,null,null,null,"Non-parallelism",null,{"$f":"AG37","v":{"$error":"#DIV/0!"}},{"$f":"AH37","v":{"$error":"#NUM!"}},null,null,null,null,null,null,null,null,null,null,null,null,null,"t",{"$f":"TINV(0.05,AE41)","v":{"$error":"#NUM!"}},null,0,0,0,{"$error":"#DIV/0!"},0,0,0,null,null,null,null,null,null,null,null,null,"",""]
[null,null,null,"Sample name: ",null,null,null,null,null,null,null,"Non linearity (St)",null,{"$f":"AG38","v":{"$error":"#DIV/0!"}},{"$error":"#NUM!"},null,null,null,null,null,null,null,null,null,null,null,null,null,"s",{"$f":"SQRT(AF41)","v":{"$error":"#DIV/0!"}},null,0,0,0,{"$error":"#DIV/0!"},0,0,0,null,null,null,null,null,null,null,null,null,"",""]
[null,null,null,null,null,null,null,null,null,null,null,"Non linearity (Sa)",null,{"$error":"#DIV/0!"},{"$error":"#NUM!"},null,null,null,null,null,null,null,null,null,null,null,null,null,"g",{"$f":"AD22^2*AD23^2/(AD21^2*(AD15+AD16))","v":{"$error":"#NUM!"}}]
[null,null,null,null,null,null,null,null,null,null,null,"Relative Slope",null,{"$f":"AD48/AD45","v":{"$error":"#DIV/0!"}}," 0.90-1.10",null,null,null,null,null,null,null,null,null,null,null,null,null,null,null,null,"mi","yti","Xti","SxxTi","SyyTi","SxyTi","yi^2",null,null,null,null,null,null,null,null,null,"Regression","Dose(log)"]
[null,null,null,null,null,null,null,null,null,null,null,null,null,null,null,null,null,null,null,null,null,null,null,null,null,null,null,null,"var(P)",{"$f":"(AD23^2/AD21^2)*((1/AD5+1/AD6)+(AD28-AD11+AD12)^2/(AD15+AD16))","v":{"$error":"#DIV/0!"}},null,{"$f":"COUNTIF(AP26:AU26,\">0\")","v":0},{"$f":"SUM(AP26:AU26)","v":0},{"$f":"AF26*AW26","v":0},{"$f":"AF26*(AW26-$AD$12)^2","v":{"$error":"#DIV/0!"}},{"$f":"IF(AF26=0,0,+AF26*(AG26/AF26-$AD$14)^2)","v":0},{"$f":"IF(AF26=0,0,+AF26*(AG26/AF26-$AD$14)*(AW26-$AD$12))","v":0},{"$f":"AP26^2+AQ26^2+AR26^2+AS26^2+AT26^2+AU26^2","v":0},null,"Test sample",null,null,null,null,null,null,null,{"$f":"IF(AO26>0,AW26*$AD$48+$AD$49,\"\")","v":""},{"$f":"IF(AO26>0,LOG(AO26),\"\")","v":""}]
[null,null,null,"Italic or Bold  = Delete point. Press button Recalculate",null,null,null,null,null,null,null,null,null,null,null,null,null,null,null,null,null,null,null,null,null,null,null,null,"limit",{"$f":"(AD23*AD22/AD21)*SQRT((1-AD24)*(1/AD6+1/AD5)+(AD28-AD11+AD12)^2/(AD15+AD16))","v":{"$error":"#DIV/0!"}},null,{"$f":"COUNTIF(AP27:AU27,\">0\")","v":0},0,0,{"$error":"#DIV/0!"},0,0,0,null,null,null,null,null,null,null,null,null,"",""]
[null,null,null,null,null,null,null,null,null,null,null,null,null,null,null,null,null,null,null,null,null,null,null,null,null,null,null,null,"M",{"$f":"$AD$11-$AD$12-(AD13-AD14)/AD21","v":{"$error":"#DIV/0!"}},null,0,0,0,{"$error":"#DIV/0!"},0,0,0,null,null,null,null,null,null,null,null,null,"",""]
[null,null,null,null,null,null,null,null,null,null,null,null,null,null,null,null,null,null,null,null,null,null,null,null,null,null,null,null,"Ml",{"$f":"$AD$11-$AD$12+($AD$28-$AD$11+$AD$12+$AD$27)/(1-$AD$24)","v":{"$error":"#DIV/0!"}},null,0,0,0,{"$error":"#DIV/0!"},0,0,0,null,null,null,null,null,null,null,null,null,"",""]
[null,null,null,null,null,null,null,null,null,null,null,null,null,null,null,null,null,null,null,null,null,null,null,null,null,null,null,null,"Mu",{"$f":"$AD$11-$AD$12+($AD$28-$AD$11+$AD$12-$AD$27)/(1-$AD$24)","v":{"$error":"#DIV/0!"}},null,0,0,0,{"$error":"#DIV/0!"},0,0,0,null,null,null,null,null,null,null,null,null,"",""]
[null,null,null,null,null,null,null,null,null,null,null,null,null,null,null,null,null,null,null,null,null,null,null,null,null,null,null,null,null,null,null,0,0,0,{"$error":"#DIV/0!"},0,0,0,null,null,null,null,null,null,null,null,null,"",""]
[null,null,null,null,null,null,null,null,null,null,null,null,null,null,null,null,null,null,null,null,null,null,null,null,null,null,null,null,null,null,null,0,0,0,{"$error":"#DIV/0!"},0,0,0,null,null,null,null,null,null,null,null,null,"",""]
[]
[null,null,null,null,null,null,null,null,null,null,null,null,null,null,null,null,null,null,null,null,null,null,null,null,null,null,null,null,"Source of variation","S.S.","DF","M.S.","F RATIO","F 0.95"]
[null,null,null,null,null,null,null,null,null,null,null,null,null,null,null,null,null,null,null,null,null,null,null,null,null,null,null,null,"Preparations",{"$f":"AD7^2/AD5+AD8^2/AD6-(AD7+AD8)^2/(AD5+AD6)","v":{"$error":"#DIV/0!"}},1,{"$f":"AD35","v":{"$error":"#DIV/0!"}},{"$f":"AF35/$AF$41","v":{"$error":"#DIV/0!"}}]
[null,null,null,null,null,null,null,null,null,null,null,null,null,null,null,null,null,null,null,null,null,null,null,null,null,null,null,null,"Regression",{"$f":"(AD17+AD18)^2/(AD15+AD16)","v":{"$error":"#DIV/0!"}},1,{"$f":"AD36","v":{"$error":"#DIV/0!"}},{"$f":"AF36/$AF$41","v":{"$error":"#DIV/0!"}}]
[null,null,null,null,null,null,null,null,null,null,null,null,null,null,null,null,null,null,null,null,null,null,null,null,null,null,null,null,"Non-parallelism",{"$f":"(AD17)^2/AD15+AD18^2/AD16-(AD17+AD18)^2/(AD15+AD16)","v":{"$error":"#DIV/0!"}},1,{"$f":"AD37","v":{"$error":"#DIV/0!"}},{"$f":"AF37/$AF$41","v":{"$error":"#DIV/0!"}},{"$f":"FINV(0.05,AE37,AE$41)","v":{"$error":"#NUM!"}}]
[null,null,null,null,null,null,null,null,null,null,null,null,null,null,null,null,null,null,null,null,null,null,null,null,null,null,null,null,"Non-linearity (s)",{"$f":"AD19-AD17^2/AD15","v":{"$error":"#DIV/0!"}},{"$f":"AD3-2","v":-2},{"$f":"AD38/AE38","v":{"$error":"#DIV/0!"}},{"$f":"AF38/$AF$41","v":{"$error":"#DIV/0!"}},{"$f":"FINV(0.05,AE38,AE$41)","v":{"$error":"#NUM!"}}]
[null,null,null,null,null,null,null,null,null,null,null,null,null,null,null,null,null,null,null,null,null,null,null,null,null,null,null,null,"Non-linearity (t)",{"$f":"AD20-AD18^2/AD16","v":{"$error":"#DIV/0!"}},{"$f":"AD4-2","v":-2},{"$f":"AD39/AE39","v":{"$error":"#DIV/0!"}},{"$f":"AF39/$AF$41","v":{"$error":"#DIV/0!"}},{"$f":"FINV(0.05,AE39,AE$41)","v":{"$error":"#NUM!"}}]
[]
[null,null,null,null,null,null,null,null,null,null,5,null,null,null,null,null,null,null,null,null,null,null,null,null,null,null,null,null,"Residual Error",{"$f":"AD43-AD35-AD36-AD37-AD38-AD39","v":{"$error":"#DIV/0!"}},{"$f":"AE43-AE35-AE36-AE37-AE38-AE39","v":0},{"$f":"AD41/AE41","v":{"$error":"#DIV/0!"}}]
[]
[null,null,null,null,null,null,null,null,null,null,null,null,null,null,null,null,null,null,null,null,null,null,null,null,null,null,null,null,"Total",{"$f":"SUM(AL17:AL32)-(AD7+AD8)^2/(AD5+AD6)","v":{"$error":"#DIV/0!"}},{"$f":"(AD6+AD5)-1","v":-1}]
[]
[null,null,null,null,null,null,null,null,null,null,null,null,null,null,null,null,null,null,null,null,null,null,null,null,null,null,null,null,"Slope standard",{"$f":"AD17/AD15","v":{"$error":"#DIV/0!"}}]
[null,null,null,null,null,null,null,null,null,null,null,null,null,null,null,null,null,null,null,null,null,null,null,null,null,null,null,null,"Intercept standard",{"$f":"AD13-AD45*AD11","v":{"$error":"#DIV/0!"}}]
[]
[null,null,null,null,null,null,null,null,null,null,null,null,null,null,null,null,null,null,null,null,null,null,null,null,null,null,null,null,"Slope test",{"$f":"AD18/AD16","v":{"$error":"#DIV/0!"}}]
[null,null,null,null,null,null,null,null,null,null,null,null,null,null,null,null,null,null,null,null,null,null,null,null,null,null,null,null,"Intercept test",{"$f":"AD14-AD48*AD12","v":{"$error":"#DIV/0!"}}]
[]
[null,null,null,null,null,null,null,null,null,null,null,null,null,null,null,null,null,null,null,null,null,null,null,null,null,null,null,null,null,"Limits"]
[null,null,null,null,null,null,null,null,null,null,null,null,null,null,null,null,null,null,null,null,null,null,null,null,null,null,null,null,"Relative potency","Upper","Lower"]
[null,null,null,null,null,null,null,null,null,null,null,null,null,null,null,null,null,null,null,null,null,null,null,null,null,null,null,null,{"$f":"10^AD28","v":{"$error":"#DIV/0!"}},{"$f":"10^AD30","v":{"$error":"#DIV/0!"}},{"$f":"10^AD29","v":{"$error":"#DIV/0!"}}]
[null,null,null,null,null,null,null,null,null,null,null,null,null,null,null,null,null,null,null,null,null,null,null,null,null,null,null,null,"Potency",{"$f":"$AD$53*$N$19","v":{"$error":"#DIV/0!"}},{"$f":"$AE$53*$N$19","v":{"$error":"#DIV/0!"}}]
[null,null,null,null,null,null,null,null,null,null,null,null,null,null,null,null,null,null,null,null,null,null,null,null,null,null,null,null,"Deviation",{"$f":"(AD53-AC53)/AC53","v":{"$error":"#DIV/0!"}},{"$f":"(AE53-AC53)/AC53","v":{"$error":"#DIV/0!"}}]

{"sheet":"Sample13","index":16,"n_rows":55,"n_cols":49,"rows_kept":55,"cut":false,"hidden":false,"merged":[[21,4,21,5],[22,4,22,9]]}
[null,null,null,null,null,null,null,null,null,null,null,null,null,null,null,null,null,null,null,null,"V 1.0"]
[null,null,null,"PLA tredecim V01Sep2018"]
[null,null,null,null,null,null,null,null,null,null,null,null,null,null,null,null,null,null,null,null,null,null,null,null,null,null,null,null,"aantal doses standaard",{"$f":"COUNT(AW17:AW23)-COUNTIF(AW17:AW23,\"=0\")","v":0}]
[null,null,null,"Sample","l","l","l","l","l","l",null,null,"Standard","l","l","l","l","l","l",null,null,null,null,null,null,null,null,null,"aantal doses test",{"$f":"COUNT(AW26:AW32)-COUNTIF(AW26:AW32,\"=0\")","v":0}]
[null,null,null,null,null,null,null,null,null,null,null,null,null,null,null,null,null,null,null,null,null,null,null,null,null,null,null,null,"aantal responses standaard",{"$f":"COUNTIF(AP17:AU23,\">0\")","v":0}]
[null,null,null,"Dose","Response",null,null,null,null,null,null,null,"Dose","Respons",null,null,null,null,null,null,null,null,null,null,null,null,null,null,"aantal responses test",{"$f":"COUNTIF(AP26:AU32,\">0\")","v":0}]
[null,null,null,null,1,2,3,4,5,6,null,null,null,1,2,3,4,5,6,null,null,null,null,null,null,null,null,null,"som responses standaard",{"$f":"SUM(AP17:AU23)","v":0}]
[null,null,1,null,null,null,null,null,null,null,null,1,null,null,null,null,null,null,null,null,null,null,null,null,null,null,null,null,"som responses test",{"$f":"SUM(AP26:AU32)","v":0}]
[null,null,2,null,null,null,null,null,null,null,null,2,null,null,null,null,null,null,null,null,null,null,null,null,null,null,null,null,"som Xsi",{"$f":"SUM(AH17:AH23)","v":0}]
[null,null,3,null,null,null,null,null,null,null,null,3,null,null,null,null,null,null,null,null,null,null,null,null,null,null,null,null,"som Xti",{"$f":"SUM(AH26:AH32)","v":0}]
[null,null,4,null,null,null,null,null,null,null,null,4,null,null,null,null,null,null,null,null,null,null,null,null,null,null,null,null,"XSm",{"$f":"AD9/AD5","v":{"$error":"#DIV/0!"}}]
[null,null,5,null,null,null,null,null,null,null,null,5,null,null,null,null,null,null,null,null,null,null,null,null,null,null,null,null,"XTm",{"$f":"AD10/AD6","v":{"$error":"#DIV/0!"}}]
[null,null,6,null,null,null,null,null,null,null,null,6,null,null,null,null,null,null,null,null,null,null,null,null,null,null,null,null,"Ysm",{"$f":"AD7/AD5","v":{"$error":"#DIV/0!"}}]
[null,null,7,null,null,null,null,null,null,null,null,7,null,null,null,null,null,null,null,null,null,null,null,null,null,null,null,null,"Ytm",{"$f":"AD8/AD6","v":{"$error":"#DIV/0!"}}]
[null,null,null,null,null,null,null,null,null,null,null,null,null,null,null,null,null,null,null,null,null,null,null,null,null,null,null,null,"SxxS:",{"$f":"SUM(AI17:AI23)","v":{"$error":"#DIV/0!"}}]
[null,null,null,null,null,null,null,null,null,null,null,null,null,null,null,null,null,null,null,null,null,null,null,null,null,null,null,null,"SxxT:",{"$f":"SUM(AI26:AI32)","v":{"$error":"#DIV/0!"}},null,"ni","ysi","Xsi","SxxSi","SyySi","SxySi","yi^2",null,null,"Dose","Responses",null,null,null,null,null,"Regression","Dose(log)"]
[null,null,null,null,null,null,null,null,null,null,null,null,null,null,null,null,null,null,null,null,null,null,null,null,null,null,null,null,"SxyS:",{"$f":"SUM(AK17:AK23)","v":0},null,{"$f":"COUNTIF(AP17:AU17,\">0\")","v":0},{"$f":"SUM(AP17:AU17)","v":0},{"$f":"AF17*AW17","v":0},{"$f":"AF17*(AW17-$AD$11)^2","v":{"$error":"#DIV/0!"}},{"$f":"IF(AF17=0,0,+AF17*(AG17/AF17-$AD$13)^2)","v":0},{"$f":"IF(AF17=0,0,+AF17*(AG17/AF17-$AD$13)*(AW17-$AD$11))","v":0},{"$f":"AP17^2+AQ17^2+AR17^2+AS17^2+AT17^2+AU17^2","v":0},null,"Standard",null,null,null,null,null,null,null,{"$f":"IF(AO17>0,AW17*$AD$45+$AD$46,\"\")","v":""},{"$f":"IF(AO17>0,LOG(AO17),\"\")","v":""}]
[null,null,null,"Sample: ",null,null,null,null,null,null,null,null,"Standard name:",null,null,null,null,null,null,null,null,null,null,null,null,null,null,null,"SxyT:",{"$f":"SUM(AK26:AK32)","v":0},null,{"$f":"COUNTIF(AP18:AU18,\">0\")","v":0},{"$f":"SUM(AP18:AU18)","v":0},0,{"$error":"#DIV/0!"},0,0,{"$f":"AP18^2+AQ18^2+AR18^2+AS18^2+AT18^2+AU18^2","v":0},null,null,null,null,null,null,null,null,null,"",""]
[null,null,null,"Potency: ",{"$f":"AC53*N19","v":{"$error":"#DIV/0!"}},{"$f":"O19","v":0},null,null,null,null,null,null,"Potency:",null,null,null,null,null,null,null,null,null,null,null,null,null,null,null,"SyyS:",{"$f":"SUM(AJ17:AJ23)","v":0},null,0,0,0,{"$error":"#DIV/0!"},0,0,0,null,null,null,null,null,null,null,null,null,"",""]
[null,null,null,"CI: ",{"$f":"\"(\"&TEXT(MIN(AD54:AE54),\"0.#0\")&\" - \"&TEXT(MAX(AD54:AE54),\"0.#0) \")&\"= +/-\"","v":{"$error":"#VALUE!"}},null,{"$f":"ABS((AD54-AE54)/(2*E19))","v":{"$error":"#DIV/0!"}},null,null,null,null,null,null,null,null,null,null,null,null,null,null,null,null,null,null,null,null,null,"SyyT:",{"$f":"SUM(AJ26:AJ32)","v":0},null,0,0,0,{"$error":"#DIV/0!"},0,0,0,null,null,null,null,null,null,null,null,null,"",""]
[null,null,null,null,null,null,null,null,null,null,null,null,null,"F-Ratio","Limits",null,null,null,null,null,null,null,null,null,null,null,null,null,"B:",{"$f":"(AD17+AD18)/(AD15+AD16)","v":{"$error":"#DIV/0!"}},null,0,0,0,{"$error":"#DIV/0!"},0,0,0,null,null,null,null,null,null,null,null,null,"",""]
[null,null,null,"Date: ",null,null,null,null,null,null,null,"Non-parallelism",null,{"$f":"AG37","v":{"$error":"#DIV/0!"}},{"$f":"AH37","v":{"$error":"#NUM!"}},null,null,null,null,null,null,null,null,null,null,null,null,null,"t",{"$f":"TINV(0.05,AE41)","v":{"$error":"#NUM!"}},null,0,0,0,{"$error":"#DIV/0!"},0,0,0,null,null,null,null,null,null,null,null,null,"",""]
[null,null,null,"Sample name: ",null,null,null,null,null,null,null,"Non linearity (St)",null,{"$f":"AG38","v":{"$error":"#DIV/0!"}},{"$error":"#NUM!"},null,null,null,null,null,null,null,null,null,null,null,null,null,"s",{"$f":"SQRT(AF41)","v":{"$error":"#DIV/0!"}},null,0,0,0,{"$error":"#DIV/0!"},0,0,0,null,null,null,null,null,null,null,null,null,"",""]
[null,null,null,null,null,null,null,null,null,null,null,"Non linearity (Sa)",null,{"$error":"#DIV/0!"},{"$error":"#NUM!"},null,null,null,null,null,null,null,null,null,null,null,null,null,"g",{"$f":"AD22^2*AD23^2/(AD21^2*(AD15+AD16))","v":{"$error":"#NUM!"}}]
[null,null,null,null,null,null,null,null,null,null,null,"Relative Slope",null,{"$f":"AD48/AD45","v":{"$error":"#DIV/0!"}}," 0.90-1.10",null,null,null,null,null,null,null,null,null,null,null,null,null,null,null,null,"mi","yti","Xti","SxxTi","SyyTi","SxyTi","yi^2",null,null,null,null,null,null,null,null,null,"Regression","Dose(log)"]
[null,null,null,null,null,null,null,null,null,null,null,null,null,null,null,null,null,null,null,null,null,null,null,null,null,null,null,null,"var(P)",{"$f":"(AD23^2/AD21^2)*((1/AD5+1/AD6)+(AD28-AD11+AD12)^2/(AD15+AD16))","v":{"$error":"#DIV/0!"}},null,{"$f":"COUNTIF(AP26:AU26,\">0\")","v":0},{"$f":"SUM(AP26:AU26)","v":0},{"$f":"AF26*AW26","v":0},{"$f":"AF26*(AW26-$AD$12)^2","v":{"$error":"#DIV/0!"}},{"$f":"IF(AF26=0,0,+AF26*(AG26/AF26-$AD$14)^2)","v":0},{"$f":"IF(AF26=0,0,+AF26*(AG26/AF26-$AD$14)*(AW26-$AD$12))","v":0},{"$f":"AP26^2+AQ26^2+AR26^2+AS26^2+AT26^2+AU26^2","v":0},null,"Test sample",null,null,null,null,null,null,null,{"$f":"IF(AO26>0,AW26*$AD$48+$AD$49,\"\")","v":""},{"$f":"IF(AO26>0,LOG(AO26),\"\")","v":""}]
[null,null,null,"Italic or Bold  = Delete point. Press button Recalculate",null,null,null,null,null,null,null,null,null,null,null,null,null,null,null,null,null,null,null,null,null,null,null,null,"limit",{"$f":"(AD23*AD22/AD21)*SQRT((1-AD24)*(1/AD6+1/AD5)+(AD28-AD11+AD12)^2/(AD15+AD16))","v":{"$error":"#DIV/0!"}},null,{"$f":"COUNTIF(AP27:AU27,\">0\")","v":0},0,0,{"$error":"#DIV/0!"},0,0,0,null,null,null,null,null,null,null,null,null,"",""]
[null,null,null,null,null,null,null,null,null,null,null,null,null,null,null,null,null,null,null,null,null,null,null,null,null,null,null,null,"M",{"$f":"$AD$11-$AD$12-(AD13-AD14)/AD21","v":{"$error":"#DIV/0!"}},null,0,0,0,{"$error":"#DIV/0!"},0,0,0,null,null,null,null,null,null,null,null,null,"",""]
[null,null,null,null,null,null,null,null,null,null,null,null,null,null,null,null,null,null,null,null,null,null,null,null,null,null,null,null,"Ml",{"$f":"$AD$11-$AD$12+($AD$28-$AD$11+$AD$12+$AD$27)/(1-$AD$24)","v":{"$error":"#DIV/0!"}},null,0,0,0,{"$error":"#DIV/0!"},0,0,0,null,null,null,null,null,null,null,null,null,"",""]
[null,null,null,null,null,null,null,null,null,null,null,null,null,null,null,null,null,null,null,null,null,null,null,null,null,null,null,null,"Mu",{"$f":"$AD$11-$AD$12+($AD$28-$AD$11+$AD$12-$AD$27)/(1-$AD$24)","v":{"$error":"#DIV/0!"}},null,0,0,0,{"$error":"#DIV/0!"},0,0,0,null,null,null,null,null,null,null,null,null,"",""]
[null,null,null,null,null,null,null,null,null,null,null,null,null,null,null,null,null,null,null,null,null,null,null,null,null,null,null,null,null,null,null,0,0,0,{"$error":"#DIV/0!"},0,0,0,null,null,null,null,null,null,null,null,null,"",""]
[null,null,null,null,null,null,null,null,null,null,null,null,null,null,null,null,null,null,null,null,null,null,null,null,null,null,null,null,null,null,null,0,0,0,{"$error":"#DIV/0!"},0,0,0,null,null,null,null,null,null,null,null,null,"",""]
[]
[null,null,null,null,null,null,null,null,null,null,null,null,null,null,null,null,null,null,null,null,null,null,null,null,null,null,null,null,"Source of variation","S.S.","DF","M.S.","F RATIO","F 0.95"]
[null,null,null,null,null,null,null,null,null,null,null,null,null,null,null,null,null,null,null,null,null,null,null,null,null,null,null,null,"Preparations",{"$f":"AD7^2/AD5+AD8^2/AD6-(AD7+AD8)^2/(AD5+AD6)","v":{"$error":"#DIV/0!"}},1,{"$f":"AD35","v":{"$error":"#DIV/0!"}},{"$f":"AF35/$AF$41","v":{"$error":"#DIV/0!"}}]
[null,null,null,null,null,null,null,null,null,null,null,null,null,null,null,null,null,null,null,null,null,null,null,null,null,null,null,null,"Regression",{"$f":"(AD17+AD18)^2/(AD15+AD16)","v":{"$error":"#DIV/0!"}},1,{"$f":"AD36","v":{"$error":"#DIV/0!"}},{"$f":"AF36/$AF$41","v":{"$error":"#DIV/0!"}}]
[null,null,null,null,null,null,null,null,null,null,null,null,null,null,null,null,null,null,null,null,null,null,null,null,null,null,null,null,"Non-parallelism",{"$f":"(AD17)^2/AD15+AD18^2/AD16-(AD17+AD18)^2/(AD15+AD16)","v":{"$error":"#DIV/0!"}},1,{"$f":"AD37","v":{"$error":"#DIV/0!"}},{"$f":"AF37/$AF$41","v":{"$error":"#DIV/0!"}},{"$f":"FINV(0.05,AE37,AE$41)","v":{"$error":"#NUM!"}}]
[null,null,null,null,null,null,null,null,null,null,null,null,null,null,null,null,null,null,null,null,null,null,null,null,null,null,null,null,"Non-linearity (s)",{"$f":"AD19-AD17^2/AD15","v":{"$error":"#DIV/0!"}},{"$f":"AD3-2","v":-2},{"$f":"AD38/AE38","v":{"$error":"#DIV/0!"}},{"$f":"AF38/$AF$41","v":{"$error":"#DIV/0!"}},{"$f":"FINV(0.05,AE38,AE$41)","v":{"$error":"#NUM!"}}]
[null,null,null,null,null,null,null,null,null,null,null,null,null,null,null,null,null,null,null,null,null,null,null,null,null,null,null,null,"Non-linearity (t)",{"$f":"AD20-AD18^2/AD16","v":{"$error":"#DIV/0!"}},{"$f":"AD4-2","v":-2},{"$f":"AD39/AE39","v":{"$error":"#DIV/0!"}},{"$f":"AF39/$AF$41","v":{"$error":"#DIV/0!"}},{"$f":"FINV(0.05,AE39,AE$41)","v":{"$error":"#NUM!"}}]
[]
[null,null,null,null,null,null,null,null,null,null,5,null,null,null,null,null,null,null,null,null,null,null,null,null,null,null,null,null,"Residual Error",{"$f":"AD43-AD35-AD36-AD37-AD38-AD39","v":{"$error":"#DIV/0!"}},{"$f":"AE43-AE35-AE36-AE37-AE38-AE39","v":0},{"$f":"AD41/AE41","v":{"$error":"#DIV/0!"}}]
[]
[null,null,null,null,null,null,null,null,null,null,null,null,null,null,null,null,null,null,null,null,null,null,null,null,null,null,null,null,"Total",{"$f":"SUM(AL17:AL32)-(AD7+AD8)^2/(AD5+AD6)","v":{"$error":"#DIV/0!"}},{"$f":"(AD6+AD5)-1","v":-1}]
[]
[null,null,null,null,null,null,null,null,null,null,null,null,null,null,null,null,null,null,null,null,null,null,null,null,null,null,null,null,"Slope standard",{"$f":"AD17/AD15","v":{"$error":"#DIV/0!"}}]
[null,null,null,null,null,null,null,null,null,null,null,null,null,null,null,null,null,null,null,null,null,null,null,null,null,null,null,null,"Intercept standard",{"$f":"AD13-AD45*AD11","v":{"$error":"#DIV/0!"}}]
[]
[null,null,null,null,null,null,null,null,null,null,null,null,null,null,null,null,null,null,null,null,null,null,null,null,null,null,null,null,"Slope test",{"$f":"AD18/AD16","v":{"$error":"#DIV/0!"}}]
[null,null,null,null,null,null,null,null,null,null,null,null,null,null,null,null,null,null,null,null,null,null,null,null,null,null,null,null,"Intercept test",{"$f":"AD14-AD48*AD12","v":{"$error":"#DIV/0!"}}]
[]
[null,null,null,null,null,null,null,null,null,null,null,null,null,null,null,null,null,null,null,null,null,null,null,null,null,null,null,null,null,"Limits"]
[null,null,null,null,null,null,null,null,null,null,null,null,null,null,null,null,null,null,null,null,null,null,null,null,null,null,null,null,"Relative potency","Upper","Lower"]
[null,null,null,null,null,null,null,null,null,null,null,null,null,null,null,null,null,null,null,null,null,null,null,null,null,null,null,null,{"$f":"10^AD28","v":{"$error":"#DIV/0!"}},{"$f":"10^AD30","v":{"$error":"#DIV/0!"}},{"$f":"10^AD29","v":{"$error":"#DIV/0!"}}]
[null,null,null,null,null,null,null,null,null,null,null,null,null,null,null,null,null,null,null,null,null,null,null,null,null,null,null,null,"Potency",{"$f":"$AD$53*$N$19","v":{"$error":"#DIV/0!"}},{"$f":"$AE$53*$N$19","v":{"$error":"#DIV/0!"}}]
[null,null,null,null,null,null,null,null,null,null,null,null,null,null,null,null,null,null,null,null,null,null,null,null,null,null,null,null,"Deviation",{"$f":"(AD53-AC53)/AC53","v":{"$error":"#DIV/0!"}},{"$f":"(AE53-AC53)/AC53","v":{"$error":"#DIV/0!"}}]

{"sheet":"Testset","index":17,"n_rows":83,"n_cols":24,"rows_kept":83,"cut":false,"hidden":false,"merged":[[76,15,76,17],[76,18,76,21],[77,15,77,17],[77,18,77,21],[70,16,70,19],[71,16,71,19],[72,16,72,19],[73,16,73,19],[75,16,75,21],[65,16,65,19],[66,16,66,19],[67,16,67,19],[68,16,68,19],[69,16,69,19],[60,16,60,19],[61,16,61,19],[62,16,62,19],[63,16,63,19],[64,16,64,19],[34,15,34,17],[34,18,34,21],[23,16,23,19],[24,16,24,19],[25,16,25,19],[26,16,26,19],[27,16,27,19],[28,16,28,19],[29,16,29,19],[30,16,30,19],[32,16,32,21],[33,15,33,17],[33,18,33,21],[22,16,22,19],[17,16,17,19],[18,16,18,19],[19,16,19,19],[20,16,20,19],[21,16,21,19]]}
["Absorbance matrix",null,null,null,null,null,null,null,null,null,null,null,null,null,null,null,"If your data are in 8x12 format paste them here and press Transpose"]
[null,1,2,3,4,5,6,7,8,9,10,11,12,null,null,null,"A","B","C","D","E","F","G","H"]
["A",259,434,645,938,1181,1524,534,755,1069,1090,1607,1825,null,null,1,259,251,250,253,273,268,266,294]
["B",251,475,628,923,1230,1428,479,689,968,1326,1505,1969,null,null,2,434,475,462,461,476,469,463,511]
["C",250,462,600,953,1283,1454,508,693,924,1261,1368,1795,null,null,3,645,628,600,590,674,629,681,687]
["D",253,461,590,900,1188,1516,554,733,989,1126,1541,1568,null,null,4,938,923,953,900,970,947,884,956]
["E",273,476,674,970,1278,1555,547,682,936,1322,1560,1780,null,null,5,1181,1230,1283,1188,1278,1197,1177,1333]
["F",268,469,629,947,1197,1596,556,748,1012,1461,1529,1781,null,null,6,1524,1428,1454,1516,1555,1596,1425,1605]
["G",266,463,681,884,1177,1425,530,749,1068,1306,1653,1931,null,null,7,534,479,508,554,547,556,530,543]
["H",294,511,687,956,1333,1605,543,685,928,1283,1605,1842,null,null,8,755,689,693,733,682,748,749,685]
[null,null,null,null,null,null,null,null,null,null,null,null,null,null,null,9,1069,968,924,989,936,1012,1068,928]
[null,null,null,null,null,null,null,null,null,null,null,null,null,null,null,10,1090,1326,1261,1126,1322,1461,1306,1283]
[null,null,null,null,null,null,null,null,null,null,null,null,null,null,null,11,1607,1505,1368,1541,1560,1529,1653,1605]
["Enter here the positions of samples. Use S1 to S13 for maximal 13 samples and SS for the position of the standard.",null,null,null,null,null,null,null,null,null,null,null,null,null,null,12,1825,1969,1795,1568,1780,1781,1931,1842]
["Sample position matrix",null,null,null,"Use the abbreviations as entered in column P21 - P 34"]
[]
[null,"SS = standard",null,null,"S1 - S13 for samples",null,null,null,null,null,null,null,null,null,null,null,null,null,"Name / number",null,"Potency","Unit"]
[null,1,2,3,4,5,6,7,8,9,10,11,12,null,null,"SS","Name XXX",null,null,null,1,"U/mL",null,"This name and potency wil appear on all sheets"]
["A","S01","S01","S01","S01","S01","S01","S02","S02","S02","S02","S02","S02",null,null,"S01","Monster 1",null,null,null,null,"U/mL"]
["B","S02","S02","S02","S02","S02","S02","S01","S01","S01","S01","S01","S01",null,null,"S02","Monster 2",null,null,null,null,"U/mL"]
["C","S03","S03","S03","S03","S03","S03","SS","SS","SS","SS","SS","SS",null,null,"S03","Monster 3",null,null,null,null,"U/mL"]
["D","SS","SS","SS","SS","SS","SS","S03","S03","S03","S03","S03","S03",null,null,"S04"]
["E","S02","S02","S02","S02","S02","S02","S01","S01","S01","S01","S01","S01",null,null,"S05"]
["F","S01","S01","S01","S01","S01","S01","S02","S02","S02","S02","S02","S02",null,null,"S06"]
["G","SS","SS","SS","SS","SS","SS","S03","S03","S03","S03","S03","S03",null,null,"S07"]
["H","S03","S03","S03","S03","S03","S03","SS","SS","SS","SS","SS","SS",null,null,"S08"]
[null,null,null,null,null,null,null,null,null,null,null,null,null,null,null,"S09"]
[null,null,null,null,null,null,null,null,null,null,null,null,null,null,null,"S10"]
[null,null,null,null,null,null,null,null,null,null,null,null,null,null,null,"S11"]
["Enter here the dilutions of the samples (B36 - M43).     Enter a dilution of 1/20 as =1/20 or 0.05",null,null,null,null,null,null,null,null,null,null,null,null,null,null,"S12"]
["Dilution matrix",null,null,null,null,null,null,null,null,null,null,null,null,null,null,"S13"]
[null,1,2,3,4,5,6,7,8,9,10,11,12]
["A",0.1,{"$f":"1/20","v":0.05},{"$f":"C33/2","v":2.5000000000000001E-2},1.2500000000000001E-2,6.2500000000000003E-3,3.1250000000000002E-3,0.1,{"$f":"H33/2","v":0.05},2.5000000000000001E-2,1.2500000000000001E-2,6.2500000000000003E-3,3.1250000000000002E-3,null,null,"Date:",{"$f":"TODAY()","v":"2018-12-14"},null,null,null,null,null,null,"This date and the text below will appear on all sheets "]
["B",0.1,{"$f":"1/20","v":0.05},2.5000000000000001E-2,1.2500000000000001E-2,6.2500000000000003E-3,3.1250000000000002E-3,0.1,0.05,2.5000000000000001E-2,1.2500000000000001E-2,6.2500000000000003E-3,3.1250000000000002E-3,null,null,"Lot number: ",null,null,"  -",null,null,null,null,"This tekst will appear in the Cell D24 and E24"]
["C",0.1,0.05,2.5000000000000001E-2,1.2500000000000001E-2,6.2500000000000003E-3,3.1250000000000002E-3,0.1,0.05,2.5000000000000001E-2,1.2500000000000001E-2,6.2500000000000003E-3,3.1250000000000002E-3,null,null,"Name technician: ",null,null,"  -",null,null,null,null,"This tekst will appear in the Cell D25 and E25"]
["D",0.1,0.05,2.5000000000000001E-2,1.2500000000000001E-2,6.2500000000000003E-3,3.1250000000000002E-3,0.1,0.05,2.5000000000000001E-2,1.2500000000000001E-2,6.2500000000000003E-3,3.1250000000000002E-3]
["E",0.1,0.05,2.5000000000000001E-2,1.2500000000000001E-2,6.2500000000000003E-3,3.1250000000000002E-3,0.1,0.05,2.5000000000000001E-2,1.2500000000000001E-2,6.2500000000000003E-3,3.1250000000000002E-3]
["F",0.1,0.05,2.5000000000000001E-2,1.2500000000000001E-2,6.2500000000000003E-3,3.1250000000000002E-3,0.1,0.05,2.5000000000000001E-2,1.2500000000000001E-2,6.2500000000000003E-3,3.1250000000000002E-3]
["G",0.1,0.05,2.5000000000000001E-2,1.2500000000000001E-2,6.2500000000000003E-3,3.1250000000000002E-3,0.1,0.05,2.5000000000000001E-2,1.2500000000000001E-2,6.2500000000000003E-3,3.1250000000000002E-3]
["H",0.1,0.05,2.5000000000000001E-2,1.2500000000000001E-2,6.2500000000000003E-3,3.1250000000000002E-3,0.1,0.05,2.5000000000000001E-2,1.2500000000000001E-2,6.2500000000000003E-3,3.1250000000000002E-3]
[]
[]
[]
["Absorbance matrix",null,null,null,null,null,null,null,null,null,null,null,null,null,null,null,"If your data are in 8x12 format, paste them here and press Transpose"]
[null,1,2,3,4,5,6,7,8,9,10,11,12,null,null,null,"A","B","C","D","E","F","G","H"]
["A",259,434,645,938,1181,1524,534,755,1069,1090,1607,1825,null,null,1]
["B",251,475,628,923,1230,1428,479,689,968,1326,1505,1969,null,null,2]
["C",250,462,600,953,1283,1454,508,693,924,1261,1368,1795,null,null,3]
["D",253,461,590,900,1188,1516,554,733,989,1126,1541,1568,null,null,4]
["E",273,476,674,970,1278,1555,547,682,936,1322,1560,1780,null,null,5]
["F",268,469,629,947,1197,1596,556,748,1012,1461,1529,1781,null,null,6]
["G",266,463,681,884,1177,1425,530,749,1068,1306,1653,1931,null,null,7]
["H",294,511,687,956,1333,1605,543,685,928,1283,1605,1842,null,null,8]
[null,null,null,null,null,null,null,null,null,null,null,null,null,null,null,9]
[null,null,null,null,null,null,null,null,null,null,null,null,null,null,null,10]
[null,null,null,null,null,null,null,null,null,null,null,null,null,null,null,11]
["Enter here the positions of samples. Use S1 to S13 for maximal 13 samples and SS for the position of the standard.",null,null,null,null,null,null,null,null,null,null,null,null,null,null,12]
["Sample position matrix",null,null,null,"Use the abbreviations as entered in column P21 - P 34"]
[]
[null,"SS = standard",null,null,"S1 - S13 for samples",null,null,null,null,null,null,null,null,null,null,null,null,null,"Name / number",null,"Potency","Unit"]
[null,1,2,3,4,5,6,7,8,9,10,11,12,null,null,"SS","std",null,null,null,1.05,"U/mL"]
["A","S01","S01","S01","S01","S01","S01","S05","S05","S05","S05","S05","S05",null,null,"S01","N0012-18-000001",null,null,null,{"$error":"#DIV/0!"},"U/mL"]
["B","S02","S02","S02","S02","S02","S02","S04","S04","S04","S04","S04","S04",null,null,"S02","N0012-18-000002",null,null,null,0.96571887945528923,"U/mL"]
["C","S03","S03","S03","S03","S03","S03","S07","S07","S07","S07","S07","S07",null,null,"S03","N0012-18-000003",null,null,null,0.91771767330688825,"U/mL"]
["D","SS","SS","SS","SS","SS","SS","S06","S06","S06","S06","S06","S06",null,null,"S04","N0012-18-000004",null,null,null,0.43558486371350297,"U/mL"]
["E","S02","S02","S02","S02","S02","S02","S04","S04","S04","S04","S04","S04",null,null,"S05","N0012-18-000005",null,null,null,0.40013178330797156,"U/mL"]
["F","S01","S01","S01","S01","S01","S01","S05","S05","S05","S05","S05","S05",null,null,"S06","N0012-18-000006",null,null,null,0.41693819559224515,"U/mL"]
["G","SS","SS","SS","SS","SS","SS","S06","S06","S06","S06","S06","S06",null,null,"S07","N0012-18-000007",null,null,null,0.45759436232815298,"U/mL"]
["H","S03","S03","S03","S03","S03","S03","S07","S07","S07","S07","S07","S07",null,null,"S08"]
[null,null,null,null,null,null,null,null,null,null,null,null,null,null,null,"S09"]
[null,null,null,null,null,null,null,null,null,null,null,null,null,null,null,"S10"]
[null,null,null,null,null,null,null,null,null,null,null,null,null,null,null,"S11"]
["Enter here the dilutions of the samples (B36 - M43).     Enter a dilution of 1/20 as =1/20 or 0.05",null,null,null,null,null,null,null,null,null,null,null,null,null,null,"S12"]
["Dilution matrix",null,null,null,null,null,"Set \"Format Cells\" to General, Fraction or custom format ?/????",null,null,null,null,null,null,null,null,"S13"]
[null,1,2,3,4,5,6,7,8,9,10,11,12]
["A",0.1,{"$f":"1/20","v":0.05},{"$f":"C76/2","v":2.5000000000000001E-2},1.2500000000000001E-2,6.2500000000000003E-3,3.1250000000000002E-3,0.1,{"$f":"H76/2","v":0.05},2.5000000000000001E-2,1.2500000000000001E-2,6.2500000000000003E-3,3.1250000000000002E-3,null,null,"Date:",{"$f":"TODAY()","v":"2018-12-14"}]
["B",0.1,{"$f":"1/20","v":0.05},2.5000000000000001E-2,1.2500000000000001E-2,6.2500000000000003E-3,3.1250000000000002E-3,0.1,0.05,2.5000000000000001E-2,1.2500000000000001E-2,6.2500000000000003E-3,3.1250000000000002E-3,null,null,"Lot number: ",null,null,"  -"]
["C",0.1,0.05,2.5000000000000001E-2,1.2500000000000001E-2,6.2500000000000003E-3,3.1250000000000002E-3,0.1,0.05,2.5000000000000001E-2,1.2500000000000001E-2,6.2500000000000003E-3,3.1250000000000002E-3,null,null,"Name technician: ",null,null,"  -"]
["D",0.1,0.05,2.5000000000000001E-2,1.2500000000000001E-2,6.2500000000000003E-3,3.1250000000000002E-3,0.1,0.05,2.5000000000000001E-2,1.2500000000000001E-2,6.2500000000000003E-3,{"$f":"L79/2","v":3.1250000000000002E-3}]
["E",0.1,0.05,2.5000000000000001E-2,1.2500000000000001E-2,6.2500000000000003E-3,3.1250000000000002E-3,0.1,0.05,2.5000000000000001E-2,1.2500000000000001E-2,6.2500000000000003E-3,3.1250000000000002E-3]
["F",0.1,0.05,2.5000000000000001E-2,1.2500000000000001E-2,6.2500000000000003E-3,3.1250000000000002E-3,0.1,0.05,2.5000000000000001E-2,1.2500000000000001E-2,6.2500000000000003E-3,3.1250000000000002E-3]
["G",0.1,0.05,2.5000000000000001E-2,1.2500000000000001E-2,6.2500000000000003E-3,3.1250000000000002E-3,0.1,0.05,2.5000000000000001E-2,1.2500000000000001E-2,6.2500000000000003E-3,3.1250000000000002E-3]
["H",0.1,0.05,2.5000000000000001E-2,1.2500000000000001E-2,6.2500000000000003E-3,3.1250000000000002E-3,0.1,0.05,2.5000000000000001E-2,1.2500000000000001E-2,6.2500000000000003E-3,3.1250000000000002E-3]